Workbook

Sheet Kold
B2: Bruger: | D2: =Makro!D20 -> 0 | M2: Lastnedføring - 15 etager | U2: Betonelement-Foreningen feb 2019
B3: Sagsnavn: | D3: Test projekt | J3: Sag nr.: | K3: 23 - 4545 | M3: =BM44 -> For ny bruger: Klik på knappen 'angiv nyt brugernavn' for ibrugtagning.
B4: Bygningsdel: | D4: Test bygningsdel | J4: Dato: | K4: 2008-03-01
B5: Emne: | D5: Vedvarende dimensioneringstilstand, 6.10b | J5: Init: | K5: JFJ
M6: Egenvægt, gg,sup = | O6: 1 | P6: gg,inf = | Q6: 0.9 | R6: Konsekvensklasse: KFI = | U6: 1.1
M8: Fladelaste (kN/m2) | P8: gk | Q8: gfri,k | R8: qk | S8: gq | T8: y0 | U8: Kategori | BG8: Lastkategorier | BJ8: y0 | BK8: y1 | BL8: y2 | BN8: y0 | BO8: y1 | BP8: y2 | BQ8: Kontrol for E | BR8: Kontrol Sne
M9: F0 | P9: 0 | Q9: 0 | R9: 0 | BG9: A | BJ9: 1 | BK9: 2 | BL9: 3 | BM9: A | BN9: 0.5 | BO9: 0.3 | BP9: 0.2 | BQ9: =MIN(MAX(BQ10:BQ22),MIN(1,SUM(COUNTIF(BQ27:BQ41,"=E"),COUNTIF(BX27:BX41,"=E"),COUNTIF(CE27:CE41,"=E"),COUNTIF(CL27:CL41,"=E")))) -> 0
M10: F1 | N10: Tagflade, sne | P10: 3.1 | Q10: 1 | R10: 0.8 | S10: 1.5 | T10: 0.3 | U10: =INDEX($BG$9:$BG$16,BI10,1) -> N | BG10: B | BH10: =M10 -> F1 | BI10: =Makro!E2 -> 8 | BJ10: =INDEX(psi,$BI10,BJ$9) -> 0.3 | BK10: 0.2 | BL10: 0 | BM10: B | BN10: 0.6 | BO10: 0.4 | BP10: 0.2 | BQ10: =IF(BI10=5,1,0) -> 0 | BR10: =IF(AND(BI10=8,T10<>BJ10,MIN(1,SUM(COUNTIF(BQ27:BQ41,"=N"),COUNTIF(BX27:BX41,"=N"),COUNTIF(CE27:CE41,"=N"),COUNTIF(CL27:CL41,"=N")))=1),1,0) -> 0
M11: F2 | N11: Boligarealer | P11: 3.65 | Q11: 1.5 | R11: 1.5 | S11: 1.5 | T11: 0.5 | U11: A | BG11: C | BH11: =M11 -> F2 | BI11: =Makro!E3 -> 1 | BJ11: 0.5 | BK11: 0.3 | BL11: 0.2 | BM11: C | BN11: 0.6 | BO11: 0.6 | BP11: 0.5 | BQ11: 0
M12: F3 | N12: Kontorer | P12: 3.65 | Q12: 2 | R12: 2.5 | S12: 1.5 | T12: 0.6 | U12: B | BG12: D | BH12: F3 | BI12: =Makro!E4 -> 2 | BJ12: 0.6 | BK12: 0.4 | BL12: 0.2 | BM12: D | BN12: 0.6 | BO12: 0.6 | BP12: 0.5 | BQ12: 0
M13: F4 | N13: Kontor med arkiv | P13: 3.65 | Q13: 2 | R13: 7.5 | S13: 1.5 | T13: 0.6 | U13: D | BG13: E | BH13: F4 | BI13: =Makro!E5 -> 4 | BJ13: 0.6 | BK13: 0.6 | BL13: 0.5 | BM13: E | BN13: 1 | BO13: 0.8 | BP13: 0.7 | BQ13: 0
M14: F5 | N14: Kontorer | P14: 4.15 | Q14: 4 | R14: 4 | S14: 1.5 | T14: 0.6 | U14: D | BG14: F | BH14: F5 | BI14: =Makro!E6 -> 4 | BJ14: 0.6 | BK14: 0.6 | BL14: 0.5 | BM14: F | BN14: 1 | BO14: 0.6 | BP14: 0.5 | BQ14: 0
M15: F6 | N15: Kontorer | P15: 3.65 | Q15: 2 | R15: 3.3 | S15: 1.5 | T15: 1 | U15: G | BG15: G | BH15: F6 | BI15: =Makro!E7 -> 7 | BJ15: 1 | BK15: 0.4 | BL15: 0.2 | BM15: G | BN15: 1 | BO15: 0.4 | BP15: 0.2 | BQ15: 0
M16: F7 | N16: Undervisning | P16: 3.65 | Q16: 2 | R16: 4.8 | S16: 1.5 | T16: 0.6 | U16: D | BG16: N | BH16: F7 | BI16: =Makro!E8 -> 4 | BJ16: 0.6 | BK16: 0.6 | BL16: 0.5 | BM16: N | BN16: =IF(BQ9=1,0.6,0.3) -> 0.3 | BO16: 0.2 | BP16: 0 | BQ16: 0
M17: F8 | N17: Værksted | P17: 3.65 | Q17: 2 | R17: 8.3 | S17: 1.5 | T17: 0.6 | U17: D | BH17: F8 | BI17: =Makro!E9 -> 4 | BJ17: 0.6 | BK17: 0.6 | BL17: 0.5 | BQ17: 0
M18: F9 | N18: Butiksarealer | P18: 3.65 | Q18: 2 | R18: 3.3 | S18: 1.5 | T18: 0.3 | U18: N | BH18: F9 | BI18: =Makro!E10 -> 8 | BJ18: 0.3 | BK18: 0.2 | BL18: 0 | BQ18: 0
M19: Linielaste (kN/m) | P19: gk | Q19: gfri,k | R19: qk | S19: gq | T19: y0 | U19: Kategori
M20: L0 | P20: 0 | Q20: 0 | R20: 0
M21: L1 | N21: Badeværelser | P21: 8 | Q21: 4 | R21: 6 | S21: 1.5 | T21: 0.5 | U21: =INDEX($BG$9:$BG$16,BI21,1) -> A | BH21: L1 | BI21: =Makro!E13 -> 1 | BJ21: =INDEX(psi,$BI21,BJ$9) -> 0.5 | BK21: 0.3 | BL21: 0.2 | BQ21: =IF(BI21=5,1,0) -> 0
M22: L2 | N22: Komprimator | P22: 0 | Q22: 8 | R22: 10 | S22: 1.5 | T22: 0.6 | U22: =INDEX($BG$9:$BG$16,BI22,1) -> D | BH22: L2 | BI22: =Makro!E14 -> 4 | BJ22: 0.6 | BK22: 0.6 | BL22: 0.5 | BQ22: =IF(BI22=5,1,0) -> 0
B23: Etage | C23: Egenvægt i bærelinie | E23: Laste på venstre dækfelt | I23: Laste på højre dækfelt | M23: maksimalværdier | P23: reducerede værdier | S23: minimalværdier
C24: gk | D24: gfri,k | E24: Lv | F24: Fladelast | G24: Linielast | H24: sv | I24: Lh | J24: Fladelast | K24: Linielast | L24: sh | M24: nv | N24: no | O24: nh | P24: nv | Q24: no | R24: nh | S24: nv | T24: no | U24: nh | BG24: Spændvidder | BK24: Fladelaste, venstre dækfelt | BR24: Linielaste, venstre dækfelt | BY24: Fladelaste, højre dækfelt | CF24: Linielaste, højre dækfelt | CM24: Ng | CN24: DNmax (q) | CV24: DNsædv (q) | DD24: Nmax (q) | DL24: Nsædv (q) | DT24: No (q)
C25: (kN/m) | D25: (kN/m) | E25: (m) | H25: (m) | I25: (m) | L25: (m) | M25: (kN/m) | N25: (kN/m) | O25: (kN/m) | P25: (kN/m) | Q25: (kN/m) | R25: (kN/m) | S25: (kN/m) | T25: (kN/m) | U25: (kN/m) | BG25: Lv | BH25: sv | BI25: Lh | BJ25: sh | BL25: gk | BM25: gg | BN25: qk | BO25: gq | BP25: gqyq | BQ25: Kategori | BS25: gk | BT25: gg | BU25: qk | BV25: gq | BW25: gqyq | BX25: Kategori | BZ25: gk | CA25: gg | CB25: qk | CC25: gq | CD25: gqyq | CE25: Kategori | CG25: gk | CH25: gg | CI25: qk | CJ25: gq | CK25: gqyq | CL25: Kategori | CN25: A | CO25: B | CP25: C | CQ25: D | CR25: E | CS25: F | CT25: G | CU25: N | CV25: A | CW25: B | CX25: C | CY25: D | CZ25: E | DA25: F | DB25: G | DC25: N | DD25: A | DE25: B | DF25: C | DG25: D | DH25: E | DI25: F | DJ25: G | DK25: N | DL25: A | DM25: B | DN25: C | DO25: D | DP25: E | DQ25: F | DR25: G | DS25: N
B26: Tag | E26: 6 | F26: =INDEX($M$9:$M$18,$BK27,1) -> F3 | G26: =INDEX($M$20:$M$22,BR27,1) -> L2 | H26: 5 | I26: 13 | J26: =INDEX($M$9:$M$18,BY27,1) -> F3 | K26: =INDEX($M$20:$M$22,CF27,1) -> L1 | L26: 2 | M26: =IF($BL$44=1,"-",0.5*BG27*(BL27*BM27+BN27*BO27)+IF(E26>0,(BG27-BH27)*(BS27*BT27+BU27*BV27)/BG27,0)) -> - | N26: =IF($BL$44=1,"-",CM27+DT27) -> - | O26: =IF($BL$44=1,"-",0.5*BI27*(BZ27*CA27+CB27*CC27)+IF(I26>0,(BI27-BJ27)*(CG27*CH27+CI27*CJ27)/BI27)) -> - | P26: =IF($BL$44=1,"-",$U$6*(0.5*E26*($O$6*INDEX(fladelast,BK27,1)+$O$6*INDEX(fladelast,BK27,2)+INDEX(fladelast,BK27,3)*INDEX(fladelast,BK27,5)*INDEX(fladelast,BK27,4))+IF(E26>0,($O$6*INDEX(linielast,BR27,1)+$O$6*INDEX(linielast,BR27,2)+INDEX(linielast,BR27,3)*INDEX(linielast,BR27,5)*INDEX(linielast,BR27,4))*(E26-H26)/E26,0))) -> - | Q26: =IF($BL$44=1,"-",$U$6*$O$6*(C27+D27)) -> - | R26: =IF($BL$44=1,"-",$U$6*(0.5*I26*($O$6*INDEX(fladelast,BY27,1)+$O$6*INDEX(fladelast,BY27,2)+INDEX(fladelast,BY27,3)*INDEX(fladelast,BY27,5)*INDEX(fladelast,BY27,4))+IF(I26>0,($O$6*INDEX(linielast,CF27,1)+$O$6*INDEX(linielast,CF27,2)+INDEX(linielast,CF27,3)*INDEX(linielast,CF27,5)*INDEX(linielast,CF27,4))*(I26-L26)/I26))) -> - | S26: =IF(BL44=1,"-",$Q$6*(0.5*E26*INDEX(fladelast,BK27,1)+IF(E26>0,INDEX(linielast,BR27,1)*(E26-H26)/E26))) -> - | T26: =IF(BL44=1,"-",$Q$6*C27) -> - | U26: =IF(BL44=1,"-",$Q$6*(0.5*I26*INDEX(fladelast,BY27,1)+IF(I26>0,INDEX(linielast,CF27,1)*(I26-L26)/I26))) -> -
B27: 13. sal | C27: 12 | D27: 5 | E27: 6 | F27: =INDEX($M$9:$M$18,$BK$28,1) -> F6 | G27: L1 | H27: 2 | I27: 13 | J27: F1 | K27: L2 | L27: 2 | M27: - | N27: - | O27: - | P27: - | Q27: =IF($BL$44=1,"-",P26+Q26+R26+$U$6*$O$6*(C28+D28)) -> - | R27: - | S27: =IF($BL$44=1,"-",$Q$6*(0.5*E27*INDEX(fladelast,BK28,1)+IF(E27>0,INDEX(linielast,BR28,1)*(E27-H27)/E27))) -> - | T27: =IF($BL$44=1,"-",S26+T26+U26+$Q$6*C28) -> - | U27: =IF($BL$44=1,"-",$Q$6*(0.5*I27*INDEX(fladelast,BY28,1)+IF(I27>0,INDEX(linielast,CF28,1)*(I27-L27)/I27))) -> - | BG27: =E26+0.00001 -> 6.00001 | BH27: =H26 -> 5 | BI27: =I26+0.00001 -> 13.00001 | BJ27: =L26 -> 2 | BK27: =Makro!A2 -> 4 | BL27: =INDEX(fladelast,$BK27,1)+INDEX(fladelast,$BK27,2) -> 5.65 | BM27: =$U$6*$O$6 -> 1.1 | BN27: =INDEX(fladelast,$BK27,3) -> 2.5 | BO27: =$U$6*INDEX(fladelast,$BK27,4) -> 1.65 | BP27: =BO27*INDEX(fladelast,$BK27,5) -> 0.99 | BQ27: =INDEX(fladelast,$BK27,6) -> B | BR27: =Makro!B2 -> 3 | BS27: =INDEX(linielast,$BR27,1)+INDEX(linielast,$BR27,2) -> 8 | BT27: =$U$6*$O$6 -> 1.1 | BU27: =INDEX(linielast,$BR27,3) -> 10 | BV27: =$U$6*INDEX(linielast,$BR27,4) -> 1.65 | BW27: =BV27*INDEX(linielast,$BR27,5) -> 0.99 | BX27: =INDEX(linielast,$BR27,6) -> D | BY27: =Makro!C2 -> 4 | BZ27: =INDEX(fladelast,$BY27,1)+INDEX(fladelast,$BY27,2) -> 5.65 | CA27: =$U$6*$O$6 -> 1.1 | CB27: =INDEX(fladelast,$BY27,3) -> 2.5 | CC27: =$U$6*INDEX(fladelast,$BY27,4) -> 1.65 | CD27: =CC27*INDEX(fladelast,$BY27,5) -> 0.99 | CE27: =INDEX(fladelast,$BY27,6) -> B | CF27: =Makro!D2 -> 2 | CG27: =INDEX(linielast,$CF27,1)+INDEX(linielast,$CF27,2) -> 12 | CH27: =$U$6*$O$6 -> 1.1 | CI27: =INDEX(linielast,$CF27,3) -> 6 | CJ27: =$U$6*INDEX(linielast,$CF27,4) -> 1.65 | CK27: =CJ27*INDEX(linielast,$CF27,5) -> 0.825 | CL27: =INDEX(linielast,$CF27,6) -> A | CM27: =(C27+D27)*$U$6*$O$6 -> 18.7 | CN27: =IF($BQ27=CN$25,0.5*$BG27*$BN27*$BO27,0)+IF(AND($BX27=CN$25,$E26>0),($BG27-$BH27)*$BU27*$BV27/$BG27,0)+IF($CE27=CN$25,0.5*$BI27*$CB27*$CC27,0)+IF(AND($CL27=CN$25,$I26>0),($BI27-$BJ27)*$CI27*$CJ27/$BI27,0) -> 8.376924249 | CO27: =IF($BQ27=CO$25,0.5*$BG27*$BN27*$BO27,0)+IF(AND($BX27=CO$25,$E26>0),($BG27-$BH27)*$BU27*$BV27/$BG27,0)+IF($CE27=CO$25,0.5*$BI27*$CB27*$CC27,0)+IF(AND($CL27=CO$25,$I26>0),($BI27-$BJ27)*$CI27*$CJ27/$BI27,0) -> 39.18754125 | CP27: =IF($BQ27=CP$25,0.5*$BG27*$BN27*$BO27,0)+IF(AND($BX27=CP$25,$E26>0),($BG27-$BH27)*$BU27*$BV27/$BG27,0)+IF($CE27=CP$25,0.5*$BI27*$CB27*$CC27,0)+IF(AND($CL27=CP$25,$I26>0),($BI27-$BJ27)*$CI27*$CJ27/$BI27,0) -> 0 | CQ27: =IF($BQ27=CQ$25,0.5*$BG27*$BN27*$BO27,0)+IF(AND($BX27=CQ$25,$E26>0),($BG27-$BH27)*$BU27*$BV27/$BG27,0)+IF($CE27=CQ$25,0.5*$BI27*$CB27*$CC27,0)+IF(AND($CL27=CQ$25,$I26>0),($BI27-$BJ27)*$CI27*$CJ27/$BI27,0) -> 2.750022917 | CR27: =IF($BQ27=CR$25,0.5*$BG27*$BN27*$BO27,0)+IF(AND($BX27=CR$25,$E26>0),($BG27-$BH27)*$BU27*$BV27/$BG27,0)+IF($CE27=CR$25,0.5*$BI27*$CB27*$CC27,0)+IF(AND($CL27=CR$25,$I26>0),($BI27-$BJ27)*$CI27*$CJ27/$BI27,0) -> 0 | CS27: =IF($BQ27=CS$25,0.5*$BG27*$BN27*$BO27,0)+IF(AND($BX27=CS$25,$E26>0),($BG27-$BH27)*$BU27*$BV27/$BG27,0)+IF($CE27=CS$25,0.5*$BI27*$CB27*$CC27,0)+IF(AND($CL27=CS$25,$I26>0),($BI27-$BJ27)*$CI27*$CJ27/$BI27,0) -> 0 | CT27: =IF($BQ27=CT$25,0.5*$BG27*$BN27*$BO27,0)+IF(AND($BX27=CT$25,$E26>0),($BG27-$BH27)*$BU27*$BV27/$BG27,0)+IF($CE27=CT$25,0.5*$BI27*$CB27*$CC27,0)+IF(AND($CL27=CT$25,$I26>0),($BI27-$BJ27)*$CI27*$CJ27/$BI27,0) -> 0 | CU27: =IF($BQ27=CU$25,0.5*$BG27*$BN27*$BO27,0)+IF(AND($BX27=CU$25,$E26>0),($BG27-$BH27)*$BU27*$BV27/$BG27,0)+IF($CE27=CU$25,0.5*$BI27*$CB27*$CC27,0)+IF(AND($CL27=CU$25,$I26>0),($BI27-$BJ27)*$CI27*$CJ27/$BI27,0) -> 0 | CV27: =IF($BQ27=CV$25,0.5*$BG27*$BN27*$BP27,0)+IF(AND($BX27=CV$25,$E26>0),($BG27-$BH27)*$BU27*$BW27/$BG27,0)+IF($CE27=CV$25,0.5*$BI27*$CB27*$CD27,0)+IF(AND($CL27=CV$25,$I26>0),($BI27-$BJ27)*$CI27*$CK27/$BI27,0) -> 4.188462124 | CW27: =IF($BQ27=CW$25,0.5*$BG27*$BN27*$BP27,0)+IF(AND($BX27=CW$25,$E26>0),($BG27-$BH27)*$BU27*$BW27/$BG27,0)+IF($CE27=CW$25,0.5*$BI27*$CB27*$CD27,0)+IF(AND($CL27=CW$25,$I26>0),($BI27-$BJ27)*$CI27*$CK27/$BI27,0) -> 23.51252475 | CX27: =IF($BQ27=CX$25,0.5*$BG27*$BN27*$BP27,0)+IF(AND($BX27=CX$25,$E26>0),($BG27-$BH27)*$BU27*$BW27/$BG27,0)+IF($CE27=CX$25,0.5*$BI27*$CB27*$CD27,0)+IF(AND($CL27=CX$25,$I26>0),($BI27-$BJ27)*$CI27*$CK27/$BI27,0) -> 0 | CY27: =IF($BQ27=CY$25,0.5*$BG27*$BN27*$BP27,0)+IF(AND($BX27=CY$25,$E26>0),($BG27-$BH27)*$BU27*$BW27/$BG27,0)+IF($CE27=CY$25,0.5*$BI27*$CB27*$CD27,0)+IF(AND($CL27=CY$25,$I26>0),($BI27-$BJ27)*$CI27*$CK27/$BI27,0) -> 1.65001375 | CZ27: =IF($BQ27=CZ$25,0.5*$BG27*$BN27*$BP27,0)+IF(AND($BX27=CZ$25,$E26>0),($BG27-$BH27)*$BU27*$BW27/$BG27,0)+IF($CE27=CZ$25,0.5*$BI27*$CB27*$CD27,0)+IF(AND($CL27=CZ$25,$I26>0),($BI27-$BJ27)*$CI27*$CK27/$BI27,0) -> 0 | DA27: =IF($BQ27=DA$25,0.5*$BG27*$BN27*$BP27,0)+IF(AND($BX27=DA$25,$E26>0),($BG27-$BH27)*$BU27*$BW27/$BG27,0)+IF($CE27=DA$25,0.5*$BI27*$CB27*$CD27,0)+IF(AND($CL27=DA$25,$I26>0),($BI27-$BJ27)*$CI27*$CK27/$BI27,0) -> 0 | DB27: =IF($BQ27=DB$25,0.5*$BG27*$BN27*$BP27,0)+IF(AND($BX27=DB$25,$E26>0),($BG27-$BH27)*$BU27*$BW27/$BG27,0)+IF($CE27=DB$25,0.5*$BI27*$CB27*$CD27,0)+IF(AND($CL27=DB$25,$I26>0),($BI27-$BJ27)*$CI27*$CK27/$BI27,0) -> 0 | DC27: =IF($BQ27=DC$25,0.5*$BG27*$BN27*$BP27,0)+IF(AND($BX27=DC$25,$E26>0),($BG27-$BH27)*$BU27*$BW27/$BG27,0)+IF($CE27=DC$25,0.5*$BI27*$CB27*$CD27,0)+IF(AND($CL27=DC$25,$I26>0),($BI27-$BJ27)*$CI27*$CK27/$BI27,0) -> 0 | DD27: 0 | DE27: 0 | DF27: 0 | DG27: 0 | DH27: 0 | DI27: 0 | DJ27: 0 | DK27: 0 | DL27: 0 | DM27: 0 | DN27: 0 | DO27: 0 | DP27: 0 | DQ27: 0 | DR27: 0 | DS27: 0 | DT27: =IF(DK27>DS27,DK27+SUM(DL27:DR27),DS27+SUM(DD27:DJ27)) -> 0
B28: 12. sal | C28: 12 | D28: 5 | E28: 6 | F28: =INDEX($M$9:$M$18,$BK$29,1) -> F5 | G28: L2 | H28: 5 | I28: 13 | J28: F2 | K28: L1 | L28: 2 | M28: - | N28: - | O28: - | P28: - | Q28: - | R28: - | S28: - | T28: - | U28: - | BG28: 6.00001 | BH28: 2 | BI28: 13.00001 | BJ28: 2 | BK28: =Makro!A3 -> 7 | BL28: 5.65 | BM28: =$U$6*$O$6 -> 1.1 | BN28: 3.3 | BO28: 1.65 | BP28: 1.65 | BQ28: =INDEX(fladelast,$BK28,6) -> G | BR28: =Makro!B3 -> 2 | BS28: 12 | BT28: 1.1 | BU28: 6 | BV28: 1.65 | BW28: 0.825 | BX28: A | BY28: =Makro!C3 -> 2 | BZ28: 4.1 | CA28: 1.1 | CB28: 0.8 | CC28: 1.65 | CD28: 0.495 | CE28: N | CF28: =Makro!D3 -> 3 | CG28: 8 | CH28: 1.1 | CI28: 10 | CJ28: 1.65 | CK28: 0.99 | CL28: D | CM28: =CM27+0.5*BG27*(BL27*BM27)+IF(E26>0,(BG27-BH27)*(BS27*BT27)/BG27)+0.5*BI27*(BZ27*CA27)+IF(I26>0,(BI27-BJ27)*(CG27*CH27)/BI27)+(C28+D28)*$U$6*$O$6 -> 109.0784734 | CN28: 6.6000055 | CO28: 0 | CP28: 0 | CQ28: 13.96154041 | CR28: 0 | CS28: 0 | CT28: 16.33502723 | CU28: 8.5800066 | CV28: 3.30000275 | CW28: 0 | CX28: 0 | CY28: 8.376924249 | CZ28: 0 | DA28: 0 | DB28: 16.33502723 | DC28: 2.57400198 | DD28: =MAX(DD27+CV27,DL27+CN27) -> 8.376924249 | DE28: =MAX(DE27+CW27,DM27+CO27) -> 39.18754125 | DF28: =MAX(DF27+CX27,DN27+CP27) -> 0 | DG28: =MAX(DG27+CY27,DO27+CQ27) -> 2.750022917 | DH28: =MAX(DH27+CZ27,DP27+CR27) -> 0 | DI28: =MAX(DI27+DA27,DQ27+CS27) -> 0 | DJ28: =MAX(DJ27+DB27,DR27+CT27) -> 0 | DK28: =IF(DK27+CU27-DS28>SUM(DD28:DJ28)-SUM(DL28:DR28),DK27+CU27,DS28) -> 0 | DL28: =DL27+CV27 -> 4.188462124 | DM28: =DM27+CW27 -> 23.51252475 | DN28: =DN27+CX27 -> 0 | DO28: =DO27+CY27 -> 1.65001375 | DP28: =DP27+CZ27 -> 0 | DQ28: =DQ27+DA27 -> 0 | DR28: =DR27+DB27 -> 0 | DS28: =DS27+DC27 -> 0 | DT28: =IF(DK28>DS28,DK28+SUM(DL28:DR28),DS28+SUM(DD28:DJ28)) -> 50.31448842
B29: 11. sal | C29: 12 | D29: 5 | E29: 6 | F29: =INDEX($M$9:$M$18,$BK$30,1) -> F3 | G29: L1 | H29: 2 | I29: 13 | J29: F2 | K29: L2 | L29: 2 | M29: - | N29: - | O29: - | P29: - | Q29: - | R29: - | S29: - | T29: - | U29: - | BG29: 6.00001 | BH29: 5 | BI29: 13.00001 | BJ29: 2 | BK29: =Makro!A4 -> 6 | BL29: 8.15 | BM29: =$U$6*$O$6 -> 1.1 | BN29: 4 | BO29: 1.65 | BP29: 0.99 | BQ29: D | BR29: =Makro!B4 -> 3 | BS29: 8 | BT29: 1.1 | BU29: 10 | BV29: 1.65 | BW29: 0.99 | BX29: D | BY29: =Makro!C4 -> 3 | BZ29: 5.15 | CA29: 1.1 | CB29: 1.5 | CC29: 1.65 | CD29: 0.825 | CE29: A | CF29: =Makro!D4 -> 2 | CG29: 12 | CH29: 1.1 | CI29: 6 | CJ29: 1.65 | CK29: 0.825 | CL29: A | CM29: 191.9846892 | CN29: 24.46443662 | CO29: 0 | CP29: 0 | CQ29: 22.55005592 | CR29: 0 | CS29: 0 | CT29: 0 | CU29: 0 | CV29: 12.23221831 | CW29: 0 | CX29: 0 | CY29: 13.53003355 | CZ29: 0 | DA29: 0 | DB29: 0 | DC29: 0 | DD29: 11.676927 | DE29: 39.18754125 | DF29: 0 | DG29: 15.61155416 | DH29: 0 | DI29: 0 | DJ29: 16.33502723 | DK29: 2.57400198 | DL29: 7.488464874 | DM29: 23.51252475 | DN29: 0 | DO29: 10.026938 | DP29: 0 | DQ29: 0 | DR29: 16.33502723 | DS29: 2.57400198 | DT29: 85.38505162
B30: 10. sal | C30: 12 | D30: 5 | E30: 6 | F30: =INDEX($M$9:$M$18,$BK$31,1) -> F5 | G30: L2 | H30: 2 | I30: 13 | J30: F5 | K30: L1 | L30: 2 | M30: - | N30: - | O30: - | P30: - | Q30: - | R30: - | S30: - | T30: - | U30: - | BG30: 6.00001 | BH30: 2 | BI30: 13.00001 | BJ30: 2 | BK30: =Makro!A5 -> 4 | BL30: 5.65 | BM30: 1.1 | BN30: 2.5 | BO30: 1.65 | BP30: 0.99 | BQ30: B | BR30: =Makro!B5 -> 2 | BS30: 12 | BT30: 1.1 | BU30: 6 | BV30: 1.65 | BW30: 0.825 | BX30: A | BY30: =Makro!C5 -> 3 | BZ30: 5.15 | CA30: 1.1 | CB30: 1.5 | CC30: 1.65 | CD30: 0.825 | CE30: A | CF30: =Makro!D5 -> 3 | CG30: 8 | CH30: 1.1 | CI30: 10 | CJ30: 1.65 | CK30: 0.99 | CL30: D | CM30: 287.0381736 | CN30: 22.68751787 | CO30: 12.37502062 | CP30: 0 | CQ30: 13.96154041 | CR30: 0 | CS30: 0 | CT30: 0 | CU30: 0 | CV30: 11.34375894 | CW30: 7.425012375 | CX30: 0 | CY30: 8.376924249 | CZ30: 0 | DA30: 0 | DB30: 0 | DC30: 0 | DD30: 31.9529015 | DE30: 39.18754125 | DF30: 0 | DG30: 32.57699392 | DH30: 0 | DI30: 0 | DJ30: 16.33502723 | DK30: 2.57400198 | DL30: 19.72068319 | DM30: 23.51252475 | DN30: 0 | DO30: 23.55697155 | DP30: 0 | DQ30: 0 | DR30: 16.33502723 | DS30: 2.57400198 | DT30: 122.6264659
B31: 9. sal | C31: 12 | D31: 5 | E31: 6 | F31: =INDEX($M$9:$M$18,$BK$32,1) -> F2 | G31: L2 | H31: 2 | I31: 13 | J31: F3 | K31: L2 | L31: 2 | M31: - | N31: - | O31: - | P31: - | Q31: - | R31: - | S31: - | T31: - | U31: - | BG31: 6.00001 | BH31: 2 | BI31: 13.00001 | BJ31: 2 | BK31: =Makro!A6 -> 6 | BL31: 8.15 | BM31: 1.1 | BN31: 4 | BO31: 1.65 | BP31: 0.99 | BQ31: D | BR31: =Makro!B6 -> 3 | BS31: 8 | BT31: 1.1 | BU31: 10 | BV31: 1.65 | BW31: 0.99 | BX31: D | BY31: =Makro!C6 -> 6 | BZ31: 8.15 | CA31: 1.1 | CB31: 4 | CC31: 1.65 | CD31: 0.99 | CE31: D | CF31: =Makro!D6 -> 2 | CG31: 12 | CH31: 1.1 | CI31: 6 | CJ31: 1.65 | CK31: 0.825 | CL31: A | CM31: 377.4518952 | CN31: 8.376924249 | CO31: 0 | CP31: 0 | CQ31: 73.70007517 | CR31: 0 | CS31: 0 | CT31: 0 | CU31: 0 | CV31: 4.188462124 | CW31: 0 | CX31: 0 | CY31: 44.2200451 | CZ31: 0 | DA31: 0 | DB31: 0 | DC31: 0 | DD31: 43.29666044 | DE31: 46.61255363 | DF31: 0 | DG31: 40.95391816 | DH31: 0 | DI31: 0 | DJ31: 16.33502723 | DK31: 2.57400198 | DL31: 31.06444212 | DM31: 30.93753712 | DN31: 0 | DO31: 31.9338958 | DP31: 0 | DQ31: 0 | DR31: 16.33502723 | DS31: 2.57400198 | DT31: 149.7721614
B32: 8. sal | C32: 12 | D32: 5 | E32: 6 | F32: =INDEX($M$9:$M$18,$BK$33,1) -> F6 | G32: L1 | H32: 2 | I32: 13 | J32: F3 | K32: L2 | L32: 2 | M32: - | N32: - | O32: - | P32: - | Q32: - | R32: - | S32: - | T32: - | U32: - | BG32: 6.00001 | BH32: 2 | BI32: 13.00001 | BJ32: 2 | BK32: =Makro!A7 -> 3 | BL32: 5.15 | BM32: 1.1 | BN32: 1.5 | BO32: 1.65 | BP32: 0.825 | BQ32: A | BR32: =Makro!B7 -> 3 | BS32: 8 | BT32: 1.1 | BU32: 10 | BV32: 1.65 | BW32: 0.99 | BX32: D | BY32: =Makro!C7 -> 4 | BZ32: 5.65 | CA32: 1.1 | CB32: 2.5 | CC32: 1.65 | CD32: 0.99 | CE32: B | CF32: =Makro!D7 -> 3 | CG32: 8 | CH32: 1.1 | CI32: 10 | CJ32: 1.65 | CK32: 0.99 | CL32: D | CM32: 498.3553887 | CN32: 7.425012375 | CO32: 26.81252063 | CP32: 0 | CQ32: 24.96154958 | CR32: 0 | CS32: 0 | CT32: 0 | CU32: 0 | CV32: 3.712506188 | CW32: 16.08751237 | CX32: 0 | CY32: 14.97692975 | CZ32: 0 | DA32: 0 | DB32: 0 | DC32: 0 | DD32: 47.48512256 | DE32: 46.61255363 | DF32: 0 | DG32: 105.633971 | DH32: 0 | DI32: 0 | DJ32: 16.33502723 | DK32: 2.57400198 | DL32: 35.25290425 | DM32: 30.93753712 | DN32: 0 | DO32: 76.1539409 | DP32: 0 | DQ32: 0 | DR32: 16.33502723 | DS32: 2.57400198 | DT32: 218.6406764
B33: 7. sal | C33: 12 | D33: 5 | E33: 6 | F33: =INDEX($M$9:$M$18,$BK$34,1) -> F1 | G33: L1 | H33: 2 | I33: 13 | J33: F5 | K33: L1 | L33: 2 | M33: - | N33: - | O33: - | P33: - | Q33: - | R33: - | S33: - | T33: - | U33: - | BG33: 6.00001 | BH33: 2 | BI33: 13.00001 | BJ33: 2 | BK33: =Makro!A8 -> 7 | BL33: 5.65 | BM33: 1.1 | BN33: 3.3 | BO33: 1.65 | BP33: 1.65 | BQ33: G | BR33: =Makro!B8 -> 2 | BS33: 12 | BT33: 1.1 | BU33: 6 | BV33: 1.65 | BW33: 0.825 | BX33: A | BY33: =Makro!C8 -> 4 | BZ33: 5.65 | CA33: 1.1 | CB33: 2.5 | CC33: 1.65 | CD33: 0.99 | CE33: B | CF33: =Makro!D8 -> 3 | CG33: 8 | CH33: 1.1 | CI33: 10 | CJ33: 1.65 | CK33: 0.99 | CL33: D | CM33: 587.7607746 | CN33: 6.6000055 | CO33: 26.81252063 | CP33: 0 | CQ33: 13.96154041 | CR33: 0 | CS33: 0 | CT33: 16.33502723 | CU33: 0 | CV33: 3.30000275 | CW33: 16.08751237 | CX33: 0 | CY33: 8.376924249 | CZ33: 0 | DA33: 0 | DB33: 16.33502723 | DC33: 0 | DD33: 51.19762875 | DE33: 62.700066 | DF33: 0 | DG33: 120.6109007 | DH33: 0 | DI33: 0 | DJ33: 16.33502723 | DK33: 2.57400198 | DL33: 38.96541044 | DM33: 47.0250495 | DN33: 0 | DO33: 91.13087065 | DP33: 0 | DQ33: 0 | DR33: 16.33502723 | DS33: 2.57400198 | DT33: 253.4176247
B34: 6. sal | C34: 12 | D34: 5 | E34: 6 | F34: =INDEX($M$9:$M$18,$BK$35,1) -> F6 | G34: L1 | H34: 2 | I34: 13 | J34: F4 | K34: L1 | L34: 2 | M34: - | N34: - | O34: - | P34: - | Q34: - | R34: - | S34: - | T34: - | U34: - | BG34: 6.00001 | BH34: 2 | BI34: 13.00001 | BJ34: 2 | BK34: =Makro!A9 -> 2 | BL34: 4.1 | BM34: 1.1 | BN34: 0.8 | BO34: 1.65 | BP34: 0.495 | BQ34: N | BR34: =Makro!B9 -> 2 | BS34: 12 | BT34: 1.1 | BU34: 6 | BV34: 1.65 | BW34: 0.825 | BX34: A | BY34: =Makro!C9 -> 6 | BZ34: 8.15 | CA34: 1.1 | CB34: 4 | CC34: 1.65 | CD34: 0.99 | CE34: D | CF34: =Makro!D9 -> 2 | CG34: 12 | CH34: 1.1 | CI34: 6 | CJ34: 1.65 | CK34: 0.825 | CL34: A | CM34: 681.749499 | CN34: 14.97692975 | CO34: 0 | CP34: 0 | CQ34: 42.900033 | CR34: 0 | CS34: 0 | CT34: 0 | CU34: 3.9600066 | CV34: 7.488464874 | CW34: 0 | CX34: 0 | CY34: 25.7400198 | CZ34: 0 | DA34: 0 | DB34: 0 | DC34: 1.18800198 | DD34: 54.4976315 | DE34: 78.78757838 | DF34: 0 | DG34: 128.987825 | DH34: 0 | DI34: 0 | DJ34: 32.67005445 | DK34: 2.57400198 | DL34: 42.26541319 | DM34: 63.11256187 | DN34: 0 | DO34: 99.50779489 | DP34: 0 | DQ34: 0 | DR34: 32.67005445 | DS34: 2.57400198 | DT34: 297.5170913
B35: 5. sal | C35: 12 | D35: 5 | E35: 6 | F35: =INDEX($M$9:$M$18,$BK$36,1) -> F6 | G35: L1 | H35: 2 | I35: 13 | J35: F7 | K35: L1 | L35: 2 | M35: - | N35: - | O35: - | P35: - | Q35: - | R35: - | S35: - | T35: - | U35: - | BG35: 6.00001 | BH35: 2 | BI35: 13.00001 | BJ35: 2 | BK35: =Makro!A10 -> 7 | BL35: 5.65 | BM35: 1.1 | BN35: 3.3 | BO35: 1.65 | BP35: 1.65 | BQ35: G | BR35: =Makro!B10 -> 2 | BS35: 12 | BT35: 1.1 | BU35: 6 | BV35: 1.65 | BW35: 0.825 | BX35: A | BY35: =Makro!C10 -> 5 | BZ35: 5.65 | CA35: 1.1 | CB35: 7.5 | CC35: 1.65 | CD35: 0.99 | CE35: D | CF35: =Makro!D10 -> 2 | CG35: 12 | CH35: 1.1 | CI35: 6 | CJ35: 1.65 | CK35: 0.825 | CL35: A | CM35: 792.221306 | CN35: 14.97692975 | CO35: 0 | CP35: 0 | CQ35: 80.43756188 | CR35: 0 | CS35: 0 | CT35: 16.33502723 | CU35: 0 | CV35: 7.488464874 | CW35: 0 | CX35: 0 | CY35: 48.26253712 | CZ35: 0 | DA35: 0 | DB35: 16.33502723 | DC35: 0 | DD35: 61.98609637 | DE35: 78.78757838 | DF35: 0 | DG35: 154.7278448 | DH35: 0 | DI35: 0 | DJ35: 32.67005445 | DK35: 3.76200396 | DL35: 49.75387806 | DM35: 63.11256187 | DN35: 0 | DO35: 125.2478147 | DP35: 0 | DQ35: 0 | DR35: 32.67005445 | DS35: 3.76200396 | DT35: 331.9335779
B36: 4. sal | C36: 12 | D36: 5 | E36: 6 | F36: =INDEX($M$9:$M$18,$BK$37,1) -> F6 | G36: L2 | H36: 2 | I36: 13 | J36: F2 | K36: L1 | L36: 2 | M36: - | N36: =IF($BL$44=1,"-",CM37+DT37) -> - | O36: - | P36: - | Q36: - | R36: - | S36: - | T36: - | U36: - | BG36: 6.00001 | BH36: 2 | BI36: 13.00001 | BJ36: 2 | BK36: =Makro!A11 -> 7 | BL36: 5.65 | BM36: 1.1 | BN36: 3.3 | BO36: 1.65 | BP36: 1.65 | BQ36: G | BR36: =Makro!B11 -> 2 | BS36: 12 | BT36: 1.1 | BU36: 6 | BV36: 1.65 | BW36: 0.825 | BX36: A | BY36: =Makro!C11 -> 8 | BZ36: 5.65 | CA36: 1.1 | CB36: 4.8 | CC36: 1.65 | CD36: 0.99 | CE36: D | CF36: =Makro!D11 -> 2 | CG36: 12 | CH36: 1.1 | CI36: 6 | CJ36: 1.65 | CK36: 0.825 | CL36: A | CM36: 889.9331078 | CN36: 14.97692975 | CO36: 0 | CP36: 0 | CQ36: 51.4800396 | CR36: 0 | CS36: 0 | CT36: 16.33502723 | CU36: 0 | CV36: 7.488464874 | CW36: 0 | CX36: 0 | CY36: 30.88802376 | CZ36: 0 | DA36: 0 | DB36: 16.33502723 | DC36: 0 | DD36: 69.47456125 | DE36: 78.78757838 | DF36: 0 | DG36: 205.6853766 | DH36: 0 | DI36: 0 | DJ36: 49.00508167 | DK36: 3.76200396 | DL36: 57.24234293 | DM36: 63.11256187 | DN36: 0 | DO36: 173.5103518 | DP36: 0 | DQ36: 0 | DR36: 49.00508167 | DS36: 3.76200396 | DT36: 406.7146018
B37: 3. sal | C37: 12 | D37: 5 | E37: 6 | F37: =INDEX($M$9:$M$18,$BK$38,1) -> F5 | G37: L1 | H37: 2 | I37: 13 | J37: F2 | K37: L2 | L37: 2 | M37: - | N37: - | O37: - | P37: - | Q37: - | R37: - | S37: - | T37: - | U37: - | BG37: 6.00001 | BH37: 2 | BI37: 13.00001 | BJ37: 2 | BK37: =Makro!A12 -> 7 | BL37: 5.65 | BM37: 1.1 | BN37: 3.3 | BO37: 1.65 | BP37: 1.65 | BQ37: G | BR37: =Makro!B12 -> 3 | BS37: 8 | BT37: 1.1 | BU37: 10 | BV37: 1.65 | BW37: 0.99 | BX37: D | BY37: =Makro!C12 -> 3 | BZ37: 5.15 | CA37: 1.1 | CB37: 1.5 | CC37: 1.65 | CD37: 0.825 | CE37: A | CF37: =Makro!D12 -> 2 | CG37: 12 | CH37: 1.1 | CI37: 6 | CJ37: 1.65 | CK37: 0.825 | CL37: A | CM37: 987.6449096 | CN37: 24.46443662 | CO37: 0 | CP37: 0 | CQ37: 11.00000917 | CR37: 0 | CS37: 0 | CT37: 16.33502723 | CU37: 0 | CV37: 12.23221831 | CW37: 0 | CX37: 0 | CY37: 6.6000055 | CZ37: 0 | DA37: 0 | DB37: 16.33502723 | DC37: 0 | DD37: 76.96302612 | DE37: 78.78757838 | DF37: 0 | DG37: 236.5734003 | DH37: 0 | DI37: 0 | DJ37: 65.3401089 | DK37: 3.76200396 | DL37: 64.73080781 | DM37: 63.11256187 | DN37: 0 | DO37: 204.3983756 | DP37: 0 | DQ37: 0 | DR37: 65.3401089 | DS37: 3.76200396 | DT37: 461.4261177
B38: 2. sal | C38: 12 | D38: 5 | E38: 6 | F38: =INDEX($M$9:$M$18,$BK$39,1) -> F5 | G38: L1 | H38: 2 | I38: 13 | J38: F3 | K38: L1 | L38: 2 | M38: - | N38: - | O38: - | P38: - | Q38: - | R38: - | S38: - | T38: - | U38: - | W38: NB: Resultaterne skal altid kontrolleres af ansvarlig statiker | BG38: 6.00001 | BH38: 2 | BI38: 13.00001 | BJ38: 2 | BK38: =Makro!A13 -> 6 | BL38: 8.15 | BM38: 1.1 | BN38: 4 | BO38: 1.65 | BP38: 0.99 | BQ38: D | BR38: =Makro!B13 -> 2 | BS38: 12 | BT38: 1.1 | BU38: 6 | BV38: 1.65 | BW38: 0.825 | BX38: A | BY38: =Makro!C13 -> 3 | BZ38: 5.15 | CA38: 1.1 | CB38: 1.5 | CC38: 1.65 | CD38: 0.825 | CE38: A | CF38: =Makro!D13 -> 3 | CG38: 8 | CH38: 1.1 | CI38: 10 | CJ38: 1.65 | CK38: 0.99 | CL38: D | CM38: 1078.848373 | CN38: 22.68751787 | CO38: 0 | CP38: 0 | CQ38: 33.76157341 | CR38: 0 | CS38: 0 | CT38: 0 | CU38: 0 | CV38: 11.34375894 | CW38: 0 | CX38: 0 | CY38: 20.25694405 | CZ38: 0 | DA38: 0 | DB38: 0 | DC38: 0 | DD38: 89.19524443 | DE38: 78.78757838 | DF38: 0 | DG38: 243.1734058 | DH38: 0 | DI38: 0 | DJ38: 81.67513613 | DK38: 3.76200396 | DL38: 76.96302612 | DM38: 63.11256187 | DN38: 0 | DO38: 210.9983811 | DP38: 0 | DQ38: 0 | DR38: 81.67513613 | DS38: 3.76200396 | DT38: 496.5933687
B39: 1. sal | C39: 12 | D39: 5 | E39: 6 | F39: =INDEX($M$9:$M$18,$BK$40,1) -> F4 | G39: L1 | H39: 2 | I39: 13 | J39: F5 | K39: L1 | L39: 2 | M39: - | N39: - | O39: - | P39: - | Q39: - | R39: - | S39: - | T39: - | U39: - | BG39: 6.00001 | BH39: 2 | BI39: 13.00001 | BJ39: 2 | BK39: =Makro!A14 -> 6 | BL39: 8.15 | BM39: 1.1 | BN39: 4 | BO39: 1.65 | BP39: 0.99 | BQ39: D | BR39: =Makro!B14 -> 2 | BS39: 12 | BT39: 1.1 | BU39: 6 | BV39: 1.65 | BW39: 0.825 | BX39: A | BY39: =Makro!C14 -> 4 | BZ39: 5.65 | CA39: 1.1 | CB39: 2.5 | CC39: 1.65 | CD39: 0.99 | CE39: B | CF39: =Makro!D14 -> 2 | CG39: 12 | CH39: 1.1 | CI39: 6 | CJ39: 1.65 | CK39: 0.825 | CL39: A | CM39: 1177.512108 | CN39: 14.97692975 | CO39: 26.81252063 | CP39: 0 | CQ39: 19.800033 | CR39: 0 | CS39: 0 | CT39: 0 | CU39: 0 | CV39: 7.488464874 | CW39: 16.08751237 | CX39: 0 | CY39: 11.8800198 | CZ39: 0 | DA39: 0 | DB39: 0 | DC39: 0 | DD39: 100.5390034 | DE39: 78.78757838 | DF39: 0 | DG39: 263.4303499 | DH39: 0 | DI39: 0 | DJ39: 81.67513613 | DK39: 3.76200396 | DL39: 88.30678506 | DM39: 63.11256187 | DN39: 0 | DO39: 231.2553251 | DP39: 0 | DQ39: 0 | DR39: 81.67513613 | DS39: 3.76200396 | DT39: 528.1940717
B40: Stue | C40: 12 | D40: 5 | E40: 6 | F40: =INDEX($M$9:$M$18,$BK$41,1) -> F3 | G40: L2 | H40: 2 | I40: 13 | J40: F6 | K40: L2 | L40: 2 | M40: - | N40: - | O40: - | P40: - | Q40: - | R40: - | S40: - | T40: - | U40: - | W40: Vejledning: | Z40: Betonelementbyggeriers statik | BG40: 6.00001 | BH40: 2 | BI40: 13.00001 | BJ40: 2 | BK40: =Makro!A15 -> 5 | BL40: 5.65 | BM40: 1.1 | BN40: 7.5 | BO40: 1.65 | BP40: 0.99 | BQ40: D | BR40: =Makro!B15 -> 2 | BS40: 12 | BT40: 1.1 | BU40: 6 | BV40: 1.65 | BW40: 0.825 | BX40: A | BY40: =Makro!C15 -> 6 | BZ40: 8.15 | CA40: 1.1 | CB40: 4 | CC40: 1.65 | CD40: 0.99 | CE40: D | CF40: =Makro!D15 -> 2 | CG40: 12 | CH40: 1.1 | CI40: 6 | CJ40: 1.65 | CK40: 0.825 | CL40: A | CM40: 1283.473924 | CN40: 14.97692975 | CO40: 0 | CP40: 0 | CQ40: 80.02509488 | CR40: 0 | CS40: 0 | CT40: 0 | CU40: 0 | CV40: 7.488464874 | CW40: 0 | CX40: 0 | CY40: 48.01505692 | CZ40: 0 | DA40: 0 | DB40: 0 | DC40: 0 | DD40: =MAX(DD39+CV39,DL39+CN39) -> 108.0274682 | DE40: 94.87509075 | DF40: 0 | DG40: 275.3103697 | DH40: 0 | DI40: 0 | DJ40: 81.67513613 | DK40: =IF(DK39+CU39-DS40>SUM(DD40:DJ40)-SUM(DL40:DR40),DK39+CU39,DS40) -> 3.76200396 | DL40: =DL39+CV39 -> 95.79524993 | DM40: 79.20007425 | DN40: 0 | DO40: 243.1353449 | DP40: 0 | DQ40: 0 | DR40: 81.67513613 | DS40: 3.76200396 | DT40: =IF(DK40>DS40,DK40+SUM(DL40:DR40),DS40+SUM(DD40:DJ40)) -> 563.6500688
B41: Kld. | C41: 12 | D41: 5 | N41: =IF($BL$44=1,"-",CM42+DT42) -> - | Q41: =IF($BL$44=1,"-",P40+Q40+R40) -> - | T41: =IF(BL44=1,"-",S40+T40+U40) -> - | W41: Polyteknisk Forlag 2010 eller www.bef.dk | BG41: 6.00001 | BH41: 2 | BI41: 13.00001 | BJ41: 2 | BK41: =Makro!A16 -> 4 | BL41: 5.65 | BM41: 1.1 | BN41: 2.5 | BO41: 1.65 | BP41: 0.99 | BQ41: B | BR41: =Makro!B16 -> 3 | BS41: 8 | BT41: 1.1 | BU41: 10 | BV41: 1.65 | BW41: 0.99 | BX41: D | BY41: =Makro!C16 -> 7 | BZ41: 5.65 | CA41: 1.1 | CB41: 3.3 | CC41: 1.65 | CD41: 1.65 | CE41: G | CF41: =Makro!D16 -> 3 | CG41: 8 | CH41: 1.1 | CI41: 10 | CJ41: 1.65 | CK41: 0.99 | CL41: D | CM41: 1399.060739 | CN41: 0 | CO41: 12.37502062 | CP41: 0 | CQ41: 24.96154958 | CR41: 0 | CS41: 0 | CT41: 35.39252722 | CU41: 0 | CV41: 0 | CW41: 7.425012375 | CX41: 0 | CY41: 14.97692975 | CZ41: 0 | DA41: 0 | DB41: 35.39252722 | DC41: 0 | DD41: 115.5159331 | DE41: 94.87509075 | DF41: 0 | DG41: 323.3254266 | DH41: 0 | DI41: 0 | DJ41: 81.67513613 | DK41: =IF(DK40+CU40-DS41>SUM(DD41:DJ41)-SUM(DL41:DR41),DK40+CU40,DS41) -> 3.76200396 | DL41: 103.2837148 | DM41: 79.20007425 | DN41: 0 | DO41: 291.1504019 | DP41: 0 | DQ41: 0 | DR41: 81.67513613 | DS41: 3.76200396 | DT41: =IF(DK41>DS41,DK41+SUM(DL41:DR41),DS41+SUM(DD41:DJ41)) -> 619.1535906
BK42: =Makro!A17 -> 3 | BY42: =Makro!C17 -> 3 | CM42: =CM41+0.5*BG41*(BL41*BM41)+IF(E40>0,(BG41-BH41)*(BS41*BT41)/BG41)+0.5*BI41*(BZ41*CA41)+IF(I40>0,(BI41-BJ41)*(CG41*CH41)/BI41) -> 1471.416128 | CN42: 0 | CO42: 0 | CP42: 0 | CQ42: 0 | CR42: 0 | CS42: 0 | CT42: 0 | CU42: 0 | CV42: 0 | CW42: 0 | CX42: 0 | CY42: 0 | CZ42: 0 | DA42: 0 | DB42: 0 | DC42: 0 | DD42: 115.5159331 | DE42: 102.3001031 | DF42: 0 | DG42: 338.3023564 | DH42: 0 | DI42: 0 | DJ42: 117.0676634 | DK42: =IF(DK41+CU41-DS42>SUM(DD42:DJ42)-SUM(DL42:DR42),DK41+CU41,DS42) -> 3.76200396 | DL42: 103.2837148 | DM42: 86.62508662 | DN42: 0 | DO42: 306.1273316 | DP42: 0 | DQ42: 0 | DR42: 117.0676634 | DS42: 3.76200396 | DT42: =IF(DK42>DS42,DK42+SUM(DL42:DR42),DS42+SUM(DD42:DJ42)) -> 676.9480599
BG44: Fejltabel | BL44: =IF(MAX(BL45:BL56)=1,1,0) -> 1 | BM44: =BM45&BM46&BM47&BM48&BM49&BM50&BM51&BM52&BM53&BM54&BM55&BM56 -> For ny bruger: Klik på knappen 'angiv nyt brugernavn' for ibrugtagning.
BG45: Programmet modtager ikke negative inddata ! | BL45: =IF(MIN(O6,Q6,U6,P10:T18,P21:T22,C27:D41,E26:E40,H26:H40,I26:I40,L26:L40)<0,1,0) -> 0 | BM45: =IF(BL45=0,"",BG45) -> 
BG46: Linielast udenfor dækfelt ! | BL46: =IF(OR(H26>E26,H27>E27,H28>E28,H29>E29,H30>E30,H31>E31,H32>E32,H33>E33,H34>E34,H35>E35,H36>E36,H37>E37,H38>E38,H39>E39,H40>E40,L26>I26,L27>I27,L28>I28,L29>I29,L30>I30,L31>I31,L32>I32,L33>I33,L34>I34,L35>I35,L36>I36,L37>I37,L38>I38,L39>I39,L40>I40),1,0) -> 0 | BM46: =IF(BL46=0,"",BG46) -> 
BG47: I kombination med lastkategori E bør lastreduktionsfaktoren for sne ændres | BL47: =IF(AND(BQ9=1,MAX(BR10:BR18)=1),1,0) -> 0 | BM47: =IF(BL47=0,"",BG47) -> 
BG48: Partialkoefficient på nyttelast mindst 1 ! | BL48: =IF(COUNTIF(S10:S18,"<"&1)>0,1,0) -> 0 | BM48: =IF(BL48=0,"",BG48) -> 
BG49: Reduktionsfaktor højst 1 ! | BL49: =IF(COUNTIF(T10:T18,">"&1)>0,1,0) -> 0 | BM49: =IF(BL49=0,"",BG49) -> 
BG52: For ny bruger: Klik på knappen 'angiv nyt brugernavn' for ibrugtagning. | BL52: =Makro!E20 -> 1 | BM52: =IF(BL52=0,"",BG52) -> For ny bruger: Klik på knappen 'angiv nyt brugernavn' for ibrugtagning.

Sheet Brand
B2: Bruger: | D2: =Kold!D2 -> 0 | M2: =Kold!M2 -> Lastnedføring - 15 etager | U2: =Kold!U2 -> Betonelement-Foreningen feb 2019
B3: Sagsnavn: | D3: =Kold!D3 -> Test projekt | J3: Sag nr.: | K3: =Kold!K3 -> 23 - 4545 | M3: =BM44 -> 
B4: Bygningsdel: | D4: =Kold!D4 -> Test bygningsdel | J4: Dato: | K4: =Kold!K4 -> 2008-03-01
B5: Emne: | D5: Branddimensioneringstilstande | J5: Init: | K5: =Kold!K5 -> JFJ
M6: Egenvægt, gg,sup = | O6: 1 | P6: gg,inf = | Q6: 1 | R6: Konsekvensklasse: KFI = | U6: 1
M8: Fladelaste (kN/m2) | P8: gk | Q8: gfri,k | R8: qk | S8: y1 | T8: y2 | U8: Kategori | BG8: Lastkategorier | BJ8: y0 | BK8: y1 | BL8: y2
M9: F0 | P9: 0 | Q9: 0 | R9: 0 | BG9: A | BJ9: 1 | BK9: 2 | BL9: 3
M10: =BG61 -> F1 | N10: =BH61 -> Tagflade, sne | P10: =BJ61 -> 3.1 | Q10: =BK61 -> 1 | R10: =BL61 -> 0.8 | S10: 0.2 | T10: 0 | U10: =BO61 -> N | BG10: B | BH10: F1 | BI10: =Kold!BI10 -> 8 | BJ10: =INDEX(psi,$BI10,BJ$9) -> 0.3 | BK10: =INDEX(psi,$BI10,BK$9) -> 0.2 | BL10: 0
M11: =BG62 -> F2 | N11: =BH62 -> Boligarealer | P11: =BJ62 -> 3.65 | Q11: =BK62 -> 1.5 | R11: =BL62 -> 1.5 | S11: 0.3 | T11: 0.2 | U11: =BO62 -> A | BG11: C | BH11: F2 | BI11: =Kold!BI11 -> 1 | BJ11: 0.5 | BK11: 0.3 | BL11: 0.2
M12: F3 | N12: =BH63 -> Kontorer | P12: 3.65 | Q12: 2 | R12: 2.5 | S12: 0.4 | T12: 0.2 | U12: B | BG12: D | BH12: F3 | BI12: =Kold!BI12 -> 2 | BJ12: 0.6 | BK12: 0.4 | BL12: 0.2
M13: F4 | N13: =BH64 -> Kontor med arkiv | P13: 3.65 | Q13: 2 | R13: 7.5 | S13: 0.6 | T13: 0.5 | U13: D | BG13: E | BH13: F4 | BI13: =Kold!BI13 -> 4 | BJ13: 0.6 | BK13: 0.6 | BL13: 0.5
M14: F5 | N14: =BH65 -> Kontorer | P14: 4.15 | Q14: 4 | R14: 4 | S14: 0.6 | T14: 0.5 | U14: D | BG14: F | BH14: F5 | BI14: =Kold!BI14 -> 4 | BJ14: 0.6 | BK14: 0.6 | BL14: 0.5
M15: F6 | N15: =BH66 -> Kontorer | P15: 3.65 | Q15: 2 | R15: 3.3 | S15: 0.4 | T15: 0.2 | U15: G | BG15: G | BH15: F6 | BI15: =Kold!BI15 -> 7 | BJ15: 1 | BK15: 0.4 | BL15: 0.2
M16: F7 | N16: =BH67 -> Undervisning | P16: 3.65 | Q16: 2 | R16: 4.8 | S16: 0.6 | T16: 0.5 | U16: D | BG16: N | BH16: F7 | BI16: =Kold!BI16 -> 4 | BJ16: =INDEX(psi,$BI16,BJ$9) -> 0.6 | BK16: 0.6 | BL16: 0.5
M17: F8 | N17: =BH68 -> Værksted | P17: 3.65 | Q17: 2 | R17: 8.3 | S17: 0.6 | T17: 0.5 | U17: D | BH17: F8 | BI17: =Kold!BI17 -> 4 | BJ17: 0.6 | BK17: 0.6 | BL17: 0.5
M18: F9 | N18: =BH69 -> Butiksarealer | P18: 3.65 | Q18: 2 | R18: 3.3 | S18: 0.2 | T18: 0 | U18: N | BH18: F9 | BI18: =Kold!BI18 -> 8 | BJ18: 0.3 | BK18: 0.2 | BL18: 0
M19: Linielaste (kN/m) | P19: gk | Q19: gfri,k | R19: qk | S19: y1 | T19: y2 | U19: Kategori
M20: L0 | P20: 0 | Q20: 0 | R20: 0
M21: =BG72 -> L1 | N21: Badeværelser | P21: 8 | Q21: 4 | R21: 6 | S21: 0.3 | T21: 0.2 | U21: =BO72 -> A | BH21: L1 | BI21: =Kold!BI21 -> 1 | BJ21: =INDEX(psi,$BI21,BJ$9) -> 0.5 | BK21: 0.3 | BL21: 0.2
M22: L2 | N22: Komprimator | P22: 0 | Q22: 8 | R22: 10 | S22: 0.6 | T22: 0.5 | U22: =BO73 -> D | BH22: L2 | BI22: =Kold!BI22 -> 4 | BJ22: 0.6 | BK22: 0.6 | BL22: 0.5
B23: Etage | C23: Egenvægt i bærelinie | E23: Laste på venstre dækfelt | I23: Laste på højre dækfelt | M23: maksimalværdier | P23: reducerede værdier | S23: minimalværdier
C24: gk | D24: gfri,k | E24: Lv | F24: Fladelast | G24: Linielast | H24: sv | I24: Lh | J24: Fladelast | K24: Linielast | L24: sh | M24: nv | N24: no | O24: nh | P24: nv | Q24: no | R24: nh | S24: nv | T24: no | U24: nh | BG24: Spændvidder | BK24: Fladelaste, venstre dækfelt | BR24: Linielaste, venstre dækfelt | BY24: Fladelaste, højre dækfelt | CF24: Linielaste, højre dækfelt | CM24: Ng | CN24: DNmax (q) | CV24: DNsædv (q) | DD24: Nmax (q) | DL24: Nsædv (q) | DT24: No (q)
C25: (kN/m) | D25: (kN/m) | E25: (m) | H25: (m) | I25: (m) | L25: (m) | M25: (kN/m) | N25: (kN/m) | O25: (kN/m) | P25: (kN/m) | Q25: (kN/m) | R25: (kN/m) | S25: (kN/m) | T25: (kN/m) | U25: (kN/m) | BG25: Lv | BH25: sv | BI25: Lh | BJ25: sh | BL25: gk | BM25: gg | BN25: qk | BO25: yq1 | BP25: yq2 | BQ25: Kategori | BS25: gk | BT25: gg | BU25: qk | BV25: yq1 | BW25: yq2 | BX25: Kategori | BZ25: gk | CA25: gg | CB25: qk | CC25: yq1 | CD25: yq2 | CE25: Kategori | CG25: gk | CH25: gg | CI25: qk | CJ25: yq1 | CK25: yq2 | CL25: Kategori | CN25: A | CO25: B | CP25: C | CQ25: D | CR25: E | CS25: F | CT25: G | CU25: N | CV25: A | CW25: B | CX25: C | CY25: D | CZ25: E | DA25: F | DB25: G | DC25: N | DD25: A | DE25: B | DF25: C | DG25: D | DH25: E | DI25: F | DJ25: G | DK25: N | DL25: A | DM25: B | DN25: C | DO25: D | DP25: E | DQ25: F | DR25: G | DS25: N
B26: =Kold!B26 -> Tag | E26: =Kold!E26 -> 6 | F26: =INDEX($BG$60:$BG$69,BK27,1) -> F3 | G26: =INDEX($BG$71:$BG$73,BR27,1) -> L2 | H26: =Kold!H26 -> 5 | I26: =Kold!I26 -> 13 | J26: =INDEX($BG$60:$BG$69,BY27,1) -> F3 | K26: =INDEX($BG$71:$BG$73,CF27,1) -> L1 | L26: =Kold!L26 -> 2 | M26: =IF(Kold!$BL$44=1,"-",0.5*BG27*(BL27*BM27+BN27*BO27)+IF(E26>0,(BG27-BH27)*(BS27*BT27+BU27*BV27)/BG27,0)) -> - | N26: =IF(Kold!$BL$44=1,"-",CM27+DT27) -> - | O26: =IF(Kold!$BL$44=1,"-",0.5*BI27*(BZ27*CA27+CB27*CC27)+IF(I26>0,(BI27-BJ27)*(CG27*CH27+CI27*CJ27)/BI27)) -> - | P26: =IF(Kold!$BL$44=1,"-",$U$6*$O$6*(0.5*E26*(INDEX(fladelast,BK27,1)+INDEX(fladelast,BK27,2)+INDEX(fladelast,BK27,3)*INDEX(fladelast,BK27,5))+IF(E26>0,(INDEX(linielast,BR27,1)+INDEX(linielast,BR27,2)+INDEX(linielast,BR27,3)*INDEX(linielast,BR27,5))*(E26-H26)/E26,0))) -> - | Q26: =IF(Kold!$BL$44=1,"-",$U$6*$O$6*(C27+D27)) -> - | R26: =IF(Kold!$BL$44=1,"-",$U$6*$O$6*(0.5*I26*(INDEX(fladelast,BY27,1)+INDEX(fladelast,BY27,2)+INDEX(fladelast,BY27,3)*INDEX(fladelast,BY27,5))+IF(I26>0,(INDEX(linielast,CF27,1)+INDEX(linielast,CF27,2)+INDEX(linielast,CF27,3)*INDEX(linielast,CF27,5))*(I26-L26)/I26))) -> - | S26: =IF(Kold!$BL$44=1,"-",$Q$6*(0.5*E26*INDEX(fladelast,BK27,1)+IF(E26>0,INDEX(linielast,BR27,1)*(E26-H26)/E26))) -> - | T26: =IF(Kold!$BL$44=1,"-",$Q$6*C27) -> - | U26: =IF(Kold!$BL$44=1,"-",$Q$6*(0.5*I26*INDEX(fladelast,BY27,1)+IF(I26>0,INDEX(linielast,CF27,1)*(I26-L26)/I26))) -> -
B27: =Kold!B27 -> 13. sal | C27: =Kold!C27 -> 12 | D27: =Kold!D27 -> 5 | E27: =Kold!E27 -> 6 | F27: =INDEX($BG$60:$BG$69,BK28,1) -> F6 | G27: =INDEX($BG$71:$BG$73,BR28,1) -> L1 | H27: =Kold!H27 -> 2 | I27: =Kold!I27 -> 13 | J27: =INDEX($BG$60:$BG$69,BY28,1) -> F1 | K27: =INDEX($BG$71:$BG$73,CF28,1) -> L2 | L27: =Kold!L27 -> 2 | M27: =IF(Kold!$BL$44=1,"-",0.5*BG28*(BL28*BM28+BN28*BO28)+IF(E27>0,(BG28-BH28)*(BS28*BT28+BU28*BV28)/BG28,0)) -> - | N27: =IF(Kold!$BL$44=1,"-",CM28+DT28) -> - | O27: =IF(Kold!$BL$44=1,"-",0.5*BI28*(BZ28*CA28+CB28*CC28)+IF(I27>0,(BI28-BJ28)*(CG28*CH28+CI28*CJ28)/BI28)) -> - | P27: =IF(Kold!$BL$44=1,"-",$U$6*$O$6*(0.5*E27*(INDEX(fladelast,BK28,1)+INDEX(fladelast,BK28,2)+INDEX(fladelast,BK28,3)*INDEX(fladelast,BK28,5))+IF(E27>0,(INDEX(linielast,BR28,1)+INDEX(linielast,BR28,2)+INDEX(linielast,BR28,3)*INDEX(linielast,BR28,5))*(E27-H27)/E27,0))) -> - | Q27: =IF(Kold!$BL$44=1,"-",P26+Q26+R26+$U$6*$O$6*(C28+D28)) -> - | R27: =IF(Kold!$BL$44=1,"-",$U$6*$O$6*(0.5*I27*(INDEX(fladelast,BY28,1)+INDEX(fladelast,BY28,2)+INDEX(fladelast,BY28,3)*INDEX(fladelast,BY28,5))+IF(I27>0,(INDEX(linielast,CF28,1)+INDEX(linielast,CF28,2)+INDEX(linielast,CF28,3)*INDEX(linielast,CF28,5))*(I27-L27)/I27))) -> - | S27: =IF(Kold!$BL$44=1,"-",$Q$6*(0.5*E27*INDEX(fladelast,BK28,1)+IF(E27>0,INDEX(linielast,BR28,1)*(E27-H27)/E27))) -> - | T27: =IF(Kold!$BL$44=1,"-",S26+T26+U26+$Q$6*C28) -> - | U27: =IF(Kold!$BL$44=1,"-",$Q$6*(0.5*I27*INDEX(fladelast,BY28,1)+IF(I27>0,INDEX(linielast,CF28,1)*(I27-L27)/I27))) -> - | BG27: =E26+0.00001 -> 6.00001 | BH27: =H26 -> 5 | BI27: =I26+0.00001 -> 13.00001 | BJ27: =L26 -> 2 | BK27: =Kold!BK27 -> 4 | BL27: =INDEX(fladelast,$BK27,1)+INDEX(fladelast,$BK27,2) -> 5.65 | BM27: =$U$6*$O$6 -> 1 | BN27: =INDEX(fladelast,$BK27,3) -> 2.5 | BO27: =$U$6*INDEX(fladelast,$BK27,4) -> 0.4 | BP27: =INDEX(fladelast,$BK27,5) -> 0.2 | BQ27: =INDEX(fladelast,$BK27,6) -> B | BR27: =Kold!BR27 -> 3 | BS27: =INDEX(linielast,$BR27,1)+INDEX(linielast,$BR27,2) -> 8 | BT27: =$U$6*$O$6 -> 1 | BU27: =INDEX(linielast,$BR27,3) -> 10 | BV27: =$U$6*INDEX(linielast,$BR27,4) -> 0.6 | BW27: =INDEX(linielast,$BR27,5) -> 0.5 | BX27: =INDEX(linielast,$BR27,6) -> D | BY27: =Kold!BY27 -> 4 | BZ27: =INDEX(fladelast,$BY27,1)+INDEX(fladelast,$BY27,2) -> 5.65 | CA27: =$U$6*$O$6 -> 1 | CB27: =INDEX(fladelast,$BY27,3) -> 2.5 | CC27: =$U$6*INDEX(fladelast,$BY27,4) -> 0.4 | CD27: =INDEX(fladelast,$BY27,5) -> 0.2 | CE27: =INDEX(fladelast,$BY27,6) -> B | CF27: =Kold!CF27 -> 2 | CG27: =INDEX(linielast,$CF27,1)+INDEX(linielast,$CF27,2) -> 12 | CH27: =$U$6*$O$6 -> 1 | CI27: =INDEX(linielast,$CF27,3) -> 6 | CJ27: =$U$6*INDEX(linielast,$CF27,4) -> 0.3 | CK27: =INDEX(linielast,$CF27,5) -> 0.2 | CL27: =INDEX(linielast,$CF27,6) -> A | CM27: =(C27+D27)*$U$6*$O$6 -> 17 | CN27: =IF($BQ27=CN$25,0.5*$BG27*$BN27*$BO27,0)+IF(AND($BX27=CN$25,$E26>0),($BG27-$BH27)*$BU27*$BV27/$BG27,0)+IF($CE27=CN$25,0.5*$BI27*$CB27*$CC27,0)+IF(AND($CL27=CN$25,$I26>0),($BI27-$BJ27)*$CI27*$CJ27/$BI27,0) -> 1.523077136 | CO27: 9.50001 | CP27: 0 | CQ27: 1.000008333 | CR27: 0 | CS27: 0 | CT27: 0 | CU27: 0 | CV27: =IF($BQ27=CV$25,0.5*$BG27*$BN27*$BP27,0)+IF(AND($BX27=CV$25,$E26>0),($BG27-$BH27)*$BU27*$BW27/$BG27,0)+IF($CE27=CV$25,0.5*$BI27*$CB27*$CD27,0)+IF(AND($CL27=CV$25,$I26>0),($BI27-$BJ27)*$CI27*$CK27/$BI27,0) -> 1.015384757 | CW27: 4.750005 | CX27: 0 | CY27: 0.8333402778 | CZ27: 0 | DA27: 0 | DB27: 0 | DC27: 0 | DD27: 0 | DE27: 0 | DF27: 0 | DG27: 0 | DH27: 0 | DI27: 0 | DJ27: 0 | DK27: 0 | DL27: 0 | DM27: 0 | DN27: 0 | DO27: 0 | DP27: 0 | DQ27: 0 | DR27: 0 | DS27: 0 | DT27: =IF(DK27>DS27,DK27+SUM(DL27:DR27),DS27+SUM(DD27:DJ27)) -> 0
B28: =Kold!B28 -> 12. sal | C28: =Kold!C28 -> 12 | D28: =Kold!D28 -> 5 | E28: =Kold!E28 -> 6 | F28: F5 | G28: L2 | H28: =Kold!H28 -> 5 | I28: =Kold!I28 -> 13 | J28: F2 | K28: L1 | L28: =Kold!L28 -> 2 | M28: =IF(Kold!$BL$44=1,"-",0.5*BG29*(BL29*BM29+BN29*BO29)+IF(E28>0,(BG29-BH29)*(BS29*BT29+BU29*BV29)/BG29,0)) -> - | N28: =IF(Kold!$BL$44=1,"-",CM29+DT29) -> - | O28: =IF(Kold!$BL$44=1,"-",0.5*BI29*(BZ29*CA29+CB29*CC29)+IF(I28>0,(BI29-BJ29)*(CG29*CH29+CI29*CJ29)/BI29)) -> - | P28: =IF(Kold!$BL$44=1,"-",$U$6*$O$6*(0.5*E28*(INDEX(fladelast,BK29,1)+INDEX(fladelast,BK29,2)+INDEX(fladelast,BK29,3)*INDEX(fladelast,BK29,5))+IF(E28>0,(INDEX(linielast,BR29,1)+INDEX(linielast,BR29,2)+INDEX(linielast,BR29,3)*INDEX(linielast,BR29,5))*(E28-H28)/E28,0))) -> - | Q28: =IF(Kold!$BL$44=1,"-",P27+Q27+R27+$U$6*$O$6*(C29+D29)) -> - | R28: =IF(Kold!$BL$44=1,"-",$U$6*$O$6*(0.5*I28*(INDEX(fladelast,BY29,1)+INDEX(fladelast,BY29,2)+INDEX(fladelast,BY29,3)*INDEX(fladelast,BY29,5))+IF(I28>0,(INDEX(linielast,CF29,1)+INDEX(linielast,CF29,2)+INDEX(linielast,CF29,3)*INDEX(linielast,CF29,5))*(I28-L28)/I28))) -> - | S28: =IF(Kold!$BL$44=1,"-",$Q$6*(0.5*E28*INDEX(fladelast,BK29,1)+IF(E28>0,INDEX(linielast,BR29,1)*(E28-H28)/E28))) -> - | T28: =IF(Kold!$BL$44=1,"-",S27+T27+U27+$Q$6*C29) -> - | U28: =IF(Kold!$BL$44=1,"-",$Q$6*(0.5*I28*INDEX(fladelast,BY29,1)+IF(I28>0,INDEX(linielast,CF29,1)*(I28-L28)/I28))) -> - | BG28: =E27+0.00001 -> 6.00001 | BH28: =H27 -> 2 | BI28: =I27+0.00001 -> 13.00001 | BJ28: =L27 -> 2 | BK28: =Kold!BK28 -> 7 | BL28: 5.65 | BM28: =$U$6*$O$6 -> 1 | BN28: 3.3 | BO28: 0.4 | BP28: 0.2 | BQ28: G | BR28: =Kold!BR28 -> 2 | BS28: 12 | BT28: 1 | BU28: 6 | BV28: 0.3 | BW28: 0.2 | BX28: A | BY28: =Kold!BY28 -> 2 | BZ28: 4.1 | CA28: 1 | CB28: 0.8 | CC28: 0.2 | CD28: 0 | CE28: N | CF28: =Kold!CF28 -> 3 | CG28: 8 | CH28: 1 | CI28: 10 | CJ28: 0.6 | CK28: 0.5 | CL28: D | CM28: =CM27+0.5*BG27*(BL27*BM27)+IF(E26>0,(BG27-BH27)*(BS27*BT27)/BG27)+0.5*BI27*(BZ27*CA27)+IF(I26>0,(BI27-BJ27)*(CG27*CH27)/BI27)+(C28+D28)*$U$6*$O$6 -> 99.16224852 | CN28: 1.200001 | CO28: 0 | CP28: 0 | CQ28: 5.076923787 | CR28: 0 | CS28: 0 | CT28: 3.9600066 | CU28: 1.0400008 | CV28: 0.8000006667 | CW28: 0 | CX28: 0 | CY28: 4.230769822 | CZ28: 0 | DA28: 0 | DB28: 1.9800033 | DC28: 0 | DD28: =MAX(DD27+CV27,DL27+CN27) -> 1.523077136 | DE28: 9.50001 | DF28: 0 | DG28: 1.000008333 | DH28: 0 | DI28: 0 | DJ28: 0 | DK28: =IF(DK27+CU27-DS28>SUM(DD28:DJ28)-SUM(DL28:DR28),DK27+CU27,DS28) -> 0 | DL28: =DL27+CV27 -> 1.015384757 | DM28: 4.750005 | DN28: 0 | DO28: 0.8333402778 | DP28: 0 | DQ28: 0 | DR28: 0 | DS28: 0 | DT28: =IF(DK28>DS28,DK28+SUM(DL28:DR28),DS28+SUM(DD28:DJ28)) -> 12.02309547
B29: =Kold!B29 -> 11. sal | C29: =Kold!C29 -> 12 | D29: =Kold!D29 -> 5 | E29: =Kold!E29 -> 6 | F29: F3 | G29: L1 | H29: =Kold!H29 -> 2 | I29: =Kold!I29 -> 13 | J29: F2 | K29: L2 | L29: =Kold!L29 -> 2 | M29: =IF(Kold!$BL$44=1,"-",0.5*BG30*(BL30*BM30+BN30*BO30)+IF(E29>0,(BG30-BH30)*(BS30*BT30+BU30*BV30)/BG30,0)) -> - | N29: =IF(Kold!$BL$44=1,"-",CM30+DT30) -> - | O29: =IF(Kold!$BL$44=1,"-",0.5*BI30*(BZ30*CA30+CB30*CC30)+IF(I29>0,(BI30-BJ30)*(CG30*CH30+CI30*CJ30)/BI30)) -> - | P29: =IF(Kold!$BL$44=1,"-",$U$6*$O$6*(0.5*E29*(INDEX(fladelast,BK30,1)+INDEX(fladelast,BK30,2)+INDEX(fladelast,BK30,3)*INDEX(fladelast,BK30,5))+IF(E29>0,(INDEX(linielast,BR30,1)+INDEX(linielast,BR30,2)+INDEX(linielast,BR30,3)*INDEX(linielast,BR30,5))*(E29-H29)/E29,0))) -> - | Q29: =IF(Kold!$BL$44=1,"-",P28+Q28+R28+$U$6*$O$6*(C30+D30)) -> - | R29: =IF(Kold!$BL$44=1,"-",$U$6*$O$6*(0.5*I29*(INDEX(fladelast,BY30,1)+INDEX(fladelast,BY30,2)+INDEX(fladelast,BY30,3)*INDEX(fladelast,BY30,5))+IF(I29>0,(INDEX(linielast,CF30,1)+INDEX(linielast,CF30,2)+INDEX(linielast,CF30,3)*INDEX(linielast,CF30,5))*(I29-L29)/I29))) -> - | S29: =IF(Kold!$BL$44=1,"-",$Q$6*(0.5*E29*INDEX(fladelast,BK30,1)+IF(E29>0,INDEX(linielast,BR30,1)*(E29-H29)/E29))) -> - | T29: =IF(Kold!$BL$44=1,"-",S28+T28+U28+$Q$6*C30) -> - | U29: =IF(Kold!$BL$44=1,"-",$Q$6*(0.5*I29*INDEX(fladelast,BY30,1)+IF(I29>0,INDEX(linielast,CF30,1)*(I29-L29)/I29))) -> - | BG29: 6.00001 | BH29: 5 | BI29: 13.00001 | BJ29: 2 | BK29: =Kold!BK29 -> 6 | BL29: 8.15 | BM29: 1 | BN29: 4 | BO29: 0.6 | BP29: 0.5 | BQ29: D | BR29: =Kold!BR29 -> 3 | BS29: 8 | BT29: 1 | BU29: 10 | BV29: 0.6 | BW29: 0.5 | BX29: D | BY29: =Kold!BY29 -> 3 | BZ29: 5.15 | CA29: 1 | CB29: 1.5 | CC29: 0.3 | CD29: 0.2 | CE29: A | CF29: =Kold!CF29 -> 2 | CG29: 12 | CH29: 1 | CI29: 6 | CJ29: 0.3 | CK29: 0.2 | CL29: A | CM29: =CM28+0.5*BG28*(BL28*BM28)+IF(E27>0,(BG28-BH28)*(BS28*BT28)/BG28)+0.5*BI28*(BZ28*CA28)+IF(I27>0,(BI28-BJ28)*(CG28*CH28)/BI28)+(C29+D29)*$U$6*$O$6 -> 174.5315357 | CN29: 4.448079386 | CO29: 0 | CP29: 0 | CQ29: 8.200020333 | CR29: 0 | CS29: 0 | CT29: 0 | CU29: 0 | CV29: 2.965386257 | CW29: 0 | CX29: 0 | CY29: 6.833350278 | CZ29: 0 | DA29: 0 | DB29: 0 | DC29: 0 | DD29: 2.323077803 | DE29: 9.50001 | DF29: 0 | DG29: 5.910264065 | DH29: 0 | DI29: 0 | DJ29: 3.9600066 | DK29: 0 | DL29: 1.815385424 | DM29: 4.750005 | DN29: 0 | DO29: 5.0641101 | DP29: 0 | DQ29: 0 | DR29: 1.9800033 | DS29: 0 | DT29: 21.69335847
B30: =Kold!B30 -> 10. sal | C30: =Kold!C30 -> 12 | D30: =Kold!D30 -> 5 | E30: =Kold!E30 -> 6 | F30: F5 | G30: L2 | H30: =Kold!H30 -> 2 | I30: =Kold!I30 -> 13 | J30: F5 | K30: L1 | L30: =Kold!L30 -> 2 | M30: =IF(Kold!$BL$44=1,"-",0.5*BG31*(BL31*BM31+BN31*BO31)+IF(E30>0,(BG31-BH31)*(BS31*BT31+BU31*BV31)/BG31,0)) -> - | N30: =IF(Kold!$BL$44=1,"-",CM31+DT31) -> - | O30: =IF(Kold!$BL$44=1,"-",0.5*BI31*(BZ31*CA31+CB31*CC31)+IF(I30>0,(BI31-BJ31)*(CG31*CH31+CI31*CJ31)/BI31)) -> - | P30: =IF(Kold!$BL$44=1,"-",$U$6*$O$6*(0.5*E30*(INDEX(fladelast,BK31,1)+INDEX(fladelast,BK31,2)+INDEX(fladelast,BK31,3)*INDEX(fladelast,BK31,5))+IF(E30>0,(INDEX(linielast,BR31,1)+INDEX(linielast,BR31,2)+INDEX(linielast,BR31,3)*INDEX(linielast,BR31,5))*(E30-H30)/E30,0))) -> - | Q30: =IF(Kold!$BL$44=1,"-",P29+Q29+R29+$U$6*$O$6*(C31+D31)) -> - | R30: =IF(Kold!$BL$44=1,"-",$U$6*$O$6*(0.5*I30*(INDEX(fladelast,BY31,1)+INDEX(fladelast,BY31,2)+INDEX(fladelast,BY31,3)*INDEX(fladelast,BY31,5))+IF(I30>0,(INDEX(linielast,CF31,1)+INDEX(linielast,CF31,2)+INDEX(linielast,CF31,3)*INDEX(linielast,CF31,5))*(I30-L30)/I30))) -> - | S30: =IF(Kold!$BL$44=1,"-",$Q$6*(0.5*E30*INDEX(fladelast,BK31,1)+IF(E30>0,INDEX(linielast,BR31,1)*(E30-H30)/E30))) -> - | T30: =IF(Kold!$BL$44=1,"-",S29+T29+U29+$Q$6*C31) -> - | U30: =IF(Kold!$BL$44=1,"-",$Q$6*(0.5*I30*INDEX(fladelast,BY31,1)+IF(I30>0,INDEX(linielast,CF31,1)*(I30-L30)/I30))) -> - | BG30: 6.00001 | BH30: 2 | BI30: 13.00001 | BJ30: 2 | BK30: =Kold!BK30 -> 4 | BL30: 5.65 | BM30: 1 | BN30: 2.5 | BO30: 0.4 | BP30: 0.2 | BQ30: B | BR30: =Kold!BR30 -> 2 | BS30: 12 | BT30: 1 | BU30: 6 | BV30: 0.3 | BW30: 0.2 | BX30: A | BY30: =Kold!BY30 -> 3 | BZ30: 5.15 | CA30: 1 | CB30: 1.5 | CC30: 0.3 | CD30: 0.2 | CE30: A | CF30: =Kold!CF30 -> 3 | CG30: 8 | CH30: 1 | CI30: 10 | CJ30: 0.6 | CK30: 0.5 | CL30: D | CM30: 260.9437942 | CN30: 4.12500325 | CO30: 3.000005 | CP30: 0 | CQ30: 5.076923787 | CR30: 0 | CS30: 0 | CT30: 0 | CU30: 0 | CV30: 2.750002167 | CW30: 1.5000025 | CX30: 0 | CY30: 4.230769822 | CZ30: 0 | DA30: 0 | DB30: 0 | DC30: 0 | DD30: 6.26346481 | DE30: 9.50001 | DF30: 0 | DG30: 13.26413043 | DH30: 0 | DI30: 0 | DJ30: 3.9600066 | DK30: 0 | DL30: 4.780771681 | DM30: 4.750005 | DN30: 0 | DO30: 11.89746038 | DP30: 0 | DQ30: 0 | DR30: 1.9800033 | DS30: 0 | DT30: 32.98761184
B31: =Kold!B31 -> 9. sal | C31: =Kold!C31 -> 12 | D31: =Kold!D31 -> 5 | E31: =Kold!E31 -> 6 | F31: F2 | G31: L2 | H31: =Kold!H31 -> 2 | I31: =Kold!I31 -> 13 | J31: F3 | K31: L2 | L31: =Kold!L31 -> 2 | M31: =IF(Kold!$BL$44=1,"-",0.5*BG32*(BL32*BM32+BN32*BO32)+IF(E31>0,(BG32-BH32)*(BS32*BT32+BU32*BV32)/BG32,0)) -> - | N31: =IF(Kold!$BL$44=1,"-",CM32+DT32) -> - | O31: =IF(Kold!$BL$44=1,"-",0.5*BI32*(BZ32*CA32+CB32*CC32)+IF(I31>0,(BI32-BJ32)*(CG32*CH32+CI32*CJ32)/BI32)) -> - | P31: =IF(Kold!$BL$44=1,"-",$U$6*$O$6*(0.5*E31*(INDEX(fladelast,BK32,1)+INDEX(fladelast,BK32,2)+INDEX(fladelast,BK32,3)*INDEX(fladelast,BK32,5))+IF(E31>0,(INDEX(linielast,BR32,1)+INDEX(linielast,BR32,2)+INDEX(linielast,BR32,3)*INDEX(linielast,BR32,5))*(E31-H31)/E31,0))) -> - | Q31: =IF(Kold!$BL$44=1,"-",P30+Q30+R30+$U$6*$O$6*(C32+D32)) -> - | R31: =IF(Kold!$BL$44=1,"-",$U$6*$O$6*(0.5*I31*(INDEX(fladelast,BY32,1)+INDEX(fladelast,BY32,2)+INDEX(fladelast,BY32,3)*INDEX(fladelast,BY32,5))+IF(I31>0,(INDEX(linielast,CF32,1)+INDEX(linielast,CF32,2)+INDEX(linielast,CF32,3)*INDEX(linielast,CF32,5))*(I31-L31)/I31))) -> - | S31: =IF(Kold!$BL$44=1,"-",$Q$6*(0.5*E31*INDEX(fladelast,BK32,1)+IF(E31>0,INDEX(linielast,BR32,1)*(E31-H31)/E31))) -> - | T31: =IF(Kold!$BL$44=1,"-",S30+T30+U30+$Q$6*C32) -> - | U31: =IF(Kold!$BL$44=1,"-",$Q$6*(0.5*I31*INDEX(fladelast,BY32,1)+IF(I31>0,INDEX(linielast,CF32,1)*(I31-L31)/I31))) -> - | BG31: 6.00001 | BH31: 2 | BI31: 13.00001 | BJ31: 2 | BK31: =Kold!BK31 -> 6 | BL31: 8.15 | BM31: 1 | BN31: 4 | BO31: 0.6 | BP31: 0.5 | BQ31: D | BR31: =Kold!BR31 -> 3 | BS31: 8 | BT31: 1 | BU31: 10 | BV31: 0.6 | BW31: 0.5 | BX31: D | BY31: =Kold!BY31 -> 6 | BZ31: 8.15 | CA31: 1 | CB31: 4 | CC31: 0.6 | CD31: 0.5 | CE31: D | CF31: =Kold!CF31 -> 2 | CG31: 12 | CH31: 1 | CI31: 6 | CJ31: 0.3 | CK31: 0.2 | CL31: A | CM31: 343.1380866 | CN31: 1.523077136 | CO31: 0 | CP31: 0 | CQ31: 26.80002733 | CR31: 0 | CS31: 0 | CT31: 0 | CU31: 0 | CV31: 1.015384757 | CW31: 0 | CX31: 0 | CY31: 22.33335611 | CZ31: 0 | DA31: 0 | DB31: 0 | DC31: 0 | DD31: =MAX(DD30+CV30,DL30+CN30) -> 9.013466977 | DE31: 11.0000125 | DF31: 0 | DG31: 17.49490026 | DH31: 0 | DI31: 0 | DJ31: 3.9600066 | DK31: =IF(DK30+CU30-DS31>SUM(DD31:DJ31)-SUM(DL31:DR31),DK30+CU30,DS31) -> 0 | DL31: 7.530773848 | DM31: 6.2500075 | DN31: 0 | DO31: 16.1282302 | DP31: 0 | DQ31: 0 | DR31: 1.9800033 | DS31: 0 | DT31: 41.46838633
B32: =Kold!B32 -> 8. sal | C32: =Kold!C32 -> 12 | D32: =Kold!D32 -> 5 | E32: =Kold!E32 -> 6 | F32: F6 | G32: L1 | H32: =Kold!H32 -> 2 | I32: =Kold!I32 -> 13 | J32: F3 | K32: L2 | L32: =Kold!L32 -> 2 | M32: =IF(Kold!$BL$44=1,"-",0.5*BG33*(BL33*BM33+BN33*BO33)+IF(E32>0,(BG33-BH33)*(BS33*BT33+BU33*BV33)/BG33,0)) -> - | N32: =IF(Kold!$BL$44=1,"-",CM33+DT33) -> - | O32: =IF(Kold!$BL$44=1,"-",0.5*BI33*(BZ33*CA33+CB33*CC33)+IF(I32>0,(BI33-BJ33)*(CG33*CH33+CI33*CJ33)/BI33)) -> - | P32: =IF(Kold!$BL$44=1,"-",$U$6*$O$6*(0.5*E32*(INDEX(fladelast,BK33,1)+INDEX(fladelast,BK33,2)+INDEX(fladelast,BK33,3)*INDEX(fladelast,BK33,5))+IF(E32>0,(INDEX(linielast,BR33,1)+INDEX(linielast,BR33,2)+INDEX(linielast,BR33,3)*INDEX(linielast,BR33,5))*(E32-H32)/E32,0))) -> - | Q32: =IF(Kold!$BL$44=1,"-",P31+Q31+R31+$U$6*$O$6*(C33+D33)) -> - | R32: =IF(Kold!$BL$44=1,"-",$U$6*$O$6*(0.5*I32*(INDEX(fladelast,BY33,1)+INDEX(fladelast,BY33,2)+INDEX(fladelast,BY33,3)*INDEX(fladelast,BY33,5))+IF(I32>0,(INDEX(linielast,CF33,1)+INDEX(linielast,CF33,2)+INDEX(linielast,CF33,3)*INDEX(linielast,CF33,5))*(I32-L32)/I32))) -> - | S32: =IF(Kold!$BL$44=1,"-",$Q$6*(0.5*E32*INDEX(fladelast,BK33,1)+IF(E32>0,INDEX(linielast,BR33,1)*(E32-H32)/E32))) -> - | T32: =IF(Kold!$BL$44=1,"-",S31+T31+U31+$Q$6*C33) -> - | U32: =IF(Kold!$BL$44=1,"-",$Q$6*(0.5*I32*INDEX(fladelast,BY33,1)+IF(I32>0,INDEX(linielast,CF33,1)*(I32-L32)/I32))) -> - | BG32: 6.00001 | BH32: 2 | BI32: 13.00001 | BJ32: 2 | BK32: =Kold!BK32 -> 3 | BL32: 5.15 | BM32: 1 | BN32: 1.5 | BO32: 0.3 | BP32: 0.2 | BQ32: A | BR32: =Kold!BR32 -> 3 | BS32: 8 | BT32: 1 | BU32: 10 | BV32: 0.6 | BW32: 0.5 | BX32: D | BY32: =Kold!BY32 -> 4 | BZ32: 5.65 | CA32: 1 | CB32: 2.5 | CC32: 0.4 | CD32: 0.2 | CE32: B | CF32: =Kold!CF32 -> 3 | CG32: 8 | CH32: 1 | CI32: 10 | CJ32: 0.6 | CK32: 0.5 | CL32: D | CM32: 453.0503534 | CN32: =IF($BQ32=CN$25,0.5*$BG32*$BN32*$BO32,0)+IF(AND($BX32=CN$25,$E31>0),($BG32-$BH32)*$BU32*$BV32/$BG32,0)+IF($CE32=CN$25,0.5*$BI32*$CB32*$CC32,0)+IF(AND($CL32=CN$25,$I31>0),($BI32-$BJ32)*$CI32*$CJ32/$BI32,0) -> 1.35000225 | CO32: =IF($BQ32=CO$25,0.5*$BG32*$BN32*$BO32,0)+IF(AND($BX32=CO$25,$E31>0),($BG32-$BH32)*$BU32*$BV32/$BG32,0)+IF($CE32=CO$25,0.5*$BI32*$CB32*$CC32,0)+IF(AND($CL32=CO$25,$I31>0),($BI32-$BJ32)*$CI32*$CJ32/$BI32,0) -> 6.500005 | CP32: =IF($BQ32=CP$25,0.5*$BG32*$BN32*$BO32,0)+IF(AND($BX32=CP$25,$E31>0),($BG32-$BH32)*$BU32*$BV32/$BG32,0)+IF($CE32=CP$25,0.5*$BI32*$CB32*$CC32,0)+IF(AND($CL32=CP$25,$I31>0),($BI32-$BJ32)*$CI32*$CJ32/$BI32,0) -> 0 | CQ32: =IF($BQ32=CQ$25,0.5*$BG32*$BN32*$BO32,0)+IF(AND($BX32=CQ$25,$E31>0),($BG32-$BH32)*$BU32*$BV32/$BG32,0)+IF($CE32=CQ$25,0.5*$BI32*$CB32*$CC32,0)+IF(AND($CL32=CQ$25,$I31>0),($BI32-$BJ32)*$CI32*$CJ32/$BI32,0) -> 9.07692712 | CR32: =IF($BQ32=CR$25,0.5*$BG32*$BN32*$BO32,0)+IF(AND($BX32=CR$25,$E31>0),($BG32-$BH32)*$BU32*$BV32/$BG32,0)+IF($CE32=CR$25,0.5*$BI32*$CB32*$CC32,0)+IF(AND($CL32=CR$25,$I31>0),($BI32-$BJ32)*$CI32*$CJ32/$BI32,0) -> 0 | CS32: =IF($BQ32=CS$25,0.5*$BG32*$BN32*$BO32,0)+IF(AND($BX32=CS$25,$E31>0),($BG32-$BH32)*$BU32*$BV32/$BG32,0)+IF($CE32=CS$25,0.5*$BI32*$CB32*$CC32,0)+IF(AND($CL32=CS$25,$I31>0),($BI32-$BJ32)*$CI32*$CJ32/$BI32,0) -> 0 | CT32: =IF($BQ32=CT$25,0.5*$BG32*$BN32*$BO32,0)+IF(AND($BX32=CT$25,$E31>0),($BG32-$BH32)*$BU32*$BV32/$BG32,0)+IF($CE32=CT$25,0.5*$BI32*$CB32*$CC32,0)+IF(AND($CL32=CT$25,$I31>0),($BI32-$BJ32)*$CI32*$CJ32/$BI32,0) -> 0 | CU32: =IF($BQ32=CU$25,0.5*$BG32*$BN32*$BO32,0)+IF(AND($BX32=CU$25,$E31>0),($BG32-$BH32)*$BU32*$BV32/$BG32,0)+IF($CE32=CU$25,0.5*$BI32*$CB32*$CC32,0)+IF(AND($CL32=CU$25,$I31>0),($BI32-$BJ32)*$CI32*$CJ32/$BI32,0) -> 0 | CV32: =IF($BQ32=CV$25,0.5*$BG32*$BN32*$BP32,0)+IF(AND($BX32=CV$25,$E31>0),($BG32-$BH32)*$BU32*$BW32/$BG32,0)+IF($CE32=CV$25,0.5*$BI32*$CB32*$CD32,0)+IF(AND($CL32=CV$25,$I31>0),($BI32-$BJ32)*$CI32*$CK32/$BI32,0) -> 0.9000015 | CW32: =IF($BQ32=CW$25,0.5*$BG32*$BN32*$BP32,0)+IF(AND($BX32=CW$25,$E31>0),($BG32-$BH32)*$BU32*$BW32/$BG32,0)+IF($CE32=CW$25,0.5*$BI32*$CB32*$CD32,0)+IF(AND($CL32=CW$25,$I31>0),($BI32-$BJ32)*$CI32*$CK32/$BI32,0) -> 3.2500025 | CX32: =IF($BQ32=CX$25,0.5*$BG32*$BN32*$BP32,0)+IF(AND($BX32=CX$25,$E31>0),($BG32-$BH32)*$BU32*$BW32/$BG32,0)+IF($CE32=CX$25,0.5*$BI32*$CB32*$CD32,0)+IF(AND($CL32=CX$25,$I31>0),($BI32-$BJ32)*$CI32*$CK32/$BI32,0) -> 0 | CY32: =IF($BQ32=CY$25,0.5*$BG32*$BN32*$BP32,0)+IF(AND($BX32=CY$25,$E31>0),($BG32-$BH32)*$BU32*$BW32/$BG32,0)+IF($CE32=CY$25,0.5*$BI32*$CB32*$CD32,0)+IF(AND($CL32=CY$25,$I31>0),($BI32-$BJ32)*$CI32*$CK32/$BI32,0) -> 7.564105934 | CZ32: =IF($BQ32=CZ$25,0.5*$BG32*$BN32*$BP32,0)+IF(AND($BX32=CZ$25,$E31>0),($BG32-$BH32)*$BU32*$BW32/$BG32,0)+IF($CE32=CZ$25,0.5*$BI32*$CB32*$CD32,0)+IF(AND($CL32=CZ$25,$I31>0),($BI32-$BJ32)*$CI32*$CK32/$BI32,0) -> 0 | DA32: =IF($BQ32=DA$25,0.5*$BG32*$BN32*$BP32,0)+IF(AND($BX32=DA$25,$E31>0),($BG32-$BH32)*$BU32*$BW32/$BG32,0)+IF($CE32=DA$25,0.5*$BI32*$CB32*$CD32,0)+IF(AND($CL32=DA$25,$I31>0),($BI32-$BJ32)*$CI32*$CK32/$BI32,0) -> 0 | DB32: =IF($BQ32=DB$25,0.5*$BG32*$BN32*$BP32,0)+IF(AND($BX32=DB$25,$E31>0),($BG32-$BH32)*$BU32*$BW32/$BG32,0)+IF($CE32=DB$25,0.5*$BI32*$CB32*$CD32,0)+IF(AND($CL32=DB$25,$I31>0),($BI32-$BJ32)*$CI32*$CK32/$BI32,0) -> 0 | DC32: =IF($BQ32=DC$25,0.5*$BG32*$BN32*$BP32,0)+IF(AND($BX32=DC$25,$E31>0),($BG32-$BH32)*$BU32*$BW32/$BG32,0)+IF($CE32=DC$25,0.5*$BI32*$CB32*$CD32,0)+IF(AND($CL32=DC$25,$I31>0),($BI32-$BJ32)*$CI32*$CK32/$BI32,0) -> 0 | DD32: =MAX(DD31+CV31,DL31+CN31) -> 10.02885173 | DE32: =MAX(DE31+CW31,DM31+CO31) -> 11.0000125 | DF32: =MAX(DF31+CX31,DN31+CP31) -> 0 | DG32: =MAX(DG31+CY31,DO31+CQ31) -> 42.92825753 | DH32: =MAX(DH31+CZ31,DP31+CR31) -> 0 | DI32: =MAX(DI31+DA31,DQ31+CS31) -> 0 | DJ32: =MAX(DJ31+DB31,DR31+CT31) -> 3.9600066 | DK32: =IF(DK31+CU31-DS32>SUM(DD32:DJ32)-SUM(DL32:DR32),DK31+CU31,DS32) -> 0 | DL32: =DL31+CV31 -> 8.546158606 | DM32: =DM31+CW31 -> 6.2500075 | DN32: =DN31+CX31 -> 0 | DO32: =DO31+CY31 -> 38.46158631 | DP32: =DP31+CZ31 -> 0 | DQ32: =DQ31+DA31 -> 0 | DR32: =DR31+DB31 -> 1.9800033 | DS32: =DS31+DC31 -> 0 | DT32: 67.91712837
B33: =Kold!B33 -> 7. sal | C33: =Kold!C33 -> 12 | D33: =Kold!D33 -> 5 | E33: =Kold!E33 -> 6 | F33: F1 | G33: L1 | H33: =Kold!H33 -> 2 | I33: =Kold!I33 -> 13 | J33: F5 | K33: L1 | L33: =Kold!L33 -> 2 | M33: =IF(Kold!$BL$44=1,"-",0.5*BG34*(BL34*BM34+BN34*BO34)+IF(E33>0,(BG34-BH34)*(BS34*BT34+BU34*BV34)/BG34,0)) -> - | N33: =IF(Kold!$BL$44=1,"-",CM34+DT34) -> - | O33: =IF(Kold!$BL$44=1,"-",0.5*BI34*(BZ34*CA34+CB34*CC34)+IF(I33>0,(BI34-BJ34)*(CG34*CH34+CI34*CJ34)/BI34)) -> - | P33: =IF(Kold!$BL$44=1,"-",$U$6*$O$6*(0.5*E33*(INDEX(fladelast,BK34,1)+INDEX(fladelast,BK34,2)+INDEX(fladelast,BK34,3)*INDEX(fladelast,BK34,5))+IF(E33>0,(INDEX(linielast,BR34,1)+INDEX(linielast,BR34,2)+INDEX(linielast,BR34,3)*INDEX(linielast,BR34,5))*(E33-H33)/E33,0))) -> - | Q33: =IF(Kold!$BL$44=1,"-",P32+Q32+R32+$U$6*$O$6*(C34+D34)) -> - | R33: =IF(Kold!$BL$44=1,"-",$U$6*$O$6*(0.5*I33*(INDEX(fladelast,BY34,1)+INDEX(fladelast,BY34,2)+INDEX(fladelast,BY34,3)*INDEX(fladelast,BY34,5))+IF(I33>0,(INDEX(linielast,CF34,1)+INDEX(linielast,CF34,2)+INDEX(linielast,CF34,3)*INDEX(linielast,CF34,5))*(I33-L33)/I33))) -> - | S33: =IF(Kold!$BL$44=1,"-",$Q$6*(0.5*E33*INDEX(fladelast,BK34,1)+IF(E33>0,INDEX(linielast,BR34,1)*(E33-H33)/E33))) -> - | T33: =IF(Kold!$BL$44=1,"-",S32+T32+U32+$Q$6*C34) -> - | U33: =IF(Kold!$BL$44=1,"-",$Q$6*(0.5*I33*INDEX(fladelast,BY34,1)+IF(I33>0,INDEX(linielast,CF34,1)*(I33-L33)/I33))) -> - | BG33: 6.00001 | BH33: 2 | BI33: 13.00001 | BJ33: 2 | BK33: =Kold!BK33 -> 7 | BL33: 5.65 | BM33: 1 | BN33: 3.3 | BO33: 0.4 | BP33: 0.2 | BQ33: G | BR33: =Kold!BR33 -> 2 | BS33: 12 | BT33: 1 | BU33: 6 | BV33: 0.3 | BW33: 0.2 | BX33: A | BY33: =Kold!BY33 -> 4 | BZ33: 5.65 | CA33: 1 | CB33: 2.5 | CC33: 0.4 | CD33: 0.2 | CE33: B | CF33: =Kold!CF33 -> 3 | CG33: 8 | CH33: 1 | CI33: 10 | CJ33: 0.6 | CK33: 0.5 | CL33: D | CM33: 534.3279769 | CN33: 1.200001 | CO33: 6.500005 | CP33: 0 | CQ33: 5.076923787 | CR33: 0 | CS33: 0 | CT33: 3.9600066 | CU33: 0 | CV33: 0.8000006667 | CW33: 3.2500025 | CX33: 0 | CY33: 4.230769822 | CZ33: 0 | DA33: 0 | DB33: 1.9800033 | DC33: 0 | DD33: 10.92885323 | DE33: 14.250015 | DF33: 0 | DG33: 50.49236347 | DH33: 0 | DI33: 0 | DJ33: 3.9600066 | DK33: 0 | DL33: 9.446160106 | DM33: 9.50001 | DN33: 0 | DO33: 46.02569225 | DP33: 0 | DQ33: 0 | DR33: 1.9800033 | DS33: 0 | DT33: 79.6312383
B34: =Kold!B34 -> 6. sal | C34: =Kold!C34 -> 12 | D34: =Kold!D34 -> 5 | E34: =Kold!E34 -> 6 | F34: F6 | G34: L1 | H34: =Kold!H34 -> 2 | I34: =Kold!I34 -> 13 | J34: F4 | K34: L1 | L34: =Kold!L34 -> 2 | M34: =IF(Kold!$BL$44=1,"-",0.5*BG35*(BL35*BM35+BN35*BO35)+IF(E34>0,(BG35-BH35)*(BS35*BT35+BU35*BV35)/BG35,0)) -> - | N34: =IF(Kold!$BL$44=1,"-",CM35+DT35) -> - | O34: =IF(Kold!$BL$44=1,"-",0.5*BI35*(BZ35*CA35+CB35*CC35)+IF(I34>0,(BI35-BJ35)*(CG35*CH35+CI35*CJ35)/BI35)) -> - | P34: =IF(Kold!$BL$44=1,"-",$U$6*$O$6*(0.5*E34*(INDEX(fladelast,BK35,1)+INDEX(fladelast,BK35,2)+INDEX(fladelast,BK35,3)*INDEX(fladelast,BK35,5))+IF(E34>0,(INDEX(linielast,BR35,1)+INDEX(linielast,BR35,2)+INDEX(linielast,BR35,3)*INDEX(linielast,BR35,5))*(E34-H34)/E34,0))) -> - | Q34: =IF(Kold!$BL$44=1,"-",P33+Q33+R33+$U$6*$O$6*(C35+D35)) -> - | R34: =IF(Kold!$BL$44=1,"-",$U$6*$O$6*(0.5*I34*(INDEX(fladelast,BY35,1)+INDEX(fladelast,BY35,2)+INDEX(fladelast,BY35,3)*INDEX(fladelast,BY35,5))+IF(I34>0,(INDEX(linielast,CF35,1)+INDEX(linielast,CF35,2)+INDEX(linielast,CF35,3)*INDEX(linielast,CF35,5))*(I34-L34)/I34))) -> - | S34: =IF(Kold!$BL$44=1,"-",$Q$6*(0.5*E34*INDEX(fladelast,BK35,1)+IF(E34>0,INDEX(linielast,BR35,1)*(E34-H34)/E34))) -> - | T34: =IF(Kold!$BL$44=1,"-",S33+T33+U33+$Q$6*C35) -> - | U34: =IF(Kold!$BL$44=1,"-",$Q$6*(0.5*I34*INDEX(fladelast,BY35,1)+IF(I34>0,INDEX(linielast,CF35,1)*(I34-L34)/I34))) -> - | BG34: 6.00001 | BH34: 2 | BI34: 13.00001 | BJ34: 2 | BK34: =Kold!BK34 -> 2 | BL34: 4.1 | BM34: 1 | BN34: 0.8 | BO34: 0.2 | BP34: 0 | BQ34: N | BR34: =Kold!BR34 -> 2 | BS34: 12 | BT34: 1 | BU34: 6 | BV34: 0.3 | BW34: 0.2 | BX34: A | BY34: =Kold!BY34 -> 6 | BZ34: 8.15 | CA34: 1 | CB34: 4 | CC34: 0.6 | CD34: 0.5 | CE34: D | CF34: =Kold!CF34 -> 2 | CG34: 12 | CH34: 1 | CI34: 6 | CJ34: 0.3 | CK34: 0.2 | CL34: A | CM34: 619.7722718 | CN34: 2.723078136 | CO34: 0 | CP34: 0 | CQ34: 15.600012 | CR34: 0 | CS34: 0 | CT34: 0 | CU34: 0.4800008 | CV34: 1.815385424 | CW34: 0 | CX34: 0 | CY34: 13.00001 | CZ34: 0 | DA34: 0 | DB34: 0 | DC34: 0 | DD34: 11.7288539 | DE34: 17.5000175 | DF34: 0 | DG34: 54.72313329 | DH34: 0 | DI34: 0 | DJ34: 5.9400099 | DK34: 0 | DL34: 10.24616077 | DM34: 12.7500125 | DN34: 0 | DO34: 50.25646207 | DP34: 0 | DQ34: 0 | DR34: 3.9600066 | DS34: 0 | DT34: 89.89201459
B35: =Kold!B35 -> 5. sal | C35: =Kold!C35 -> 12 | D35: =Kold!D35 -> 5 | E35: =Kold!E35 -> 6 | F35: F6 | G35: L1 | H35: =Kold!H35 -> 2 | I35: =Kold!I35 -> 13 | J35: F7 | K35: L1 | L35: =Kold!L35 -> 2 | M35: =IF(Kold!$BL$44=1,"-",0.5*BG36*(BL36*BM36+BN36*BO36)+IF(E35>0,(BG36-BH36)*(BS36*BT36+BU36*BV36)/BG36,0)) -> - | N35: =IF(Kold!$BL$44=1,"-",CM36+DT36) -> - | O35: =IF(Kold!$BL$44=1,"-",0.5*BI36*(BZ36*CA36+CB36*CC36)+IF(I35>0,(BI36-BJ36)*(CG36*CH36+CI36*CJ36)/BI36)) -> - | P35: =IF(Kold!$BL$44=1,"-",$U$6*$O$6*(0.5*E35*(INDEX(fladelast,BK36,1)+INDEX(fladelast,BK36,2)+INDEX(fladelast,BK36,3)*INDEX(fladelast,BK36,5))+IF(E35>0,(INDEX(linielast,BR36,1)+INDEX(linielast,BR36,2)+INDEX(linielast,BR36,3)*INDEX(linielast,BR36,5))*(E35-H35)/E35,0))) -> - | Q35: =IF(Kold!$BL$44=1,"-",P34+Q34+R34+$U$6*$O$6*(C36+D36)) -> - | R35: =IF(Kold!$BL$44=1,"-",$U$6*$O$6*(0.5*I35*(INDEX(fladelast,BY36,1)+INDEX(fladelast,BY36,2)+INDEX(fladelast,BY36,3)*INDEX(fladelast,BY36,5))+IF(I35>0,(INDEX(linielast,CF36,1)+INDEX(linielast,CF36,2)+INDEX(linielast,CF36,3)*INDEX(linielast,CF36,5))*(I35-L35)/I35))) -> - | S35: =IF(Kold!$BL$44=1,"-",$Q$6*(0.5*E35*INDEX(fladelast,BK36,1)+IF(E35>0,INDEX(linielast,BR36,1)*(E35-H35)/E35))) -> - | T35: =IF(Kold!$BL$44=1,"-",S34+T34+U34+$Q$6*C36) -> - | U35: =IF(Kold!$BL$44=1,"-",$Q$6*(0.5*I35*INDEX(fladelast,BY36,1)+IF(I35>0,INDEX(linielast,CF36,1)*(I35-L35)/I35))) -> - | BG35: 6.00001 | BH35: 2 | BI35: 13.00001 | BJ35: 2 | BK35: =Kold!BK35 -> 7 | BL35: 5.65 | BM35: 1 | BN35: 3.3 | BO35: 0.4 | BP35: 0.2 | BQ35: G | BR35: =Kold!BR35 -> 2 | BS35: 12 | BT35: 1 | BU35: 6 | BV35: 0.3 | BW35: 0.2 | BX35: A | BY35: =Kold!BY35 -> 5 | BZ35: 5.65 | CA35: 1 | CB35: 7.5 | CC35: 0.6 | CD35: 0.5 | CE35: D | CF35: =Kold!CF35 -> 2 | CG35: 12 | CH35: 1 | CI35: 6 | CJ35: 0.3 | CK35: 0.2 | CL35: A | CM35: 720.2011873 | CN35: 2.723078136 | CO35: 0 | CP35: 0 | CQ35: 29.2500225 | CR35: 0 | CS35: 0 | CT35: 3.9600066 | CU35: 0 | CV35: 1.815385424 | CW35: 0 | CX35: 0 | CY35: 24.37501875 | CZ35: 0 | DA35: 0 | DB35: 1.9800033 | DC35: 0 | DD35: 13.54423932 | DE35: 17.5000175 | DF35: 0 | DG35: 67.72314329 | DH35: 0 | DI35: 0 | DJ35: 5.9400099 | DK35: 0 | DL35: 12.0615462 | DM35: 12.7500125 | DN35: 0 | DO35: 63.25647207 | DP35: 0 | DQ35: 0 | DR35: 3.9600066 | DS35: 0 | DT35: 104.70741
B36: =Kold!B36 -> 4. sal | C36: =Kold!C36 -> 12 | D36: =Kold!D36 -> 5 | E36: =Kold!E36 -> 6 | F36: F6 | G36: L2 | H36: =Kold!H36 -> 2 | I36: =Kold!I36 -> 13 | J36: F2 | K36: L1 | L36: =Kold!L36 -> 2 | M36: =IF(Kold!$BL$44=1,"-",0.5*BG37*(BL37*BM37+BN37*BO37)+IF(E36>0,(BG37-BH37)*(BS37*BT37+BU37*BV37)/BG37,0)) -> - | N36: =IF(Kold!$BL$44=1,"-",CM37+DT37) -> - | O36: =IF(Kold!$BL$44=1,"-",0.5*BI37*(BZ37*CA37+CB37*CC37)+IF(I36>0,(BI37-BJ37)*(CG37*CH37+CI37*CJ37)/BI37)) -> - | P36: =IF(Kold!$BL$44=1,"-",$U$6*$O$6*(0.5*E36*(INDEX(fladelast,BK37,1)+INDEX(fladelast,BK37,2)+INDEX(fladelast,BK37,3)*INDEX(fladelast,BK37,5))+IF(E36>0,(INDEX(linielast,BR37,1)+INDEX(linielast,BR37,2)+INDEX(linielast,BR37,3)*INDEX(linielast,BR37,5))*(E36-H36)/E36,0))) -> - | Q36: =IF(Kold!$BL$44=1,"-",P35+Q35+R35+$U$6*$O$6*(C37+D37)) -> - | R36: =IF(Kold!$BL$44=1,"-",$U$6*$O$6*(0.5*I36*(INDEX(fladelast,BY37,1)+INDEX(fladelast,BY37,2)+INDEX(fladelast,BY37,3)*INDEX(fladelast,BY37,5))+IF(I36>0,(INDEX(linielast,CF37,1)+INDEX(linielast,CF37,2)+INDEX(linielast,CF37,3)*INDEX(linielast,CF37,5))*(I36-L36)/I36))) -> - | S36: =IF(Kold!$BL$44=1,"-",$Q$6*(0.5*E36*INDEX(fladelast,BK37,1)+IF(E36>0,INDEX(linielast,BR37,1)*(E36-H36)/E36))) -> - | T36: =IF(Kold!$BL$44=1,"-",S35+T35+U35+$Q$6*C37) -> - | U36: =IF(Kold!$BL$44=1,"-",$Q$6*(0.5*I36*INDEX(fladelast,BY37,1)+IF(I36>0,INDEX(linielast,CF37,1)*(I36-L36)/I36))) -> - | BG36: 6.00001 | BH36: 2 | BI36: 13.00001 | BJ36: 2 | BK36: =Kold!BK36 -> 7 | BL36: 5.65 | BM36: 1 | BN36: 3.3 | BO36: 0.4 | BP36: 0.2 | BQ36: G | BR36: =Kold!BR36 -> 2 | BS36: 12 | BT36: 1 | BU36: 6 | BV36: 0.3 | BW36: 0.2 | BX36: A | BY36: =Kold!BY36 -> 8 | BZ36: 5.65 | CA36: 1 | CB36: 4.8 | CC36: 0.6 | CD36: 0.5 | CE36: D | CF36: =Kold!CF36 -> 2 | CG36: 12 | CH36: 1 | CI36: 6 | CJ36: 0.3 | CK36: 0.2 | CL36: A | CM36: 809.030098 | CN36: 2.723078136 | CO36: 0 | CP36: 0 | CQ36: 18.7200144 | CR36: 0 | CS36: 0 | CT36: 3.9600066 | CU36: 0 | CV36: 1.815385424 | CW36: 0 | CX36: 0 | CY36: 15.600012 | CZ36: 0 | DA36: 0 | DB36: 1.9800033 | DC36: 0 | DD36: 15.35962475 | DE36: 17.5000175 | DF36: 0 | DG36: 92.50649457 | DH36: 0 | DI36: 0 | DJ36: 7.9200132 | DK36: 0 | DL36: 13.87693162 | DM36: 12.7500125 | DN36: 0 | DO36: 87.63149082 | DP36: 0 | DQ36: 0 | DR36: 5.9400099 | DS36: 0 | DT36: 133.28615
B37: =Kold!B37 -> 3. sal | C37: =Kold!C37 -> 12 | D37: =Kold!D37 -> 5 | E37: =Kold!E37 -> 6 | F37: F5 | G37: L1 | H37: =Kold!H37 -> 2 | I37: =Kold!I37 -> 13 | J37: F2 | K37: L2 | L37: =Kold!L37 -> 2 | M37: =IF(Kold!$BL$44=1,"-",0.5*BG38*(BL38*BM38+BN38*BO38)+IF(E37>0,(BG38-BH38)*(BS38*BT38+BU38*BV38)/BG38,0)) -> - | N37: =IF(Kold!$BL$44=1,"-",CM38+DT38) -> - | O37: =IF(Kold!$BL$44=1,"-",0.5*BI38*(BZ38*CA38+CB38*CC38)+IF(I37>0,(BI38-BJ38)*(CG38*CH38+CI38*CJ38)/BI38)) -> - | P37: =IF(Kold!$BL$44=1,"-",$U$6*$O$6*(0.5*E37*(INDEX(fladelast,BK38,1)+INDEX(fladelast,BK38,2)+INDEX(fladelast,BK38,3)*INDEX(fladelast,BK38,5))+IF(E37>0,(INDEX(linielast,BR38,1)+INDEX(linielast,BR38,2)+INDEX(linielast,BR38,3)*INDEX(linielast,BR38,5))*(E37-H37)/E37,0))) -> - | Q37: =IF(Kold!$BL$44=1,"-",P36+Q36+R36+$U$6*$O$6*(C38+D38)) -> - | R37: =IF(Kold!$BL$44=1,"-",$U$6*$O$6*(0.5*I37*(INDEX(fladelast,BY38,1)+INDEX(fladelast,BY38,2)+INDEX(fladelast,BY38,3)*INDEX(fladelast,BY38,5))+IF(I37>0,(INDEX(linielast,CF38,1)+INDEX(linielast,CF38,2)+INDEX(linielast,CF38,3)*INDEX(linielast,CF38,5))*(I37-L37)/I37))) -> - | S37: =IF(Kold!$BL$44=1,"-",$Q$6*(0.5*E37*INDEX(fladelast,BK38,1)+IF(E37>0,INDEX(linielast,BR38,1)*(E37-H37)/E37))) -> - | T37: =IF(Kold!$BL$44=1,"-",S36+T36+U36+$Q$6*C38) -> - | U37: =IF(Kold!$BL$44=1,"-",$Q$6*(0.5*I37*INDEX(fladelast,BY38,1)+IF(I37>0,INDEX(linielast,CF38,1)*(I37-L37)/I37))) -> - | BG37: 6.00001 | BH37: 2 | BI37: 13.00001 | BJ37: 2 | BK37: =Kold!BK37 -> 7 | BL37: 5.65 | BM37: 1 | BN37: 3.3 | BO37: 0.4 | BP37: 0.2 | BQ37: G | BR37: =Kold!BR37 -> 3 | BS37: 8 | BT37: 1 | BU37: 10 | BV37: 0.6 | BW37: 0.5 | BX37: D | BY37: =Kold!BY37 -> 3 | BZ37: 5.15 | CA37: 1 | CB37: 1.5 | CC37: 0.3 | CD37: 0.2 | CE37: A | CF37: =Kold!CF37 -> 2 | CG37: 12 | CH37: 1 | CI37: 6 | CJ37: 0.3 | CK37: 0.2 | CL37: A | CM37: 897.8590088 | CN37: 4.448079386 | CO37: 0 | CP37: 0 | CQ37: 4.000003333 | CR37: 0 | CS37: 0 | CT37: 3.9600066 | CU37: 0 | CV37: 2.965386257 | CW37: 0 | CX37: 0 | CY37: 3.333336111 | CZ37: 0 | DA37: 0 | DB37: 1.9800033 | DC37: 0 | DD37: 17.17501017 | DE37: 17.5000175 | DF37: 0 | DG37: 108.1065066 | DH37: 0 | DI37: 0 | DJ37: 9.9000165 | DK37: 0 | DL37: 15.69231704 | DM37: 12.7500125 | DN37: 0 | DO37: 103.2315028 | DP37: 0 | DQ37: 0 | DR37: 7.9200132 | DS37: 0 | DT37: 152.6815507
B38: =Kold!B38 -> 2. sal | C38: =Kold!C38 -> 12 | D38: =Kold!D38 -> 5 | E38: =Kold!E38 -> 6 | F38: F5 | G38: L1 | H38: =Kold!H38 -> 2 | I38: =Kold!I38 -> 13 | J38: F3 | K38: L1 | L38: =Kold!L38 -> 2 | M38: =IF(Kold!$BL$44=1,"-",0.5*BG39*(BL39*BM39+BN39*BO39)+IF(E38>0,(BG39-BH39)*(BS39*BT39+BU39*BV39)/BG39,0)) -> - | N38: =IF(Kold!$BL$44=1,"-",CM39+DT39) -> - | O38: =IF(Kold!$BL$44=1,"-",0.5*BI39*(BZ39*CA39+CB39*CC39)+IF(I38>0,(BI39-BJ39)*(CG39*CH39+CI39*CJ39)/BI39)) -> - | P38: =IF(Kold!$BL$44=1,"-",$U$6*$O$6*(0.5*E38*(INDEX(fladelast,BK39,1)+INDEX(fladelast,BK39,2)+INDEX(fladelast,BK39,3)*INDEX(fladelast,BK39,5))+IF(E38>0,(INDEX(linielast,BR39,1)+INDEX(linielast,BR39,2)+INDEX(linielast,BR39,3)*INDEX(linielast,BR39,5))*(E38-H38)/E38,0))) -> - | Q38: =IF(Kold!$BL$44=1,"-",P37+Q37+R37+$U$6*$O$6*(C39+D39)) -> - | R38: =IF(Kold!$BL$44=1,"-",$U$6*$O$6*(0.5*I38*(INDEX(fladelast,BY39,1)+INDEX(fladelast,BY39,2)+INDEX(fladelast,BY39,3)*INDEX(fladelast,BY39,5))+IF(I38>0,(INDEX(linielast,CF39,1)+INDEX(linielast,CF39,2)+INDEX(linielast,CF39,3)*INDEX(linielast,CF39,5))*(I38-L38)/I38))) -> - | S38: =IF(Kold!$BL$44=1,"-",$Q$6*(0.5*E38*INDEX(fladelast,BK39,1)+IF(E38>0,INDEX(linielast,BR39,1)*(E38-H38)/E38))) -> - | T38: =IF(Kold!$BL$44=1,"-",S37+T37+U37+$Q$6*C39) -> - | U38: =IF(Kold!$BL$44=1,"-",$Q$6*(0.5*I38*INDEX(fladelast,BY39,1)+IF(I38>0,INDEX(linielast,CF39,1)*(I38-L38)/I38))) -> - | W38: NB: Resultaterne skal altid kontrolleres af ansvarlig statiker | BG38: 6.00001 | BH38: 2 | BI38: 13.00001 | BJ38: 2 | BK38: =Kold!BK38 -> 6 | BL38: 8.15 | BM38: 1 | BN38: 4 | BO38: 0.6 | BP38: 0.5 | BQ38: D | BR38: =Kold!BR38 -> 2 | BS38: 12 | BT38: 1 | BU38: 6 | BV38: 0.3 | BW38: 0.2 | BX38: A | BY38: =Kold!BY38 -> 3 | BZ38: 5.15 | CA38: 1 | CB38: 1.5 | CC38: 0.3 | CD38: 0.2 | CE38: A | CF38: =Kold!CF38 -> 3 | CG38: 8 | CH38: 1 | CI38: 10 | CJ38: 0.6 | CK38: 0.5 | CL38: D | CM38: 980.7712481 | CN38: 4.12500325 | CO38: 0 | CP38: 0 | CQ38: 12.27693579 | CR38: 0 | CS38: 0 | CT38: 0 | CU38: 0 | CV38: 2.750002167 | CW38: 0 | CX38: 0 | CY38: 10.23077982 | CZ38: 0 | DA38: 0 | DB38: 0 | DC38: 0 | DD38: 20.14039643 | DE38: 17.5000175 | DF38: 0 | DG38: 111.4398427 | DH38: 0 | DI38: 0 | DJ38: 11.8800198 | DK38: 0 | DL38: 18.6577033 | DM38: 12.7500125 | DN38: 0 | DO38: 106.5648389 | DP38: 0 | DQ38: 0 | DR38: 9.9000165 | DS38: 0 | DT38: 160.9602764
B39: =Kold!B39 -> 1. sal | C39: =Kold!C39 -> 12 | D39: =Kold!D39 -> 5 | E39: =Kold!E39 -> 6 | F39: F4 | G39: L1 | H39: =Kold!H39 -> 2 | I39: =Kold!I39 -> 13 | J39: F5 | K39: L1 | L39: =Kold!L39 -> 2 | M39: =IF(Kold!$BL$44=1,"-",0.5*BG40*(BL40*BM40+BN40*BO40)+IF(E39>0,(BG40-BH40)*(BS40*BT40+BU40*BV40)/BG40,0)) -> - | N39: =IF(Kold!$BL$44=1,"-",CM40+DT40) -> - | O39: =IF(Kold!$BL$44=1,"-",0.5*BI40*(BZ40*CA40+CB40*CC40)+IF(I39>0,(BI40-BJ40)*(CG40*CH40+CI40*CJ40)/BI40)) -> - | P39: =IF(Kold!$BL$44=1,"-",$U$6*$O$6*(0.5*E39*(INDEX(fladelast,BK40,1)+INDEX(fladelast,BK40,2)+INDEX(fladelast,BK40,3)*INDEX(fladelast,BK40,5))+IF(E39>0,(INDEX(linielast,BR40,1)+INDEX(linielast,BR40,2)+INDEX(linielast,BR40,3)*INDEX(linielast,BR40,5))*(E39-H39)/E39,0))) -> - | Q39: =IF(Kold!$BL$44=1,"-",P38+Q38+R38+$U$6*$O$6*(C40+D40)) -> - | R39: =IF(Kold!$BL$44=1,"-",$U$6*$O$6*(0.5*I39*(INDEX(fladelast,BY40,1)+INDEX(fladelast,BY40,2)+INDEX(fladelast,BY40,3)*INDEX(fladelast,BY40,5))+IF(I39>0,(INDEX(linielast,CF40,1)+INDEX(linielast,CF40,2)+INDEX(linielast,CF40,3)*INDEX(linielast,CF40,5))*(I39-L39)/I39))) -> - | S39: =IF(Kold!$BL$44=1,"-",$Q$6*(0.5*E39*INDEX(fladelast,BK40,1)+IF(E39>0,INDEX(linielast,BR40,1)*(E39-H39)/E39))) -> - | T39: =IF(Kold!$BL$44=1,"-",S38+T38+U38+$Q$6*C40) -> - | U39: =IF(Kold!$BL$44=1,"-",$Q$6*(0.5*I39*INDEX(fladelast,BY40,1)+IF(I39>0,INDEX(linielast,CF40,1)*(I39-L39)/I39))) -> - | BG39: 6.00001 | BH39: 2 | BI39: 13.00001 | BJ39: 2 | BK39: =Kold!BK39 -> 6 | BL39: 8.15 | BM39: 1 | BN39: 4 | BO39: 0.6 | BP39: 0.5 | BQ39: D | BR39: =Kold!BR39 -> 2 | BS39: 12 | BT39: 1 | BU39: 6 | BV39: 0.3 | BW39: 0.2 | BX39: A | BY39: =Kold!BY39 -> 4 | BZ39: 5.65 | CA39: 1 | CB39: 2.5 | CC39: 0.4 | CD39: 0.2 | CE39: B | CF39: =Kold!CF39 -> 2 | CG39: 12 | CH39: 1 | CI39: 6 | CJ39: 0.3 | CK39: 0.2 | CL39: A | CM39: 1070.465553 | CN39: 2.723078136 | CO39: 6.500005 | CP39: 0 | CQ39: 7.200012 | CR39: 0 | CS39: 0 | CT39: 0 | CU39: 0 | CV39: 1.815385424 | CW39: 3.2500025 | CX39: 0 | CY39: 6.00001 | CZ39: 0 | DA39: 0 | DB39: 0 | DC39: 0 | DD39: 22.8903986 | DE39: 17.5000175 | DF39: 0 | DG39: 121.6706225 | DH39: 0 | DI39: 0 | DJ39: 11.8800198 | DK39: 0 | DL39: 21.40770547 | DM39: 12.7500125 | DN39: 0 | DO39: 116.7956188 | DP39: 0 | DQ39: 0 | DR39: 9.9000165 | DS39: 0 | DT39: 173.9410584
B40: =Kold!B40 -> Stue | C40: =Kold!C40 -> 12 | D40: =Kold!D40 -> 5 | E40: =Kold!E40 -> 6 | F40: F3 | G40: L2 | H40: =Kold!H40 -> 2 | I40: =Kold!I40 -> 13 | J40: F6 | K40: L2 | L40: =Kold!L40 -> 2 | M40: =IF(Kold!$BL$44=1,"-",0.5*BG41*(BL41*BM41+BN41*BO41)+IF(E40>0,(BG41-BH41)*(BS41*BT41+BU41*BV41)/BG41,0)) -> - | N40: =IF(Kold!$BL$44=1,"-",CM41+DT41) -> - | O40: =IF(Kold!$BL$44=1,"-",0.5*BI41*(BZ41*CA41+CB41*CC41)+IF(I40>0,(BI41-BJ41)*(CG41*CH41+CI41*CJ41)/BI41)) -> - | P40: =IF(Kold!$BL$44=1,"-",$U$6*$O$6*(0.5*E40*(INDEX(fladelast,BK41,1)+INDEX(fladelast,BK41,2)+INDEX(fladelast,BK41,3)*INDEX(fladelast,BK41,5))+IF(E40>0,(INDEX(linielast,BR41,1)+INDEX(linielast,BR41,2)+INDEX(linielast,BR41,3)*INDEX(linielast,BR41,5))*(E40-H40)/E40,0))) -> - | Q40: =IF(Kold!$BL$44=1,"-",P39+Q39+R39+$U$6*$O$6*(C41+D41)) -> - | R40: =IF(Kold!$BL$44=1,"-",$U$6*$O$6*(0.5*I40*(INDEX(fladelast,BY41,1)+INDEX(fladelast,BY41,2)+INDEX(fladelast,BY41,3)*INDEX(fladelast,BY41,5))+IF(I40>0,(INDEX(linielast,CF41,1)+INDEX(linielast,CF41,2)+INDEX(linielast,CF41,3)*INDEX(linielast,CF41,5))*(I40-L40)/I40))) -> - | S40: =IF(Kold!$BL$44=1,"-",$Q$6*(0.5*E40*INDEX(fladelast,BK41,1)+IF(E40>0,INDEX(linielast,BR41,1)*(E40-H40)/E40))) -> - | T40: =IF(Kold!$BL$44=1,"-",S39+T39+U39+$Q$6*C41) -> - | U40: =IF(Kold!$BL$44=1,"-",$Q$6*(0.5*I40*INDEX(fladelast,BY41,1)+IF(I40>0,INDEX(linielast,CF41,1)*(I40-L40)/I40))) -> - | W40: Vejledning: | Z40: Betonelementbyggeriers statik | BG40: 6.00001 | BH40: 2 | BI40: 13.00001 | BJ40: 2 | BK40: =Kold!BK40 -> 5 | BL40: 5.65 | BM40: 1 | BN40: 7.5 | BO40: 0.6 | BP40: 0.5 | BQ40: D | BR40: =Kold!BR40 -> 2 | BS40: 12 | BT40: 1 | BU40: 6 | BV40: 0.3 | BW40: 0.2 | BX40: A | BY40: =Kold!BY40 -> 6 | BZ40: 8.15 | CA40: 1 | CB40: 4 | CC40: 0.6 | CD40: 0.5 | CE40: D | CF40: =Kold!CF40 -> 2 | CG40: 12 | CH40: 1 | CI40: 6 | CJ40: 0.3 | CK40: 0.2 | CL40: A | CM40: 1166.794476 | CN40: 2.723078136 | CO40: 0 | CP40: 0 | CQ40: 29.1000345 | CR40: 0 | CS40: 0 | CT40: 0 | CU40: 0 | CV40: 1.815385424 | CW40: 0 | CX40: 0 | CY40: 24.25002875 | CZ40: 0 | DA40: 0 | DB40: 0 | DC40: 0 | DD40: 24.70578402 | DE40: 20.75002 | DF40: 0 | DG40: 127.6706325 | DH40: 0 | DI40: 0 | DJ40: 11.8800198 | DK40: 0 | DL40: 23.22309089 | DM40: 16.000015 | DN40: 0 | DO40: 122.7956288 | DP40: 0 | DQ40: 0 | DR40: 9.9000165 | DS40: 0 | DT40: 185.0064563
B41: =Kold!B41 -> Kld. | C41: =Kold!C41 -> 12 | D41: =Kold!D41 -> 5 | N41: =IF(Kold!$BL$44=1,"-",CM42+DT42) -> - | Q41: =IF(Kold!$BL$44=1,"-",P40+Q40+R40) -> - | T41: =IF(Kold!$BL$44=1,"-",S40+T40+U40) -> - | W41: Polyteknisk Forlag 2010 eller www.bef.dk | BG41: 6.00001 | BH41: 2 | BI41: 13.00001 | BJ41: 2 | BK41: =Kold!BK41 -> 4 | BL41: 5.65 | BM41: 1 | BN41: 2.5 | BO41: 0.4 | BP41: 0.2 | BQ41: B | BR41: =Kold!BR41 -> 3 | BS41: 8 | BT41: 1 | BU41: 10 | BV41: 0.6 | BW41: 0.5 | BX41: D | BY41: =Kold!BY41 -> 7 | BZ41: 5.65 | CA41: 1 | CB41: 3.3 | CC41: 0.4 | CD41: 0.2 | CE41: G | CF41: =Kold!CF41 -> 3 | CG41: 8 | CH41: 1 | CI41: 10 | CJ41: 0.6 | CK41: 0.5 | CL41: D | CM41: =CM40+0.5*BG40*(BL40*BM40)+IF(E39>0,(BG40-BH40)*(BS40*BT40)/BG40)+0.5*BI40*(BZ40*CA40)+IF(I39>0,(BI40-BJ40)*(CG40*CH40)/BI40)+(C41+D41)*$U$6*$O$6 -> 1271.873399 | CN41: 0 | CO41: 3.000005 | CP41: 0 | CQ41: 9.07692712 | CR41: 0 | CS41: 0 | CT41: 8.5800066 | CU41: 0 | CV41: 0 | CW41: 1.5000025 | CX41: 0 | CY41: 7.564105934 | CZ41: 0 | DA41: 0 | DB41: 4.2900033 | DC41: 0 | DD41: 26.52116945 | DE41: 20.75002 | DF41: 0 | DG41: 151.9206613 | DH41: 0 | DI41: 0 | DJ41: 11.8800198 | DK41: 0 | DL41: 25.03847632 | DM41: 16.000015 | DN41: 0 | DO41: 147.0456575 | DP41: 0 | DQ41: 0 | DR41: 9.9000165 | DS41: 0 | DT41: 211.0718705
CM42: =CM41+0.5*BG41*(BL41*BM41)+IF(E40>0,(BG41-BH41)*(BS41*BT41)/BG41)+0.5*BI41*(BZ41*CA41)+IF(I40>0,(BI41-BJ41)*(CG41*CH41)/BI41) -> 1337.651025 | CN42: =IF($BQ42=CN$25,0.5*$BG42*$BN42*$BO42,0)+IF(AND($BX42=CN$25,$E41>0),($BG42-$BH42)*$BU42*$BV42/$BG42,0)+IF($CE42=CN$25,0.5*$BI42*$CB42*$CC42,0)+IF(AND($CL42=CN$25,$I41>0),($BI42-$BJ42)*$CI42*$CJ42/$BI42,0) -> 0 | CO42: 0 | CP42: 0 | CQ42: 0 | CR42: 0 | CS42: 0 | CT42: 0 | CU42: 0 | CV42: =IF($BQ42=CV$25,0.5*$BG42*$BN42*$BP42,0)+IF(AND($BX42=CV$25,$E41>0),($BG42-$BH42)*$BU42*$BW42/$BG42,0)+IF($CE42=CV$25,0.5*$BI42*$CB42*$CD42,0)+IF(AND($CL42=CV$25,$I41>0),($BI42-$BJ42)*$CI42*$CK42/$BI42,0) -> 0 | CW42: 0 | CX42: 0 | CY42: 0 | CZ42: 0 | DA42: 0 | DB42: 0 | DC42: 0 | DD42: 26.52116945 | DE42: 22.2500225 | DF42: 0 | DG42: 159.4847672 | DH42: 0 | DI42: 0 | DJ42: 18.4800231 | DK42: 0 | DL42: 25.03847632 | DM42: 17.5000175 | DN42: 0 | DO42: 154.6097634 | DP42: 0 | DQ42: 0 | DR42: 14.1900198 | DS42: 0 | DT42: 226.7359822
BG44: Fejltabel | BL44: =IF(MAX(BL45:BL56)=1,1,0) -> 0 | BM44: =BM45&BM46&BM47&BM48&BM49&BM50&BM51&BM52&BM53&BM54&BM55&BM56 -> 
BG45: Programmet modtager ikke negative inddata ! | BL45: =IF(MIN(O6,Q6,U6,BJ61:BN65,BJ72:BN73,C27:D41,E26:E40,H26:H40,I26:I40,L26:L40)<0,1,0) -> 0 | BM45: =IF(BL45=0,"",BG45) -> 
BG46: Linielast udenfor dækfelt ! | BL46: =Kold!BL46 -> 0 | BM46: =IF(BL46=0,"",BG46) -> 
BG47: Primær reduktionsfaktor skal være størst ! | BL47: =IF(OR(T10>S10,T11>S11,T12>S12,T13>S13,T14>S14,T21>S21,T22>S22,T15>S15,T16>S16,T17>S17,T18>S18),1,0) -> 0 | BM47: =IF(BL47=0,"",BG47) -> 
BG59: Fladelaste | BJ59: gk | BK59: gfri,k | BL59: qk | BM59: yq1/yq2 | BN59: yq2 | BO59: Kategori
BG60: F0 | BJ60: 0 | BK60: 0 | BL60: 0
BG61: =Kold!M10 -> F1 | BH61: =Kold!N10 -> Tagflade, sne | BI61: =Kold!O10 -> 0 | BJ61: =Kold!P10 -> 3.1 | BK61: =Kold!Q10 -> 1 | BL61: =Kold!R10 -> 0.8 | BM61: =S10 -> 0.2 | BN61: =T10 -> 0 | BO61: =INDEX($BG$9:$BG$16,BI10,1) -> N
BG62: =Kold!M11 -> F2 | BH62: =Kold!N11 -> Boligarealer | BI62: =Kold!O11 -> 0 | BJ62: =Kold!P11 -> 3.65 | BK62: =Kold!Q11 -> 1.5 | BL62: =Kold!R11 -> 1.5 | BM62: =S11 -> 0.3 | BN62: 0.2 | BO62: =INDEX($BG$9:$BG$16,BI11,1) -> A
BG63: =Kold!M12 -> F3 | BH63: =Kold!N12 -> Kontorer | BI63: =Kold!O12 -> 0 | BJ63: =Kold!P12 -> 3.65 | BK63: =Kold!Q12 -> 2 | BL63: =Kold!R12 -> 2.5 | BM63: =S12 -> 0.4 | BN63: 0.2 | BO63: B
BG64: =Kold!M13 -> F4 | BH64: =Kold!N13 -> Kontor med arkiv | BI64: =Kold!O13 -> 0 | BJ64: =Kold!P13 -> 3.65 | BK64: =Kold!Q13 -> 2 | BL64: =Kold!R13 -> 7.5 | BM64: =S13 -> 0.6 | BN64: 0.5 | BO64: D
BG65: =Kold!M14 -> F5 | BH65: =Kold!N14 -> Kontorer | BI65: =Kold!O14 -> 0 | BJ65: =Kold!P14 -> 4.15 | BK65: =Kold!Q14 -> 4 | BL65: =Kold!R14 -> 4 | BM65: =S14 -> 0.6 | BN65: 0.5 | BO65: D
BG66: =Kold!M15 -> F6 | BH66: =Kold!N15 -> Kontorer | BI66: =Kold!O15 -> 0 | BJ66: =Kold!P15 -> 3.65 | BK66: =Kold!Q15 -> 2 | BL66: =Kold!R15 -> 3.3 | BM66: =S15 -> 0.4 | BN66: 0.2 | BO66: G
BG67: =Kold!M16 -> F7 | BH67: =Kold!N16 -> Undervisning | BI67: =Kold!O16 -> 0 | BJ67: =Kold!P16 -> 3.65 | BK67: =Kold!Q16 -> 2 | BL67: =Kold!R16 -> 4.8 | BM67: =S16 -> 0.6 | BN67: 0.5 | BO67: D
BG68: =Kold!M17 -> F8 | BH68: =Kold!N17 -> Værksted | BI68: =Kold!O17 -> 0 | BJ68: =Kold!P17 -> 3.65 | BK68: =Kold!Q17 -> 2 | BL68: =Kold!R17 -> 8.3 | BM68: =S17 -> 0.6 | BN68: 0.5 | BO68: D
BG69: =Kold!M18 -> F9 | BH69: =Kold!N18 -> Butiksarealer | BI69: =Kold!O18 -> 0 | BJ69: =Kold!P18 -> 3.65 | BK69: =Kold!Q18 -> 2 | BL69: =Kold!R18 -> 3.3 | BM69: =S18 -> 0.2 | BN69: 0 | BO69: N
BG70: Linielaste | BJ70: gk | BK70: gfri,k | BL70: qk | BM70: yq1/yq2 | BN70: yq2 | BO70: Kategori
BG71: L0 | BJ71: 0 | BK71: 0 | BL71: 0
BG72: =Kold!M21 -> L1 | BH72: =Kold!N21 -> Badeværelser | BI72: =Kold!O21 -> 0 | BJ72: =Kold!P21 -> 8 | BK72: =Kold!Q21 -> 4 | BL72: =Kold!R21 -> 6 | BM72: =S21 -> 0.3 | BN72: =T21 -> 0.2 | BO72: =INDEX($BG$9:$BG$16,BI21,1) -> A
BG73: =Kold!M22 -> L2 | BH73: =Kold!N22 -> Komprimator | BI73: =Kold!O22 -> 0 | BJ73: =Kold!P22 -> 0 | BK73: =Kold!Q22 -> 8 | BL73: =Kold!R22 -> 10 | BM73: =S22 -> 0.6 | BN73: =T22 -> 0.5 | BO73: =INDEX($BG$9:$BG$16,BI22,1) -> D

Sheet 610a
B2: Bruger: | D2: =Kold!D2 -> 0 | M2: =Kold!M2 -> Lastnedføring - 15 etager | U2: =Kold!U2 -> Betonelement-Foreningen feb 2019
B3: Sagsnavn: | D3: =Kold!D3 -> Test projekt | J3: Sag nr.: | K3: =Kold!K3 -> 23 - 4545 | M3: =BM44 -> 
B4: Bygningsdel: | D4: =Kold!D4 -> Test bygningsdel | J4: Dato: | K4: =Kold!K4 -> 2008-03-01
B5: Emne: | D5: Branddimensioneringstilstande | J5: Init: | K5: =Kold!K5 -> JFJ
M6: Egenvægt, gg,sup = | O6: 1.2 | P6: gg,inf = | Q6: 1 | R6: Konsekvensklasse: KFI = | U6: =Kold!U6 -> 1.1
M8: Fladelaste (kN/m2) | P8: gk | Q8: gfri,k
M9: F0 | P9: 0 | Q9: 0
M10: =BG61 -> F1 | N10: =BH61 -> Tagflade, sne | P10: =BJ61 -> 3.1 | Q10: =BK61 -> 1
M11: =BG62 -> F2 | N11: Boligarealer | P11: =BJ62 -> 3.65 | Q11: 1.5
M12: F3 | N12: Kontorer | P12: 3.65 | Q12: 2
M13: F4 | N13: Kontor med arkiv | P13: 3.65 | Q13: 2
M14: F5 | N14: Kontorer | P14: 4.15 | Q14: 4
M15: F6 | N15: Kontorer | P15: 3.65 | Q15: 2
M16: F7 | N16: Undervisning | P16: 3.65 | Q16: 2
M17: F8 | N17: Værksted | P17: 3.65 | Q17: 2
M18: F9 | N18: Butiksarealer | P18: 3.65 | Q18: 2
M19: Linielaste (kN/m) | P19: gk | Q19: gfri,k
M20: L0 | P20: 0 | Q20: 0
M21: =BG72 -> L1 | N21: Badeværelser | P21: 8 | Q21: 4
M22: L2 | N22: Komprimator | P22: 0 | Q22: 8
B23: Etage | C23: Egenvægt i bærelinie | E23: Laste på venstre dækfelt | I23: Laste på højre dækfelt | M23: maksimalværdier | P23: reducerede værdier | S23: minimalværdier
C24: gk | D24: gfri,k | E24: Lv | F24: Fladelast | G24: Linielast | H24: sv | I24: Lh | J24: Fladelast | K24: Linielast | L24: sh | M24: nv | N24: no | O24: nh | P24: nv | Q24: no | R24: nh | S24: nv | T24: no | U24: nh | BG24: Spændvidder | BK24: Fladelaste, venstre dækfelt | BR24: Linielaste, venstre dækfelt | BY24: Fladelaste, højre dækfelt | CF24: Linielaste, højre dækfelt | CM24: Ng
C25: (kN/m) | D25: (kN/m) | E25: (m) | H25: (m) | I25: (m) | L25: (m) | M25: (kN/m) | N25: (kN/m) | O25: (kN/m) | P25: (kN/m) | Q25: (kN/m) | R25: (kN/m) | S25: (kN/m) | T25: (kN/m) | U25: (kN/m) | BG25: Lv | BH25: sv | BI25: Lh | BJ25: sh | BL25: gk | BM25: gg | BS25: gk | BT25: gg | BZ25: gk | CA25: gg | CG25: gk | CH25: gg
B26: =Kold!B26 -> Tag | E26: =Kold!E26 -> 6 | F26: =INDEX($BG$60:$BG$69,BK27,1) -> F3 | G26: =INDEX($BG$71:$BG$73,BR27,1) -> L2 | H26: =Kold!H26 -> 5 | I26: =Kold!I26 -> 13 | J26: =INDEX($BG$60:$BG$69,BY27,1) -> F3 | K26: =INDEX($BG$71:$BG$73,CF27,1) -> L1 | L26: =Kold!L26 -> 2 | M26: =IF(Kold!$BL$44=1,"-",0.5*BG27*(BL27*BM27+BN27*BO27)+IF(E26>0,(BG27-BH27)*(BS27*BT27+BU27*BV27)/BG27,0)) -> - | N26: =IF(Kold!$BL$44=1,"-",CM27+DT27) -> - | O26: =IF(Kold!$BL$44=1,"-",0.5*BI27*(BZ27*CA27+CB27*CC27)+IF(I26>0,(BI27-BJ27)*(CG27*CH27+CI27*CJ27)/BI27)) -> - | P26: =IF(Kold!$BL$44=1,"-",$U$6*$O$6*(0.5*E26*(INDEX(fladelast,BK27,1)+INDEX(fladelast,BK27,2)+INDEX(fladelast,BK27,3)*INDEX(fladelast,BK27,5))+IF(E26>0,(INDEX(linielast,BR27,1)+INDEX(linielast,BR27,2)+INDEX(linielast,BR27,3)*INDEX(linielast,BR27,5))*(E26-H26)/E26,0))) -> - | Q26: =IF(Kold!$BL$44=1,"-",$U$6*$O$6*(C27+D27)) -> - | R26: =IF(Kold!$BL$44=1,"-",$U$6*$O$6*(0.5*I26*(INDEX(fladelast,BY27,1)+INDEX(fladelast,BY27,2)+INDEX(fladelast,BY27,3)*INDEX(fladelast,BY27,5))+IF(I26>0,(INDEX(linielast,CF27,1)+INDEX(linielast,CF27,2)+INDEX(linielast,CF27,3)*INDEX(linielast,CF27,5))*(I26-L26)/I26))) -> - | S26: =IF(Kold!$BL$44=1,"-",$Q$6*(0.5*E26*INDEX(fladelast,BK27,1)+IF(E26>0,INDEX(linielast,BR27,1)*(E26-H26)/E26))) -> - | T26: =IF(Kold!$BL$44=1,"-",$Q$6*C27) -> - | U26: =IF(Kold!$BL$44=1,"-",$Q$6*(0.5*I26*INDEX(fladelast,BY27,1)+IF(I26>0,INDEX(linielast,CF27,1)*(I26-L26)/I26))) -> -
B27: =Kold!B27 -> 13. sal | C27: =Kold!C27 -> 12 | D27: =Kold!D27 -> 5 | E27: =Kold!E27 -> 6 | F27: =INDEX($BG$60:$BG$69,BK28,1) -> F6 | G27: =INDEX($BG$71:$BG$73,BR28,1) -> L1 | H27: =Kold!H27 -> 2 | I27: =Kold!I27 -> 13 | J27: =INDEX($BG$60:$BG$69,BY28,1) -> F1 | K27: =INDEX($BG$71:$BG$73,CF28,1) -> L2 | L27: =Kold!L27 -> 2 | M27: =IF(Kold!$BL$44=1,"-",0.5*BG28*(BL28*BM28+BN28*BO28)+IF(E27>0,(BG28-BH28)*(BS28*BT28+BU28*BV28)/BG28,0)) -> - | N27: =IF(Kold!$BL$44=1,"-",CM28+DT28) -> - | O27: =IF(Kold!$BL$44=1,"-",0.5*BI28*(BZ28*CA28+CB28*CC28)+IF(I27>0,(BI28-BJ28)*(CG28*CH28+CI28*CJ28)/BI28)) -> - | P27: =IF(Kold!$BL$44=1,"-",$U$6*$O$6*(0.5*E27*(INDEX(fladelast,BK28,1)+INDEX(fladelast,BK28,2)+INDEX(fladelast,BK28,3)*INDEX(fladelast,BK28,5))+IF(E27>0,(INDEX(linielast,BR28,1)+INDEX(linielast,BR28,2)+INDEX(linielast,BR28,3)*INDEX(linielast,BR28,5))*(E27-H27)/E27,0))) -> - | Q27: =IF(Kold!$BL$44=1,"-",P26+Q26+R26+$U$6*$O$6*(C28+D28)) -> - | R27: =IF(Kold!$BL$44=1,"-",$U$6*$O$6*(0.5*I27*(INDEX(fladelast,BY28,1)+INDEX(fladelast,BY28,2)+INDEX(fladelast,BY28,3)*INDEX(fladelast,BY28,5))+IF(I27>0,(INDEX(linielast,CF28,1)+INDEX(linielast,CF28,2)+INDEX(linielast,CF28,3)*INDEX(linielast,CF28,5))*(I27-L27)/I27))) -> - | S27: =IF(Kold!$BL$44=1,"-",$Q$6*(0.5*E27*INDEX(fladelast,BK28,1)+IF(E27>0,INDEX(linielast,BR28,1)*(E27-H27)/E27))) -> - | T27: =IF(Kold!$BL$44=1,"-",S26+T26+U26+$Q$6*C28) -> - | U27: =IF(Kold!$BL$44=1,"-",$Q$6*(0.5*I27*INDEX(fladelast,BY28,1)+IF(I27>0,INDEX(linielast,CF28,1)*(I27-L27)/I27))) -> - | BG27: =E26+0.00001 -> 6.00001 | BH27: =H26 -> 5 | BI27: =I26+0.00001 -> 13.00001 | BJ27: =L26 -> 2 | BK27: =Kold!BK27 -> 4 | BL27: =INDEX(fladelast,$BK27,1)+INDEX(fladelast,$BK27,2) -> 5.65 | BM27: =$U$6*$O$6 -> 1.32 | BR27: =Kold!BR27 -> 3 | BS27: =INDEX(linielast,$BR27,1)+INDEX(linielast,$BR27,2) -> 8 | BT27: =$U$6*$O$6 -> 1.32 | BY27: =Kold!BY27 -> 4 | BZ27: =INDEX(fladelast,$BY27,1)+INDEX(fladelast,$BY27,2) -> 5.65 | CA27: =$U$6*$O$6 -> 1.32 | CF27: =Kold!CF27 -> 2 | CG27: =INDEX(linielast,$CF27,1)+INDEX(linielast,$CF27,2) -> 12 | CH27: =$U$6*$O$6 -> 1.32 | CM27: =(C27+D27)*$U$6*$O$6 -> 22.44
B28: =Kold!B28 -> 12. sal | C28: =Kold!C28 -> 12 | D28: =Kold!D28 -> 5 | E28: =Kold!E28 -> 6 | F28: F5 | G28: L2 | H28: =Kold!H28 -> 5 | I28: =Kold!I28 -> 13 | J28: F2 | K28: L1 | L28: =Kold!L28 -> 2 | M28: =IF(Kold!$BL$44=1,"-",0.5*BG29*(BL29*BM29+BN29*BO29)+IF(E28>0,(BG29-BH29)*(BS29*BT29+BU29*BV29)/BG29,0)) -> - | N28: =IF(Kold!$BL$44=1,"-",CM29+DT29) -> - | O28: =IF(Kold!$BL$44=1,"-",0.5*BI29*(BZ29*CA29+CB29*CC29)+IF(I28>0,(BI29-BJ29)*(CG29*CH29+CI29*CJ29)/BI29)) -> - | P28: =IF(Kold!$BL$44=1,"-",$U$6*$O$6*(0.5*E28*(INDEX(fladelast,BK29,1)+INDEX(fladelast,BK29,2)+INDEX(fladelast,BK29,3)*INDEX(fladelast,BK29,5))+IF(E28>0,(INDEX(linielast,BR29,1)+INDEX(linielast,BR29,2)+INDEX(linielast,BR29,3)*INDEX(linielast,BR29,5))*(E28-H28)/E28,0))) -> - | Q28: =IF(Kold!$BL$44=1,"-",P27+Q27+R27+$U$6*$O$6*(C29+D29)) -> - | R28: =IF(Kold!$BL$44=1,"-",$U$6*$O$6*(0.5*I28*(INDEX(fladelast,BY29,1)+INDEX(fladelast,BY29,2)+INDEX(fladelast,BY29,3)*INDEX(fladelast,BY29,5))+IF(I28>0,(INDEX(linielast,CF29,1)+INDEX(linielast,CF29,2)+INDEX(linielast,CF29,3)*INDEX(linielast,CF29,5))*(I28-L28)/I28))) -> - | S28: =IF(Kold!$BL$44=1,"-",$Q$6*(0.5*E28*INDEX(fladelast,BK29,1)+IF(E28>0,INDEX(linielast,BR29,1)*(E28-H28)/E28))) -> - | T28: =IF(Kold!$BL$44=1,"-",S27+T27+U27+$Q$6*C29) -> - | U28: =IF(Kold!$BL$44=1,"-",$Q$6*(0.5*I28*INDEX(fladelast,BY29,1)+IF(I28>0,INDEX(linielast,CF29,1)*(I28-L28)/I28))) -> - | BG28: =E27+0.00001 -> 6.00001 | BH28: =H27 -> 2 | BI28: =I27+0.00001 -> 13.00001 | BJ28: =L27 -> 2 | BK28: =Kold!BK28 -> 7 | BL28: 5.65 | BM28: =$U$6*$O$6 -> 1.32 | BR28: =Kold!BR28 -> 2 | BS28: 12 | BT28: 1.32 | BY28: =Kold!BY28 -> 2 | BZ28: 4.1 | CA28: 1.32 | CF28: =Kold!CF28 -> 3 | CG28: 8 | CH28: 1.32 | CM28: =CM27+0.5*BG27*(BL27*BM27)+IF(E26>0,(BG27-BH27)*(BS27*BT27)/BG27)+0.5*BI27*(BZ27*CA27)+IF(I26>0,(BI27-BJ27)*(CG27*CH27)/BI27)+(C28+D28)*$U$6*$O$6 -> 130.894168
B29: =Kold!B29 -> 11. sal | C29: =Kold!C29 -> 12 | D29: =Kold!D29 -> 5 | E29: =Kold!E29 -> 6 | F29: F3 | G29: L1 | H29: =Kold!H29 -> 2 | I29: =Kold!I29 -> 13 | J29: F2 | K29: L2 | L29: =Kold!L29 -> 2 | M29: =IF(Kold!$BL$44=1,"-",0.5*BG30*(BL30*BM30+BN30*BO30)+IF(E29>0,(BG30-BH30)*(BS30*BT30+BU30*BV30)/BG30,0)) -> - | N29: =IF(Kold!$BL$44=1,"-",CM30+DT30) -> - | O29: =IF(Kold!$BL$44=1,"-",0.5*BI30*(BZ30*CA30+CB30*CC30)+IF(I29>0,(BI30-BJ30)*(CG30*CH30+CI30*CJ30)/BI30)) -> - | P29: =IF(Kold!$BL$44=1,"-",$U$6*$O$6*(0.5*E29*(INDEX(fladelast,BK30,1)+INDEX(fladelast,BK30,2)+INDEX(fladelast,BK30,3)*INDEX(fladelast,BK30,5))+IF(E29>0,(INDEX(linielast,BR30,1)+INDEX(linielast,BR30,2)+INDEX(linielast,BR30,3)*INDEX(linielast,BR30,5))*(E29-H29)/E29,0))) -> - | Q29: =IF(Kold!$BL$44=1,"-",P28+Q28+R28+$U$6*$O$6*(C30+D30)) -> - | R29: =IF(Kold!$BL$44=1,"-",$U$6*$O$6*(0.5*I29*(INDEX(fladelast,BY30,1)+INDEX(fladelast,BY30,2)+INDEX(fladelast,BY30,3)*INDEX(fladelast,BY30,5))+IF(I29>0,(INDEX(linielast,CF30,1)+INDEX(linielast,CF30,2)+INDEX(linielast,CF30,3)*INDEX(linielast,CF30,5))*(I29-L29)/I29))) -> - | S29: =IF(Kold!$BL$44=1,"-",$Q$6*(0.5*E29*INDEX(fladelast,BK30,1)+IF(E29>0,INDEX(linielast,BR30,1)*(E29-H29)/E29))) -> - | T29: =IF(Kold!$BL$44=1,"-",S28+T28+U28+$Q$6*C30) -> - | U29: =IF(Kold!$BL$44=1,"-",$Q$6*(0.5*I29*INDEX(fladelast,BY30,1)+IF(I29>0,INDEX(linielast,CF30,1)*(I29-L29)/I29))) -> - | BG29: 6.00001 | BH29: 5 | BI29: 13.00001 | BJ29: 2 | BK29: =Kold!BK29 -> 6 | BL29: 8.15 | BM29: 1.32 | BR29: =Kold!BR29 -> 3 | BS29: 8 | BT29: 1.32 | BY29: =Kold!BY29 -> 3 | BZ29: 5.15 | CA29: 1.32 | CF29: =Kold!CF29 -> 2 | CG29: 12 | CH29: 1.32 | CM29: =CM28+0.5*BG28*(BL28*BM28)+IF(E27>0,(BG28-BH28)*(BS28*BT28)/BG28)+0.5*BI28*(BZ28*CA28)+IF(I27>0,(BI28-BJ28)*(CG28*CH28)/BI28)+(C29+D29)*$U$6*$O$6 -> 230.3816271
B30: =Kold!B30 -> 10. sal | C30: =Kold!C30 -> 12 | D30: =Kold!D30 -> 5 | E30: =Kold!E30 -> 6 | F30: F5 | G30: L2 | H30: =Kold!H30 -> 2 | I30: =Kold!I30 -> 13 | J30: F5 | K30: L1 | L30: =Kold!L30 -> 2 | M30: =IF(Kold!$BL$44=1,"-",0.5*BG31*(BL31*BM31+BN31*BO31)+IF(E30>0,(BG31-BH31)*(BS31*BT31+BU31*BV31)/BG31,0)) -> - | N30: =IF(Kold!$BL$44=1,"-",CM31+DT31) -> - | O30: =IF(Kold!$BL$44=1,"-",0.5*BI31*(BZ31*CA31+CB31*CC31)+IF(I30>0,(BI31-BJ31)*(CG31*CH31+CI31*CJ31)/BI31)) -> - | P30: =IF(Kold!$BL$44=1,"-",$U$6*$O$6*(0.5*E30*(INDEX(fladelast,BK31,1)+INDEX(fladelast,BK31,2)+INDEX(fladelast,BK31,3)*INDEX(fladelast,BK31,5))+IF(E30>0,(INDEX(linielast,BR31,1)+INDEX(linielast,BR31,2)+INDEX(linielast,BR31,3)*INDEX(linielast,BR31,5))*(E30-H30)/E30,0))) -> - | Q30: =IF(Kold!$BL$44=1,"-",P29+Q29+R29+$U$6*$O$6*(C31+D31)) -> - | R30: =IF(Kold!$BL$44=1,"-",$U$6*$O$6*(0.5*I30*(INDEX(fladelast,BY31,1)+INDEX(fladelast,BY31,2)+INDEX(fladelast,BY31,3)*INDEX(fladelast,BY31,5))+IF(I30>0,(INDEX(linielast,CF31,1)+INDEX(linielast,CF31,2)+INDEX(linielast,CF31,3)*INDEX(linielast,CF31,5))*(I30-L30)/I30))) -> - | S30: =IF(Kold!$BL$44=1,"-",$Q$6*(0.5*E30*INDEX(fladelast,BK31,1)+IF(E30>0,INDEX(linielast,BR31,1)*(E30-H30)/E30))) -> - | T30: =IF(Kold!$BL$44=1,"-",S29+T29+U29+$Q$6*C31) -> - | U30: =IF(Kold!$BL$44=1,"-",$Q$6*(0.5*I30*INDEX(fladelast,BY31,1)+IF(I30>0,INDEX(linielast,CF31,1)*(I30-L30)/I30))) -> - | BG30: 6.00001 | BH30: 2 | BI30: 13.00001 | BJ30: 2 | BK30: =Kold!BK30 -> 4 | BL30: 5.65 | BM30: 1.32 | BR30: =Kold!BR30 -> 2 | BS30: 12 | BT30: 1.32 | BY30: =Kold!BY30 -> 3 | BZ30: 5.15 | CA30: 1.32 | CF30: =Kold!CF30 -> 3 | CG30: 8 | CH30: 1.32 | CM30: 344.4458083
B31: =Kold!B31 -> 9. sal | C31: =Kold!C31 -> 12 | D31: =Kold!D31 -> 5 | E31: =Kold!E31 -> 6 | F31: F2 | G31: L2 | H31: =Kold!H31 -> 2 | I31: =Kold!I31 -> 13 | J31: F3 | K31: L2 | L31: =Kold!L31 -> 2 | M31: =IF(Kold!$BL$44=1,"-",0.5*BG32*(BL32*BM32+BN32*BO32)+IF(E31>0,(BG32-BH32)*(BS32*BT32+BU32*BV32)/BG32,0)) -> - | N31: =IF(Kold!$BL$44=1,"-",CM32+DT32) -> - | O31: =IF(Kold!$BL$44=1,"-",0.5*BI32*(BZ32*CA32+CB32*CC32)+IF(I31>0,(BI32-BJ32)*(CG32*CH32+CI32*CJ32)/BI32)) -> - | P31: =IF(Kold!$BL$44=1,"-",$U$6*$O$6*(0.5*E31*(INDEX(fladelast,BK32,1)+INDEX(fladelast,BK32,2)+INDEX(fladelast,BK32,3)*INDEX(fladelast,BK32,5))+IF(E31>0,(INDEX(linielast,BR32,1)+INDEX(linielast,BR32,2)+INDEX(linielast,BR32,3)*INDEX(linielast,BR32,5))*(E31-H31)/E31,0))) -> - | Q31: =IF(Kold!$BL$44=1,"-",P30+Q30+R30+$U$6*$O$6*(C32+D32)) -> - | R31: =IF(Kold!$BL$44=1,"-",$U$6*$O$6*(0.5*I31*(INDEX(fladelast,BY32,1)+INDEX(fladelast,BY32,2)+INDEX(fladelast,BY32,3)*INDEX(fladelast,BY32,5))+IF(I31>0,(INDEX(linielast,CF32,1)+INDEX(linielast,CF32,2)+INDEX(linielast,CF32,3)*INDEX(linielast,CF32,5))*(I31-L31)/I31))) -> - | S31: =IF(Kold!$BL$44=1,"-",$Q$6*(0.5*E31*INDEX(fladelast,BK32,1)+IF(E31>0,INDEX(linielast,BR32,1)*(E31-H31)/E31))) -> - | T31: =IF(Kold!$BL$44=1,"-",S30+T30+U30+$Q$6*C32) -> - | U31: =IF(Kold!$BL$44=1,"-",$Q$6*(0.5*I31*INDEX(fladelast,BY32,1)+IF(I31>0,INDEX(linielast,CF32,1)*(I31-L31)/I31))) -> - | BG31: 6.00001 | BH31: 2 | BI31: 13.00001 | BJ31: 2 | BK31: =Kold!BK31 -> 6 | BL31: 8.15 | BM31: 1.32 | BR31: =Kold!BR31 -> 3 | BS31: 8 | BT31: 1.32 | BY31: =Kold!BY31 -> 6 | BZ31: 8.15 | CA31: 1.32 | CF31: =Kold!CF31 -> 2 | CG31: 12 | CH31: 1.32 | CM31: 452.9422742
B32: =Kold!B32 -> 8. sal | C32: =Kold!C32 -> 12 | D32: =Kold!D32 -> 5 | E32: =Kold!E32 -> 6 | F32: F6 | G32: L1 | H32: =Kold!H32 -> 2 | I32: =Kold!I32 -> 13 | J32: F3 | K32: L2 | L32: =Kold!L32 -> 2 | M32: =IF(Kold!$BL$44=1,"-",0.5*BG33*(BL33*BM33+BN33*BO33)+IF(E32>0,(BG33-BH33)*(BS33*BT33+BU33*BV33)/BG33,0)) -> - | N32: =IF(Kold!$BL$44=1,"-",CM33+DT33) -> - | O32: =IF(Kold!$BL$44=1,"-",0.5*BI33*(BZ33*CA33+CB33*CC33)+IF(I32>0,(BI33-BJ33)*(CG33*CH33+CI33*CJ33)/BI33)) -> - | P32: =IF(Kold!$BL$44=1,"-",$U$6*$O$6*(0.5*E32*(INDEX(fladelast,BK33,1)+INDEX(fladelast,BK33,2)+INDEX(fladelast,BK33,3)*INDEX(fladelast,BK33,5))+IF(E32>0,(INDEX(linielast,BR33,1)+INDEX(linielast,BR33,2)+INDEX(linielast,BR33,3)*INDEX(linielast,BR33,5))*(E32-H32)/E32,0))) -> - | Q32: =IF(Kold!$BL$44=1,"-",P31+Q31+R31+$U$6*$O$6*(C33+D33)) -> - | R32: =IF(Kold!$BL$44=1,"-",$U$6*$O$6*(0.5*I32*(INDEX(fladelast,BY33,1)+INDEX(fladelast,BY33,2)+INDEX(fladelast,BY33,3)*INDEX(fladelast,BY33,5))+IF(I32>0,(INDEX(linielast,CF33,1)+INDEX(linielast,CF33,2)+INDEX(linielast,CF33,3)*INDEX(linielast,CF33,5))*(I32-L32)/I32))) -> - | S32: =IF(Kold!$BL$44=1,"-",$Q$6*(0.5*E32*INDEX(fladelast,BK33,1)+IF(E32>0,INDEX(linielast,BR33,1)*(E32-H32)/E32))) -> - | T32: =IF(Kold!$BL$44=1,"-",S31+T31+U31+$Q$6*C33) -> - | U32: =IF(Kold!$BL$44=1,"-",$Q$6*(0.5*I32*INDEX(fladelast,BY33,1)+IF(I32>0,INDEX(linielast,CF33,1)*(I32-L32)/I32))) -> - | BG32: 6.00001 | BH32: 2 | BI32: 13.00001 | BJ32: 2 | BK32: =Kold!BK32 -> 3 | BL32: 5.15 | BM32: 1.32 | BR32: =Kold!BR32 -> 3 | BS32: 8 | BT32: 1.32 | BY32: =Kold!BY32 -> 4 | BZ32: 5.65 | CA32: 1.32 | CF32: =Kold!CF32 -> 3 | CG32: 8 | CH32: 1.32 | CM32: 598.0264665
B33: =Kold!B33 -> 7. sal | C33: =Kold!C33 -> 12 | D33: =Kold!D33 -> 5 | E33: =Kold!E33 -> 6 | F33: F1 | G33: L1 | H33: =Kold!H33 -> 2 | I33: =Kold!I33 -> 13 | J33: F5 | K33: L1 | L33: =Kold!L33 -> 2 | M33: =IF(Kold!$BL$44=1,"-",0.5*BG34*(BL34*BM34+BN34*BO34)+IF(E33>0,(BG34-BH34)*(BS34*BT34+BU34*BV34)/BG34,0)) -> - | N33: =IF(Kold!$BL$44=1,"-",CM34+DT34) -> - | O33: =IF(Kold!$BL$44=1,"-",0.5*BI34*(BZ34*CA34+CB34*CC34)+IF(I33>0,(BI34-BJ34)*(CG34*CH34+CI34*CJ34)/BI34)) -> - | P33: =IF(Kold!$BL$44=1,"-",$U$6*$O$6*(0.5*E33*(INDEX(fladelast,BK34,1)+INDEX(fladelast,BK34,2)+INDEX(fladelast,BK34,3)*INDEX(fladelast,BK34,5))+IF(E33>0,(INDEX(linielast,BR34,1)+INDEX(linielast,BR34,2)+INDEX(linielast,BR34,3)*INDEX(linielast,BR34,5))*(E33-H33)/E33,0))) -> - | Q33: =IF(Kold!$BL$44=1,"-",P32+Q32+R32+$U$6*$O$6*(C34+D34)) -> - | R33: =IF(Kold!$BL$44=1,"-",$U$6*$O$6*(0.5*I33*(INDEX(fladelast,BY34,1)+INDEX(fladelast,BY34,2)+INDEX(fladelast,BY34,3)*INDEX(fladelast,BY34,5))+IF(I33>0,(INDEX(linielast,CF34,1)+INDEX(linielast,CF34,2)+INDEX(linielast,CF34,3)*INDEX(linielast,CF34,5))*(I33-L33)/I33))) -> - | S33: =IF(Kold!$BL$44=1,"-",$Q$6*(0.5*E33*INDEX(fladelast,BK34,1)+IF(E33>0,INDEX(linielast,BR34,1)*(E33-H33)/E33))) -> - | T33: =IF(Kold!$BL$44=1,"-",S32+T32+U32+$Q$6*C34) -> - | U33: =IF(Kold!$BL$44=1,"-",$Q$6*(0.5*I33*INDEX(fladelast,BY34,1)+IF(I33>0,INDEX(linielast,CF34,1)*(I33-L33)/I33))) -> - | BG33: 6.00001 | BH33: 2 | BI33: 13.00001 | BJ33: 2 | BK33: =Kold!BK33 -> 7 | BL33: 5.65 | BM33: 1.32 | BR33: =Kold!BR33 -> 2 | BS33: 12 | BT33: 1.32 | BY33: =Kold!BY33 -> 4 | BZ33: 5.65 | CA33: 1.32 | CF33: =Kold!CF33 -> 3 | CG33: 8 | CH33: 1.32 | CM33: 705.3129295
B34: =Kold!B34 -> 6. sal | C34: =Kold!C34 -> 12 | D34: =Kold!D34 -> 5 | E34: =Kold!E34 -> 6 | F34: F6 | G34: L1 | H34: =Kold!H34 -> 2 | I34: =Kold!I34 -> 13 | J34: F4 | K34: L1 | L34: =Kold!L34 -> 2 | M34: =IF(Kold!$BL$44=1,"-",0.5*BG35*(BL35*BM35+BN35*BO35)+IF(E34>0,(BG35-BH35)*(BS35*BT35+BU35*BV35)/BG35,0)) -> - | N34: =IF(Kold!$BL$44=1,"-",CM35+DT35) -> - | O34: =IF(Kold!$BL$44=1,"-",0.5*BI35*(BZ35*CA35+CB35*CC35)+IF(I34>0,(BI35-BJ35)*(CG35*CH35+CI35*CJ35)/BI35)) -> - | P34: =IF(Kold!$BL$44=1,"-",$U$6*$O$6*(0.5*E34*(INDEX(fladelast,BK35,1)+INDEX(fladelast,BK35,2)+INDEX(fladelast,BK35,3)*INDEX(fladelast,BK35,5))+IF(E34>0,(INDEX(linielast,BR35,1)+INDEX(linielast,BR35,2)+INDEX(linielast,BR35,3)*INDEX(linielast,BR35,5))*(E34-H34)/E34,0))) -> - | Q34: =IF(Kold!$BL$44=1,"-",P33+Q33+R33+$U$6*$O$6*(C35+D35)) -> - | R34: =IF(Kold!$BL$44=1,"-",$U$6*$O$6*(0.5*I34*(INDEX(fladelast,BY35,1)+INDEX(fladelast,BY35,2)+INDEX(fladelast,BY35,3)*INDEX(fladelast,BY35,5))+IF(I34>0,(INDEX(linielast,CF35,1)+INDEX(linielast,CF35,2)+INDEX(linielast,CF35,3)*INDEX(linielast,CF35,5))*(I34-L34)/I34))) -> - | S34: =IF(Kold!$BL$44=1,"-",$Q$6*(0.5*E34*INDEX(fladelast,BK35,1)+IF(E34>0,INDEX(linielast,BR35,1)*(E34-H34)/E34))) -> - | T34: =IF(Kold!$BL$44=1,"-",S33+T33+U33+$Q$6*C35) -> - | U34: =IF(Kold!$BL$44=1,"-",$Q$6*(0.5*I34*INDEX(fladelast,BY35,1)+IF(I34>0,INDEX(linielast,CF35,1)*(I34-L34)/I34))) -> - | BG34: 6.00001 | BH34: 2 | BI34: 13.00001 | BJ34: 2 | BK34: =Kold!BK34 -> 2 | BL34: 4.1 | BM34: 1.32 | BR34: =Kold!BR34 -> 2 | BS34: 12 | BT34: 1.32 | BY34: =Kold!BY34 -> 6 | BZ34: 8.15 | CA34: 1.32 | CF34: =Kold!CF34 -> 2 | CG34: 12 | CH34: 1.32 | CM34: 818.0993987
B35: =Kold!B35 -> 5. sal | C35: =Kold!C35 -> 12 | D35: =Kold!D35 -> 5 | E35: =Kold!E35 -> 6 | F35: F6 | G35: L1 | H35: =Kold!H35 -> 2 | I35: =Kold!I35 -> 13 | J35: F7 | K35: L1 | L35: =Kold!L35 -> 2 | M35: =IF(Kold!$BL$44=1,"-",0.5*BG36*(BL36*BM36+BN36*BO36)+IF(E35>0,(BG36-BH36)*(BS36*BT36+BU36*BV36)/BG36,0)) -> - | N35: =IF(Kold!$BL$44=1,"-",CM36+DT36) -> - | O35: =IF(Kold!$BL$44=1,"-",0.5*BI36*(BZ36*CA36+CB36*CC36)+IF(I35>0,(BI36-BJ36)*(CG36*CH36+CI36*CJ36)/BI36)) -> - | P35: =IF(Kold!$BL$44=1,"-",$U$6*$O$6*(0.5*E35*(INDEX(fladelast,BK36,1)+INDEX(fladelast,BK36,2)+INDEX(fladelast,BK36,3)*INDEX(fladelast,BK36,5))+IF(E35>0,(INDEX(linielast,BR36,1)+INDEX(linielast,BR36,2)+INDEX(linielast,BR36,3)*INDEX(linielast,BR36,5))*(E35-H35)/E35,0))) -> - | Q35: =IF(Kold!$BL$44=1,"-",P34+Q34+R34+$U$6*$O$6*(C36+D36)) -> - | R35: =IF(Kold!$BL$44=1,"-",$U$6*$O$6*(0.5*I35*(INDEX(fladelast,BY36,1)+INDEX(fladelast,BY36,2)+INDEX(fladelast,BY36,3)*INDEX(fladelast,BY36,5))+IF(I35>0,(INDEX(linielast,CF36,1)+INDEX(linielast,CF36,2)+INDEX(linielast,CF36,3)*INDEX(linielast,CF36,5))*(I35-L35)/I35))) -> - | S35: =IF(Kold!$BL$44=1,"-",$Q$6*(0.5*E35*INDEX(fladelast,BK36,1)+IF(E35>0,INDEX(linielast,BR36,1)*(E35-H35)/E35))) -> - | T35: =IF(Kold!$BL$44=1,"-",S34+T34+U34+$Q$6*C36) -> - | U35: =IF(Kold!$BL$44=1,"-",$Q$6*(0.5*I35*INDEX(fladelast,BY36,1)+IF(I35>0,INDEX(linielast,CF36,1)*(I35-L35)/I35))) -> - | BG35: 6.00001 | BH35: 2 | BI35: 13.00001 | BJ35: 2 | BK35: =Kold!BK35 -> 7 | BL35: 5.65 | BM35: 1.32 | BR35: =Kold!BR35 -> 2 | BS35: 12 | BT35: 1.32 | BY35: =Kold!BY35 -> 5 | BZ35: 5.65 | CA35: 1.32 | CF35: =Kold!CF35 -> 2 | CG35: 12 | CH35: 1.32 | CM35: 950.6655672
B36: =Kold!B36 -> 4. sal | C36: =Kold!C36 -> 12 | D36: =Kold!D36 -> 5 | E36: =Kold!E36 -> 6 | F36: F6 | G36: L2 | H36: =Kold!H36 -> 2 | I36: =Kold!I36 -> 13 | J36: F2 | K36: L1 | L36: =Kold!L36 -> 2 | M36: =IF(Kold!$BL$44=1,"-",0.5*BG37*(BL37*BM37+BN37*BO37)+IF(E36>0,(BG37-BH37)*(BS37*BT37+BU37*BV37)/BG37,0)) -> - | N36: =IF(Kold!$BL$44=1,"-",CM37+DT37) -> - | O36: =IF(Kold!$BL$44=1,"-",0.5*BI37*(BZ37*CA37+CB37*CC37)+IF(I36>0,(BI37-BJ37)*(CG37*CH37+CI37*CJ37)/BI37)) -> - | P36: =IF(Kold!$BL$44=1,"-",$U$6*$O$6*(0.5*E36*(INDEX(fladelast,BK37,1)+INDEX(fladelast,BK37,2)+INDEX(fladelast,BK37,3)*INDEX(fladelast,BK37,5))+IF(E36>0,(INDEX(linielast,BR37,1)+INDEX(linielast,BR37,2)+INDEX(linielast,BR37,3)*INDEX(linielast,BR37,5))*(E36-H36)/E36,0))) -> - | Q36: =IF(Kold!$BL$44=1,"-",P35+Q35+R35+$U$6*$O$6*(C37+D37)) -> - | R36: =IF(Kold!$BL$44=1,"-",$U$6*$O$6*(0.5*I36*(INDEX(fladelast,BY37,1)+INDEX(fladelast,BY37,2)+INDEX(fladelast,BY37,3)*INDEX(fladelast,BY37,5))+IF(I36>0,(INDEX(linielast,CF37,1)+INDEX(linielast,CF37,2)+INDEX(linielast,CF37,3)*INDEX(linielast,CF37,5))*(I36-L36)/I36))) -> - | S36: =IF(Kold!$BL$44=1,"-",$Q$6*(0.5*E36*INDEX(fladelast,BK37,1)+IF(E36>0,INDEX(linielast,BR37,1)*(E36-H36)/E36))) -> - | T36: =IF(Kold!$BL$44=1,"-",S35+T35+U35+$Q$6*C37) -> - | U36: =IF(Kold!$BL$44=1,"-",$Q$6*(0.5*I36*INDEX(fladelast,BY37,1)+IF(I36>0,INDEX(linielast,CF37,1)*(I36-L36)/I36))) -> - | BG36: 6.00001 | BH36: 2 | BI36: 13.00001 | BJ36: 2 | BK36: =Kold!BK36 -> 7 | BL36: 5.65 | BM36: 1.32 | BR36: =Kold!BR36 -> 2 | BS36: 12 | BT36: 1.32 | BY36: =Kold!BY36 -> 8 | BZ36: 5.65 | CA36: 1.32 | CF36: =Kold!CF36 -> 2 | CG36: 12 | CH36: 1.32 | CM36: 1067.919729
B37: =Kold!B37 -> 3. sal | C37: =Kold!C37 -> 12 | D37: =Kold!D37 -> 5 | E37: =Kold!E37 -> 6 | F37: F5 | G37: L1 | H37: =Kold!H37 -> 2 | I37: =Kold!I37 -> 13 | J37: F2 | K37: L2 | L37: =Kold!L37 -> 2 | M37: =IF(Kold!$BL$44=1,"-",0.5*BG38*(BL38*BM38+BN38*BO38)+IF(E37>0,(BG38-BH38)*(BS38*BT38+BU38*BV38)/BG38,0)) -> - | N37: =IF(Kold!$BL$44=1,"-",CM38+DT38) -> - | O37: =IF(Kold!$BL$44=1,"-",0.5*BI38*(BZ38*CA38+CB38*CC38)+IF(I37>0,(BI38-BJ38)*(CG38*CH38+CI38*CJ38)/BI38)) -> - | P37: =IF(Kold!$BL$44=1,"-",$U$6*$O$6*(0.5*E37*(INDEX(fladelast,BK38,1)+INDEX(fladelast,BK38,2)+INDEX(fladelast,BK38,3)*INDEX(fladelast,BK38,5))+IF(E37>0,(INDEX(linielast,BR38,1)+INDEX(linielast,BR38,2)+INDEX(linielast,BR38,3)*INDEX(linielast,BR38,5))*(E37-H37)/E37,0))) -> - | Q37: =IF(Kold!$BL$44=1,"-",P36+Q36+R36+$U$6*$O$6*(C38+D38)) -> - | R37: =IF(Kold!$BL$44=1,"-",$U$6*$O$6*(0.5*I37*(INDEX(fladelast,BY38,1)+INDEX(fladelast,BY38,2)+INDEX(fladelast,BY38,3)*INDEX(fladelast,BY38,5))+IF(I37>0,(INDEX(linielast,CF38,1)+INDEX(linielast,CF38,2)+INDEX(linielast,CF38,3)*INDEX(linielast,CF38,5))*(I37-L37)/I37))) -> - | S37: =IF(Kold!$BL$44=1,"-",$Q$6*(0.5*E37*INDEX(fladelast,BK38,1)+IF(E37>0,INDEX(linielast,BR38,1)*(E37-H37)/E37))) -> - | T37: =IF(Kold!$BL$44=1,"-",S36+T36+U36+$Q$6*C38) -> - | U37: =IF(Kold!$BL$44=1,"-",$Q$6*(0.5*I37*INDEX(fladelast,BY38,1)+IF(I37>0,INDEX(linielast,CF38,1)*(I37-L37)/I37))) -> - | BG37: 6.00001 | BH37: 2 | BI37: 13.00001 | BJ37: 2 | BK37: =Kold!BK37 -> 7 | BL37: 5.65 | BM37: 1.32 | BR37: =Kold!BR37 -> 3 | BS37: 8 | BT37: 1.32 | BY37: =Kold!BY37 -> 3 | BZ37: 5.15 | CA37: 1.32 | CF37: =Kold!CF37 -> 2 | CG37: 12 | CH37: 1.32 | CM37: 1185.173892
B38: =Kold!B38 -> 2. sal | C38: =Kold!C38 -> 12 | D38: =Kold!D38 -> 5 | E38: =Kold!E38 -> 6 | F38: F5 | G38: L1 | H38: =Kold!H38 -> 2 | I38: =Kold!I38 -> 13 | J38: F3 | K38: L1 | L38: =Kold!L38 -> 2 | M38: =IF(Kold!$BL$44=1,"-",0.5*BG39*(BL39*BM39+BN39*BO39)+IF(E38>0,(BG39-BH39)*(BS39*BT39+BU39*BV39)/BG39,0)) -> - | N38: =IF(Kold!$BL$44=1,"-",CM39+DT39) -> - | O38: =IF(Kold!$BL$44=1,"-",0.5*BI39*(BZ39*CA39+CB39*CC39)+IF(I38>0,(BI39-BJ39)*(CG39*CH39+CI39*CJ39)/BI39)) -> - | P38: =IF(Kold!$BL$44=1,"-",$U$6*$O$6*(0.5*E38*(INDEX(fladelast,BK39,1)+INDEX(fladelast,BK39,2)+INDEX(fladelast,BK39,3)*INDEX(fladelast,BK39,5))+IF(E38>0,(INDEX(linielast,BR39,1)+INDEX(linielast,BR39,2)+INDEX(linielast,BR39,3)*INDEX(linielast,BR39,5))*(E38-H38)/E38,0))) -> - | Q38: =IF(Kold!$BL$44=1,"-",P37+Q37+R37+$U$6*$O$6*(C39+D39)) -> - | R38: =IF(Kold!$BL$44=1,"-",$U$6*$O$6*(0.5*I38*(INDEX(fladelast,BY39,1)+INDEX(fladelast,BY39,2)+INDEX(fladelast,BY39,3)*INDEX(fladelast,BY39,5))+IF(I38>0,(INDEX(linielast,CF39,1)+INDEX(linielast,CF39,2)+INDEX(linielast,CF39,3)*INDEX(linielast,CF39,5))*(I38-L38)/I38))) -> - | S38: =IF(Kold!$BL$44=1,"-",$Q$6*(0.5*E38*INDEX(fladelast,BK39,1)+IF(E38>0,INDEX(linielast,BR39,1)*(E38-H38)/E38))) -> - | T38: =IF(Kold!$BL$44=1,"-",S37+T37+U37+$Q$6*C39) -> - | U38: =IF(Kold!$BL$44=1,"-",$Q$6*(0.5*I38*INDEX(fladelast,BY39,1)+IF(I38>0,INDEX(linielast,CF39,1)*(I38-L38)/I38))) -> - | W38: NB: Resultaterne skal altid kontrolleres af ansvarlig statiker | BG38: 6.00001 | BH38: 2 | BI38: 13.00001 | BJ38: 2 | BK38: =Kold!BK38 -> 6 | BL38: 8.15 | BM38: 1.32 | BR38: =Kold!BR38 -> 2 | BS38: 12 | BT38: 1.32 | BY38: =Kold!BY38 -> 3 | BZ38: 5.15 | CA38: 1.32 | CF38: =Kold!CF38 -> 3 | CG38: 8 | CH38: 1.32 | CM38: 1294.618047
B39: =Kold!B39 -> 1. sal | C39: =Kold!C39 -> 12 | D39: =Kold!D39 -> 5 | E39: =Kold!E39 -> 6 | F39: F4 | G39: L1 | H39: =Kold!H39 -> 2 | I39: =Kold!I39 -> 13 | J39: F5 | K39: L1 | L39: =Kold!L39 -> 2 | M39: =IF(Kold!$BL$44=1,"-",0.5*BG40*(BL40*BM40+BN40*BO40)+IF(E39>0,(BG40-BH40)*(BS40*BT40+BU40*BV40)/BG40,0)) -> - | N39: =IF(Kold!$BL$44=1,"-",CM40+DT40) -> - | O39: =IF(Kold!$BL$44=1,"-",0.5*BI40*(BZ40*CA40+CB40*CC40)+IF(I39>0,(BI40-BJ40)*(CG40*CH40+CI40*CJ40)/BI40)) -> - | P39: =IF(Kold!$BL$44=1,"-",$U$6*$O$6*(0.5*E39*(INDEX(fladelast,BK40,1)+INDEX(fladelast,BK40,2)+INDEX(fladelast,BK40,3)*INDEX(fladelast,BK40,5))+IF(E39>0,(INDEX(linielast,BR40,1)+INDEX(linielast,BR40,2)+INDEX(linielast,BR40,3)*INDEX(linielast,BR40,5))*(E39-H39)/E39,0))) -> - | Q39: =IF(Kold!$BL$44=1,"-",P38+Q38+R38+$U$6*$O$6*(C40+D40)) -> - | R39: =IF(Kold!$BL$44=1,"-",$U$6*$O$6*(0.5*I39*(INDEX(fladelast,BY40,1)+INDEX(fladelast,BY40,2)+INDEX(fladelast,BY40,3)*INDEX(fladelast,BY40,5))+IF(I39>0,(INDEX(linielast,CF40,1)+INDEX(linielast,CF40,2)+INDEX(linielast,CF40,3)*INDEX(linielast,CF40,5))*(I39-L39)/I39))) -> - | S39: =IF(Kold!$BL$44=1,"-",$Q$6*(0.5*E39*INDEX(fladelast,BK40,1)+IF(E39>0,INDEX(linielast,BR40,1)*(E39-H39)/E39))) -> - | T39: =IF(Kold!$BL$44=1,"-",S38+T38+U38+$Q$6*C40) -> - | U39: =IF(Kold!$BL$44=1,"-",$Q$6*(0.5*I39*INDEX(fladelast,BY40,1)+IF(I39>0,INDEX(linielast,CF40,1)*(I39-L39)/I39))) -> - | BG39: 6.00001 | BH39: 2 | BI39: 13.00001 | BJ39: 2 | BK39: =Kold!BK39 -> 6 | BL39: 8.15 | BM39: 1.32 | BR39: =Kold!BR39 -> 2 | BS39: 12 | BT39: 1.32 | BY39: =Kold!BY39 -> 4 | BZ39: 5.65 | CA39: 1.32 | CF39: =Kold!CF39 -> 2 | CG39: 12 | CH39: 1.32 | CM39: 1413.01453
B40: =Kold!B40 -> Stue | C40: =Kold!C40 -> 12 | D40: =Kold!D40 -> 5 | E40: =Kold!E40 -> 6 | F40: F3 | G40: L2 | H40: =Kold!H40 -> 2 | I40: =Kold!I40 -> 13 | J40: F6 | K40: L2 | L40: =Kold!L40 -> 2 | M40: =IF(Kold!$BL$44=1,"-",0.5*BG41*(BL41*BM41+BN41*BO41)+IF(E40>0,(BG41-BH41)*(BS41*BT41+BU41*BV41)/BG41,0)) -> - | N40: =IF(Kold!$BL$44=1,"-",CM41+DT41) -> - | O40: =IF(Kold!$BL$44=1,"-",0.5*BI41*(BZ41*CA41+CB41*CC41)+IF(I40>0,(BI41-BJ41)*(CG41*CH41+CI41*CJ41)/BI41)) -> - | P40: =IF(Kold!$BL$44=1,"-",$U$6*$O$6*(0.5*E40*(INDEX(fladelast,BK41,1)+INDEX(fladelast,BK41,2)+INDEX(fladelast,BK41,3)*INDEX(fladelast,BK41,5))+IF(E40>0,(INDEX(linielast,BR41,1)+INDEX(linielast,BR41,2)+INDEX(linielast,BR41,3)*INDEX(linielast,BR41,5))*(E40-H40)/E40,0))) -> - | Q40: =IF(Kold!$BL$44=1,"-",P39+Q39+R39+$U$6*$O$6*(C41+D41)) -> - | R40: =IF(Kold!$BL$44=1,"-",$U$6*$O$6*(0.5*I40*(INDEX(fladelast,BY41,1)+INDEX(fladelast,BY41,2)+INDEX(fladelast,BY41,3)*INDEX(fladelast,BY41,5))+IF(I40>0,(INDEX(linielast,CF41,1)+INDEX(linielast,CF41,2)+INDEX(linielast,CF41,3)*INDEX(linielast,CF41,5))*(I40-L40)/I40))) -> - | S40: =IF(Kold!$BL$44=1,"-",$Q$6*(0.5*E40*INDEX(fladelast,BK41,1)+IF(E40>0,INDEX(linielast,BR41,1)*(E40-H40)/E40))) -> - | T40: =IF(Kold!$BL$44=1,"-",S39+T39+U39+$Q$6*C41) -> - | U40: =IF(Kold!$BL$44=1,"-",$Q$6*(0.5*I40*INDEX(fladelast,BY41,1)+IF(I40>0,INDEX(linielast,CF41,1)*(I40-L40)/I40))) -> - | W40: Vejledning: | Z40: Betonelementbyggeriers statik | BG40: 6.00001 | BH40: 2 | BI40: 13.00001 | BJ40: 2 | BK40: =Kold!BK40 -> 5 | BL40: 5.65 | BM40: 1.32 | BR40: =Kold!BR40 -> 2 | BS40: 12 | BT40: 1.32 | BY40: =Kold!BY40 -> 6 | BZ40: 8.15 | CA40: 1.32 | CF40: =Kold!CF40 -> 2 | CG40: 12 | CH40: 1.32 | CM40: 1540.168709
B41: =Kold!B41 -> Kld. | C41: =Kold!C41 -> 12 | D41: =Kold!D41 -> 5 | N41: =IF(Kold!$BL$44=1,"-",CM42+DT42) -> - | Q41: =IF(Kold!$BL$44=1,"-",P40+Q40+R40) -> - | T41: =IF(Kold!$BL$44=1,"-",S40+T40+U40) -> - | W41: Polyteknisk Forlag 2010 eller www.bef.dk | BG41: 6.00001 | BH41: 2 | BI41: 13.00001 | BJ41: 2 | BK41: =Kold!BK41 -> 4 | BL41: 5.65 | BM41: 1.32 | BR41: =Kold!BR41 -> 3 | BS41: 8 | BT41: 1.32 | BY41: =Kold!BY41 -> 7 | BZ41: 5.65 | CA41: 1.32 | CF41: =Kold!CF41 -> 3 | CG41: 8 | CH41: 1.32 | CM41: =CM40+0.5*BG40*(BL40*BM40)+IF(E39>0,(BG40-BH40)*(BS40*BT40)/BG40)+0.5*BI40*(BZ40*CA40)+IF(I39>0,(BI40-BJ40)*(CG40*CH40)/BI40)+(C41+D41)*$U$6*$O$6 -> 1678.872887
B42: Vejledning: | D42: Betonelementbyggeriers statik | L42: Polyteknisk Forlag 2010 eller www.bef.dk | M42: NB: Resultaterne skal altid kontrolleres af ansvarlig statiker | CM42: =CM41+0.5*BG41*(BL41*BM41)+IF(E40>0,(BG41-BH41)*(BS41*BT41)/BG41)+0.5*BI41*(BZ41*CA41)+IF(I40>0,(BI41-BJ41)*(CG41*CH41)/BI41) -> 1765.699354
BG44: Fejltabel | BL44: =IF(MAX(BL45:BL56)=1,1,0) -> 0 | BM44: =BM45&BM46&BM47&BM48&BM49&BM50&BM51&BM52&BM53&BM54&BM55&BM56 -> 
BG45: Programmet modtager ikke negative inddata ! | BL45: =IF(MIN(O6,Q6,U6,BJ61:BN65,BJ72:BN73,C27:D41,E26:E40,H26:H40,I26:I40,L26:L40)<0,1,0) -> 0 | BM45: =IF(BL45=0,"",BG45) -> 
BG46: Linielast udenfor dækfelt ! | BL46: =Kold!BL46 -> 0 | BM46: =IF(BL46=0,"",BG46) -> 
BG47: Primær reduktionsfaktor skal være størst ! | BL47: =IF(OR(T10>S10,T11>S11,T12>S12,T13>S13,T14>S14,T21>S21,T22>S22,T15>S15,T16>S16,T17>S17,T18>S18),1,0) -> 0 | BM47: =IF(BL47=0,"",BG47) -> 
BG59: Fladelaste | BJ59: gk | BK59: gfri,k | BL59: qk | BM59: yq1/yq2 | BN59: yq2 | BO59: Kategori
BG60: F0 | BJ60: 0 | BK60: 0 | BL60: 0
BG61: =Kold!M10 -> F1 | BH61: =Kold!N10 -> Tagflade, sne | BI61: =Kold!O10 -> 0 | BJ61: =Kold!P10 -> 3.1 | BK61: =Kold!Q10 -> 1 | BL61: =Kold!R10 -> 0.8 | BM61: =S10 -> 0 | BN61: =T10 -> 0 | BO61: =INDEX($BG$9:$BG$16,BI10,1) -> 
BG62: =Kold!M11 -> F2 | BH62: =Kold!N11 -> Boligarealer | BI62: =Kold!O11 -> 0 | BJ62: =Kold!P11 -> 3.65 | BK62: =Kold!Q11 -> 1.5 | BL62: =Kold!R11 -> 1.5 | BM62: =S11 -> 0 | BN62: 0 | BO62: =INDEX($BG$9:$BG$16,BI11,1) -> 
BG63: =Kold!M12 -> F3 | BH63: =Kold!N12 -> Kontorer | BI63: =Kold!O12 -> 0 | BJ63: =Kold!P12 -> 3.65 | BK63: =Kold!Q12 -> 2 | BL63: =Kold!R12 -> 2.5 | BM63: 0 | BN63: 0
BG64: =Kold!M13 -> F4 | BH64: =Kold!N13 -> Kontor med arkiv | BI64: =Kold!O13 -> 0 | BJ64: =Kold!P13 -> 3.65 | BK64: =Kold!Q13 -> 2 | BL64: =Kold!R13 -> 7.5 | BM64: 0 | BN64: 0
BG65: =Kold!M14 -> F5 | BH65: =Kold!N14 -> Kontorer | BI65: =Kold!O14 -> 0 | BJ65: =Kold!P14 -> 4.15 | BK65: =Kold!Q14 -> 4 | BL65: =Kold!R14 -> 4 | BM65: 0 | BN65: 0
BG66: =Kold!M15 -> F6 | BH66: =Kold!N15 -> Kontorer | BI66: =Kold!O15 -> 0 | BJ66: =Kold!P15 -> 3.65 | BK66: =Kold!Q15 -> 2 | BL66: =Kold!R15 -> 3.3 | BM66: 0 | BN66: 0
BG67: =Kold!M16 -> F7 | BH67: =Kold!N16 -> Undervisning | BI67: =Kold!O16 -> 0 | BJ67: =Kold!P16 -> 3.65 | BK67: =Kold!Q16 -> 2 | BL67: =Kold!R16 -> 4.8 | BM67: 0 | BN67: 0
BG68: =Kold!M17 -> F8 | BH68: =Kold!N17 -> Værksted | BI68: =Kold!O17 -> 0 | BJ68: =Kold!P17 -> 3.65 | BK68: =Kold!Q17 -> 2 | BL68: =Kold!R17 -> 8.3 | BM68: 0 | BN68: 0
BG69: =Kold!M18 -> F9 | BH69: =Kold!N18 -> Butiksarealer | BI69: =Kold!O18 -> 0 | BJ69: =Kold!P18 -> 3.65 | BK69: =Kold!Q18 -> 2 | BL69: =Kold!R18 -> 3.3 | BM69: 0 | BN69: 0
BG70: Linielaste | BJ70: gk | BK70: gfri,k | BL70: qk | BM70: yq1/yq2 | BN70: yq2 | BO70: Kategori
BG71: L0 | BJ71: 0 | BK71: 0 | BL71: 0
BG72: =Kold!M21 -> L1 | BH72: =Kold!N21 -> Badeværelser | BI72: =Kold!O21 -> 0 | BJ72: =Kold!P21 -> 8 | BK72: =Kold!Q21 -> 4 | BL72: =Kold!R21 -> 6 | BM72: =S21 -> 0 | BN72: =T21 -> 0 | BO72: =INDEX($BG$9:$BG$16,BI21,1) -> 
BG73: =Kold!M22 -> L2 | BH73: =Kold!N22 -> Komprimator | BI73: =Kold!O22 -> 0 | BJ73: =Kold!P22 -> 0 | BK73: =Kold!Q22 -> 8 | BL73: =Kold!R22 -> 10 | BM73: =S22 -> 0 | BN73: =T22 -> 0 | BO73: =INDEX($BG$9:$BG$16,BI22,1) -> 

Sheet Geometri
C1: 1 | F1: 1 | G1: 2 | I1: 2 | J1: =G1+1 -> 3 | L1: =J1 -> 3 | M1: =J1+1 -> 4 | O1: =M1 -> 4 | P1: =M1+1 -> 5 | R1: =P1 -> 5 | S1: =P1+1 -> 6 | U1: =S1 -> 6 | V1: =S1+1 -> 7 | X1: =V1 -> 7 | Y1: =V1+1 -> 8 | AA1: =Y1 -> 8 | AB1: =Y1+1 -> 9 | AD1: =AB1 -> 9 | AE1: =AB1+1 -> 10 | AG1: =AE1 -> 10 | AH1: =AE1+1 -> 11 | AJ1: =AH1 -> 11 | AK1: =AH1+1 -> 12 | AM1: =AK1 -> 12 | AN1: =AK1+1 -> 13 | AP1: =AN1 -> 13 | AQ1: =AN1+1 -> 14 | AS1: =AQ1 -> 14 | AT1: =AQ1+1 -> 15 | AV1: =AT1 -> 15 | AZ1: 1 | BA1: 2 | BB1: 3 | BC1: 4 | BD1: 5 | BE1: 6 | BF1: 7 | BG1: 8 | BH1: 9 | BI1: 10 | BJ1: 11 | BK1: 12 | BL1: 13 | BM1: 14 | BN1: 15 | BO1: 1 | BP1: 2 | BQ1: 3 | BR1: 4 | BS1: 5 | BT1: 6 | BU1: 7 | BV1: 8 | BW1: 9 | BX1: 10 | BY1: 11 | BZ1: 12 | CA1: 13 | CB1: 14 | CC1: 15
C2: 1 | D2: Tag | F2: 3 | G2: 1 | H2: =15-G1&". Sal" -> 13. Sal | I2: 3 | J2: 1 | K2: =15-J1&". Sal" -> 12. Sal | L2: 3 | M2: 1 | N2: =15-M1&". Sal" -> 11. Sal | O2: 3 | P2: 1 | Q2: =15-P1&". Sal" -> 10. Sal | R2: 3 | S2: 1 | T2: =15-S1&". Sal" -> 9. Sal | U2: 3 | V2: 1 | W2: =15-V1&". Sal" -> 8. Sal | X2: 3 | Y2: 1 | Z2: =15-Y1&". Sal" -> 7. Sal | AA2: 3 | AB2: 1 | AC2: =15-AB1&". Sal" -> 6. Sal | AD2: 3 | AE2: 1 | AF2: =15-AE1&". Sal" -> 5. Sal | AG2: 3 | AH2: 1 | AI2: =15-AH1&". Sal" -> 4. Sal | AJ2: 3 | AK2: 1 | AL2: =15-AK1&". Sal" -> 3. Sal | AM2: 3 | AN2: 1 | AO2: =15-AN1&". Sal" -> 2. Sal | AP2: 3 | AQ2: 1 | AR2: =15-AQ1&". Sal" -> 1. Sal | AS2: 3 | AT2: 1 | AU2: Stuen | AV2: 3 | AX2: Kælder | AZ2: 2 | BA2: 2 | BB2: 2 | BC2: 2 | BD2: 2 | BE2: 2 | BF2: 2 | BG2: 2 | BH2: 2 | BI2: 2 | BJ2: 2 | BK2: 2 | BL2: 2 | BM2: 2 | BN2: 2 | BO2: 4 | BP2: =BO2 -> 4 | BQ2: =BP2 -> 4 | BR2: 4 | BS2: 4 | BT2: 4 | BU2: 4 | BV2: 4 | BW2: 4 | BX2: 4 | BY2: 4 | BZ2: 4 | CA2: 4 | CB2: 4 | CC2: 4
C3: =-INDEX(Kold!$BG$27:$BJ$41,C1,C2) -> -6.00001 | D3: 0 | E3: 0 | F3: =INDEX(Kold!$BG$27:$BJ$41,F1,F2) -> 13.00001 | G3: =-INDEX(Kold!$BG$27:$BJ$41,G1,G2) -> -6.00001 | H3: 0 | I3: =INDEX(Kold!$BG$27:$BJ$41,I1,I2) -> 13.00001 | J3: =-INDEX(Kold!$BG$27:$BJ$41,J1,J2) -> -6.00001 | K3: 0 | L3: =INDEX(Kold!$BG$27:$BJ$41,L1,L2) -> 13.00001 | M3: =-INDEX(Kold!$BG$27:$BJ$41,M1,M2) -> -6.00001 | N3: 0 | O3: =INDEX(Kold!$BG$27:$BJ$41,O1,O2) -> 13.00001 | P3: =-INDEX(Kold!$BG$27:$BJ$41,P1,P2) -> -6.00001 | Q3: 0 | R3: =INDEX(Kold!$BG$27:$BJ$41,R1,R2) -> 13.00001 | S3: =-INDEX(Kold!$BG$27:$BJ$41,S1,S2) -> -6.00001 | T3: 0 | U3: =INDEX(Kold!$BG$27:$BJ$41,U1,U2) -> 13.00001 | V3: =-INDEX(Kold!$BG$27:$BJ$41,V1,V2) -> -6.00001 | W3: 0 | X3: =INDEX(Kold!$BG$27:$BJ$41,X1,X2) -> 13.00001 | Y3: =-INDEX(Kold!$BG$27:$BJ$41,Y1,Y2) -> -6.00001 | Z3: 0 | AA3: =INDEX(Kold!$BG$27:$BJ$41,AA1,AA2) -> 13.00001 | AB3: =-INDEX(Kold!$BG$27:$BJ$41,AB1,AB2) -> -6.00001 | AC3: 0 | AD3: =INDEX(Kold!$BG$27:$BJ$41,AD1,AD2) -> 13.00001 | AE3: =-INDEX(Kold!$BG$27:$BJ$41,AE1,AE2) -> -6.00001 | AF3: 0 | AG3: =INDEX(Kold!$BG$27:$BJ$41,AG1,AG2) -> 13.00001 | AH3: =-INDEX(Kold!$BG$27:$BJ$41,AH1,AH2) -> -6.00001 | AI3: 0 | AJ3: =INDEX(Kold!$BG$27:$BJ$41,AJ1,AJ2) -> 13.00001 | AK3: =-INDEX(Kold!$BG$27:$BJ$41,AK1,AK2) -> -6.00001 | AL3: 0 | AM3: =INDEX(Kold!$BG$27:$BJ$41,AM1,AM2) -> 13.00001 | AN3: =-INDEX(Kold!$BG$27:$BJ$41,AN1,AN2) -> -6.00001 | AO3: 0 | AP3: =INDEX(Kold!$BG$27:$BJ$41,AP1,AP2) -> 13.00001 | AQ3: =-INDEX(Kold!$BG$27:$BJ$41,AQ1,AQ2) -> -6.00001 | AR3: 0 | AS3: =INDEX(Kold!$BG$27:$BJ$41,AS1,AS2) -> 13.00001 | AT3: =-INDEX(Kold!$BG$27:$BJ$41,AT1,AT2) -> -6.00001 | AU3: 0 | AV3: =INDEX(Kold!$BG$27:$BJ$41,AV1,AV2) -> 13.00001 | AW3: =-1 -> -1 | AX3: 0 | AY3: 1 | AZ3: =-INDEX(Kold!$BG$27:$BJ$41,AZ1,AZ2) -> -5 | BA3: =-INDEX(Kold!$BG$27:$BJ$41,BA1,BA2) -> -2 | BB3: =-INDEX(Kold!$BG$27:$BJ$41,BB1,BB2) -> -5 | BC3: =-INDEX(Kold!$BG$27:$BJ$41,BC1,BC2) -> -2 | BD3: =-INDEX(Kold!$BG$27:$BJ$41,BD1,BD2) -> -2 | BE3: =-INDEX(Kold!$BG$27:$BJ$41,BE1,BE2) -> -2 | BF3: =-INDEX(Kold!$BG$27:$BJ$41,BF1,BF2) -> -2 | BG3: =-INDEX(Kold!$BG$27:$BJ$41,BG1,BG2) -> -2 | BH3: =-INDEX(Kold!$BG$27:$BJ$41,BH1,BH2) -> -2 | BI3: =-INDEX(Kold!$BG$27:$BJ$41,BI1,BI2) -> -2 | BJ3: =-INDEX(Kold!$BG$27:$BJ$41,BJ1,BJ2) -> -2 | BK3: =-INDEX(Kold!$BG$27:$BJ$41,BK1,BK2) -> -2 | BL3: =-INDEX(Kold!$BG$27:$BJ$41,BL1,BL2) -> -2 | BM3: =-INDEX(Kold!$BG$27:$BJ$41,BM1,BM2) -> -2 | BN3: =-INDEX(Kold!$BG$27:$BJ$41,BN1,BN2) -> -2 | BO3: =INDEX(Kold!$BG$27:$BJ$41,BO1,BO2) -> 2 | BP3: =INDEX(Kold!$BG$27:$BJ$41,BP1,BP2) -> 2 | BQ3: =INDEX(Kold!$BG$27:$BJ$41,BQ1,BQ2) -> 2 | BR3: =INDEX(Kold!$BG$27:$BJ$41,BR1,BR2) -> 2 | BS3: =INDEX(Kold!$BG$27:$BJ$41,BS1,BS2) -> 2 | BT3: =INDEX(Kold!$BG$27:$BJ$41,BT1,BT2) -> 2 | BU3: =INDEX(Kold!$BG$27:$BJ$41,BU1,BU2) -> 2 | BV3: =INDEX(Kold!$BG$27:$BJ$41,BV1,BV2) -> 2 | BW3: =INDEX(Kold!$BG$27:$BJ$41,BW1,BW2) -> 2 | BX3: =INDEX(Kold!$BG$27:$BJ$41,BX1,BX2) -> 2 | BY3: =INDEX(Kold!$BG$27:$BJ$41,BY1,BY2) -> 2 | BZ3: =INDEX(Kold!$BG$27:$BJ$41,BZ1,BZ2) -> 2 | CA3: =INDEX(Kold!$BG$27:$BJ$41,CA1,CA2) -> 2 | CB3: =INDEX(Kold!$BG$27:$BJ$41,CB1,CB2) -> 2 | CC3: =INDEX(Kold!$BG$27:$BJ$41,CC1,CC2) -> 2
B4: Geometri | D4: 0 | E4: =IF(AND(INDEX(Kold!$E$26:$E$40,C1)=0,INDEX(Kold!$I$26:$I$40,C1)=0),H4,H4+3) -> 45 | H4: =IF(AND(INDEX(Kold!$E$26:$E$40,G1)=0,INDEX(Kold!$I$26:$I$40,G1)=0),K4,K4+3) -> 42 | K4: =IF(AND(INDEX(Kold!$E$26:$E$40,J1)=0,INDEX(Kold!$I$26:$I$40,J1)=0),N4,N4+3) -> 39 | N4: =IF(AND(INDEX(Kold!$E$26:$E$40,M1)=0,INDEX(Kold!$I$26:$I$40,M1)=0),Q4,Q4+3) -> 36 | Q4: =IF(AND(INDEX(Kold!$E$26:$E$40,P1)=0,INDEX(Kold!$I$26:$I$40,P1)=0),T4,T4+3) -> 33 | T4: =IF(AND(INDEX(Kold!$E$26:$E$40,S1)=0,INDEX(Kold!$I$26:$I$40,S1)=0),W4,W4+3) -> 30 | W4: =IF(AND(INDEX(Kold!$E$26:$E$40,V1)=0,INDEX(Kold!$I$26:$I$40,V1)=0),Z4,Z4+3) -> 27 | Z4: =IF(AND(INDEX(Kold!$E$26:$E$40,Y1)=0,INDEX(Kold!$I$26:$I$40,Y1)=0),AC4,AC4+3) -> 24 | AC4: =IF(AND(INDEX(Kold!$E$26:$E$40,AB1)=0,INDEX(Kold!$I$26:$I$40,AB1)=0),AF4,AF4+3) -> 21 | AF4: =IF(AND(INDEX(Kold!$E$26:$E$40,AE1)=0,INDEX(Kold!$I$26:$I$40,AE1)=0),AI4,AI4+3) -> 18 | AI4: =IF(AND(INDEX(Kold!$E$26:$E$40,AH1)=0,INDEX(Kold!$I$26:$I$40,AH1)=0),AL4,AL4+3) -> 15 | AL4: =IF(AND(INDEX(Kold!$E$26:$E$40,AK1)=0,INDEX(Kold!$I$26:$I$40,AK1)=0),AO4,AO4+3) -> 12 | AO4: =IF(AND(INDEX(Kold!$E$26:$E$40,AN1)=0,INDEX(Kold!$I$26:$I$40,AN1)=0),AR4,AR4+3) -> 9 | AR4: =IF(AND(INDEX(Kold!$E$26:$E$40,AQ1)=0,INDEX(Kold!$I$26:$I$40,AQ1)=0),AU4,AU4+3) -> 6 | AU4: =IF(AND(INDEX(Kold!$E$26:$E$40,AT1)=0,INDEX(Kold!$I$26:$I$40,AT1)=0),AX4,AX4+3) -> 3 | AX4: 0
B5: =Kold!B26&"-v "&Kold!$F26 -> Tag-v F3 | C5: =E$4+IF(INDEX(Kold!$E$26:$E$40,C$1)=0,-100,0) -> 45 | D5: =C5 -> 45
B6: =Kold!$J26&" "&Kold!B26&"-h" -> F3 Tag-h | E6: =E$4+IF(INDEX(Kold!$I$26:$I$40,C$1)=0,-100,0) -> 45 | F6: =E6 -> 45
B7: =Kold!B27&"-v "&Kold!$F27 -> 13. sal-v F6 | G7: =H$4+IF(INDEX(Kold!$E$26:$E$40,G$1)=0,-100,0) -> 42 | H7: =G7 -> 42
B8: =Kold!$J27&" "&Kold!B27&"-h" -> F1 13. sal-h | H8: =H$4+IF(INDEX(Kold!$I$26:$I$40,G$1)=0,-100,0) -> 42 | I8: =H8 -> 42
B9: =Kold!B28&"-v "&Kold!$F28 -> 12. sal-v F5 | J9: =K$4+IF(INDEX(Kold!$E$26:$E$40,J$1)=0,-100,0) -> 39 | K9: =J9 -> 39
B10: =Kold!$J28&" "&Kold!B28&"-h" -> F2 12. sal-h | K10: =K$4+IF(INDEX(Kold!$I$26:$I$40,J$1)=0,-100,0) -> 39 | L10: =K10 -> 39
B11: =Kold!B29&"-v "&Kold!$F29 -> 11. sal-v F3 | M11: =N$4+IF(INDEX(Kold!$E$26:$E$40,M$1)=0,-100,0) -> 36 | N11: =M11 -> 36
B12: =Kold!$J29&" "&Kold!B29&"-h" -> F2 11. sal-h | N12: =N$4+IF(INDEX(Kold!$I$26:$I$40,M$1)=0,-100,0) -> 36 | O12: =N12 -> 36
B13: =Kold!B30&"-v "&Kold!$F30 -> 10. sal-v F5 | P13: =Q$4+IF(INDEX(Kold!$E$26:$E$40,P$1)=0,-100,0) -> 33 | Q13: =P13 -> 33
B14: =Kold!$J30&" "&Kold!B30&"-h" -> F5 10. sal-h | Q14: =Q$4+IF(INDEX(Kold!$I$26:$I$40,P$1)=0,-100,0) -> 33 | R14: =Q14 -> 33
B15: =Kold!B31&"-v "&Kold!$F31 -> 9. sal-v F2 | S15: =T$4+IF(INDEX(Kold!$E$26:$E$40,S$1)=0,-100,0) -> 30 | T15: =S15 -> 30
B16: =Kold!$J31&" "&Kold!B31&"-h" -> F3 9. sal-h | T16: =T$4+IF(INDEX(Kold!$I$26:$I$40,S$1)=0,-100,0) -> 30 | U16: =T16 -> 30
B17: =Kold!B32&"-v "&Kold!$F32 -> 8. sal-v F6 | V17: =W$4+IF(INDEX(Kold!$E$26:$E$40,V$1)=0,-100,0) -> 27 | W17: =V17 -> 27
B18: =Kold!$J32&" "&Kold!B32&"-h" -> F3 8. sal-h | W18: =W$4+IF(INDEX(Kold!$I$26:$I$40,V$1)=0,-100,0) -> 27 | X18: =W18 -> 27
B19: =Kold!B33&"-v "&Kold!$F33 -> 7. sal-v F1 | Y19: =Z$4+IF(INDEX(Kold!$E$26:$E$40,Y$1)=0,-100,0) -> 24 | Z19: =Y19 -> 24
B20: =Kold!$J33&" "&Kold!B33&"-h" -> F5 7. sal-h | Z20: =Z$4+IF(INDEX(Kold!$I$26:$I$40,Y$1)=0,-100,0) -> 24 | AA20: =Z20 -> 24
B21: =Kold!B34&"-v "&Kold!$F34 -> 6. sal-v F6 | AB21: =AC$4+IF(INDEX(Kold!$E$26:$E$40,AB$1)=0,-100,0) -> 21 | AC21: =AB21 -> 21
B22: =Kold!$J34&" "&Kold!B34&"-h" -> F4 6. sal-h | AC22: =AC$4+IF(INDEX(Kold!$I$26:$I$40,AB$1)=0,-100,0) -> 21 | AD22: =AC22 -> 21
B23: =Kold!B35&"-v "&Kold!$F35 -> 5. sal-v F6 | AE23: =AF$4+IF(INDEX(Kold!$E$26:$E$40,AE$1)=0,-100,0) -> 18 | AF23: =AE23 -> 18
B24: =Kold!$J35&" "&Kold!B35&"-h" -> F7 5. sal-h | AF24: =AF$4+IF(INDEX(Kold!$I$26:$I$40,AE$1)=0,-100,0) -> 18 | AG24: =AF24 -> 18
B25: =Kold!B36&"-v "&Kold!$F36 -> 4. sal-v F6 | AH25: =AI$4+IF(INDEX(Kold!$E$26:$E$40,AH$1)=0,-100,0) -> 15 | AI25: =AH25 -> 15
B26: =Kold!$J36&" "&Kold!B36&"-h" -> F2 4. sal-h | AI26: =AI$4+IF(INDEX(Kold!$I$26:$I$40,AH$1)=0,-100,0) -> 15 | AJ26: =AI26 -> 15
B27: =Kold!B37&"-v "&Kold!$F37 -> 3. sal-v F5 | AK27: =AL$4+IF(INDEX(Kold!$E$26:$E$40,AK$1)=0,-100,0) -> 12 | AL27: =AK27 -> 12
B28: =Kold!$J37&" "&Kold!B37&"-h" -> F2 3. sal-h | AL28: =AL$4+IF(INDEX(Kold!$I$26:$I$40,AK$1)=0,-100,0) -> 12 | AM28: =AL28 -> 12
B29: =Kold!B38&"-v "&Kold!$F38 -> 2. sal-v F5 | AN29: =AO$4+IF(INDEX(Kold!$E$26:$E$40,AN$1)=0,-100,0) -> 9 | AO29: =AN29 -> 9
B30: =Kold!$J38&" "&Kold!B38&"-h" -> F3 2. sal-h | AO30: =AO$4+IF(INDEX(Kold!$I$26:$I$40,AN$1)=0,-100,0) -> 9 | AP30: =AO30 -> 9
B31: =Kold!B39&"-v "&Kold!$F39 -> 1. sal-v F4 | AQ31: =AR$4+IF(INDEX(Kold!$E$26:$E$40,AQ$1)=0,-100,0) -> 6 | AR31: =AQ31 -> 6
B32: =Kold!$J39&" "&Kold!B39&"-h" -> F5 1. sal-h | AR32: =AR$4+IF(INDEX(Kold!$I$26:$I$40,AQ$1)=0,-100,0) -> 6 | AS32: =AR32 -> 6
B33: =Kold!B40&"-v "&Kold!$F40 -> Stue-v F3 | AT33: =AU$4+IF(INDEX(Kold!$E$26:$E$40,AT$1)=0,-100,0) -> 3 | AU33: =AT33 -> 3
B34: =Kold!$J40&" "&Kold!B40&"-h" -> F6 Stue-h | AU34: =AU$4+IF(INDEX(Kold!$I$26:$I$40,AT$1)=0,-100,0) -> 3 | AV34: =AU34 -> 3
B35: =Kold!B41 -> Kld. | AW35: 0 | AX35: =AW35 -> 0
AX36: 0 | AY36: =AX36 -> 0
B37: L1 | AZ37: =IF(INDEX(Kold!$BR$27:$BR$41,Geometri!AZ$1)=2,INDEX($D$4:$AY$4,1,AZ$1*3-1)+1,-100) -> -100 | BA37: =IF(INDEX(Kold!$BR$27:$BR$41,Geometri!BA$1)=2,INDEX($D$4:$AY$4,1,BA$1*3-1)+1,-100) -> 43 | BB37: =IF(INDEX(Kold!$BR$27:$BR$41,Geometri!BB$1)=2,INDEX($D$4:$AY$4,1,BB$1*3-1)+1,-100) -> -100 | BC37: =IF(INDEX(Kold!$BR$27:$BR$41,Geometri!BC$1)=2,INDEX($D$4:$AY$4,1,BC$1*3-1)+1,-100) -> 37 | BD37: =IF(INDEX(Kold!$BR$27:$BR$41,Geometri!BD$1)=2,INDEX($D$4:$AY$4,1,BD$1*3-1)+1,-100) -> -100 | BE37: =IF(INDEX(Kold!$BR$27:$BR$41,Geometri!BE$1)=2,INDEX($D$4:$AY$4,1,BE$1*3-1)+1,-100) -> -100 | BF37: =IF(INDEX(Kold!$BR$27:$BR$41,Geometri!BF$1)=2,INDEX($D$4:$AY$4,1,BF$1*3-1)+1,-100) -> 28 | BG37: =IF(INDEX(Kold!$BR$27:$BR$41,Geometri!BG$1)=2,INDEX($D$4:$AY$4,1,BG$1*3-1)+1,-100) -> 25 | BH37: =IF(INDEX(Kold!$BR$27:$BR$41,Geometri!BH$1)=2,INDEX($D$4:$AY$4,1,BH$1*3-1)+1,-100) -> 22 | BI37: =IF(INDEX(Kold!$BR$27:$BR$41,Geometri!BI$1)=2,INDEX($D$4:$AY$4,1,BI$1*3-1)+1,-100) -> 19 | BJ37: =IF(INDEX(Kold!$BR$27:$BR$41,Geometri!BJ$1)=2,INDEX($D$4:$AY$4,1,BJ$1*3-1)+1,-100) -> -100 | BK37: =IF(INDEX(Kold!$BR$27:$BR$41,Geometri!BK$1)=2,INDEX($D$4:$AY$4,1,BK$1*3-1)+1,-100) -> 13 | BL37: =IF(INDEX(Kold!$BR$27:$BR$41,Geometri!BL$1)=2,INDEX($D$4:$AY$4,1,BL$1*3-1)+1,-100) -> 10 | BM37: =IF(INDEX(Kold!$BR$27:$BR$41,Geometri!BM$1)=2,INDEX($D$4:$AY$4,1,BM$1*3-1)+1,-100) -> 7 | BN37: =IF(INDEX(Kold!$BR$27:$BR$41,Geometri!BN$1)=2,INDEX($D$4:$AY$4,1,BN$1*3-1)+1,-100) -> -100 | BO37: =IF(INDEX(Kold!$CF$27:$CF$41,Geometri!BO$1)=2,INDEX($D$4:$AY$4,1,BO$1*3-1)+1,-100) -> 46 | BP37: =IF(INDEX(Kold!$CF$27:$CF$41,Geometri!BP$1)=2,INDEX($D$4:$AY$4,1,BP$1*3-1)+1,-100) -> -100 | BQ37: =IF(INDEX(Kold!$CF$27:$CF$41,Geometri!BQ$1)=2,INDEX($D$4:$AY$4,1,BQ$1*3-1)+1,-100) -> 40 | BR37: =IF(INDEX(Kold!$CF$27:$CF$41,Geometri!BR$1)=2,INDEX($D$4:$AY$4,1,BR$1*3-1)+1,-100) -> -100 | BS37: =IF(INDEX(Kold!$CF$27:$CF$41,Geometri!BS$1)=2,INDEX($D$4:$AY$4,1,BS$1*3-1)+1,-100) -> 34 | BT37: =IF(INDEX(Kold!$CF$27:$CF$41,Geometri!BT$1)=2,INDEX($D$4:$AY$4,1,BT$1*3-1)+1,-100) -> -100 | BU37: =IF(INDEX(Kold!$CF$27:$CF$41,Geometri!BU$1)=2,INDEX($D$4:$AY$4,1,BU$1*3-1)+1,-100) -> -100 | BV37: =IF(INDEX(Kold!$CF$27:$CF$41,Geometri!BV$1)=2,INDEX($D$4:$AY$4,1,BV$1*3-1)+1,-100) -> 25 | BW37: =IF(INDEX(Kold!$CF$27:$CF$41,Geometri!BW$1)=2,INDEX($D$4:$AY$4,1,BW$1*3-1)+1,-100) -> 22 | BX37: =IF(INDEX(Kold!$CF$27:$CF$41,Geometri!BX$1)=2,INDEX($D$4:$AY$4,1,BX$1*3-1)+1,-100) -> 19 | BY37: =IF(INDEX(Kold!$CF$27:$CF$41,Geometri!BY$1)=2,INDEX($D$4:$AY$4,1,BY$1*3-1)+1,-100) -> 16 | BZ37: =IF(INDEX(Kold!$CF$27:$CF$41,Geometri!BZ$1)=2,INDEX($D$4:$AY$4,1,BZ$1*3-1)+1,-100) -> -100 | CA37: =IF(INDEX(Kold!$CF$27:$CF$41,Geometri!CA$1)=2,INDEX($D$4:$AY$4,1,CA$1*3-1)+1,-100) -> 10 | CB37: =IF(INDEX(Kold!$CF$27:$CF$41,Geometri!CB$1)=2,INDEX($D$4:$AY$4,1,CB$1*3-1)+1,-100) -> 7 | CC37: =IF(INDEX(Kold!$CF$27:$CF$41,Geometri!CC$1)=2,INDEX($D$4:$AY$4,1,CC$1*3-1)+1,-100) -> -100
B38: L2 | AZ38: =IF(INDEX(Kold!$BR$27:$BR$41,Geometri!AZ$1)=3,INDEX($D$4:$AY$4,1,AZ$1*3-1)+1,-100) -> 46 | BA38: =IF(INDEX(Kold!$BR$27:$BR$41,Geometri!BA$1)=3,INDEX($D$4:$AY$4,1,BA$1*3-1)+1,-100) -> -100 | BB38: =IF(INDEX(Kold!$BR$27:$BR$41,Geometri!BB$1)=3,INDEX($D$4:$AY$4,1,BB$1*3-1)+1,-100) -> 40 | BC38: =IF(INDEX(Kold!$BR$27:$BR$41,Geometri!BC$1)=3,INDEX($D$4:$AY$4,1,BC$1*3-1)+1,-100) -> -100 | BD38: =IF(INDEX(Kold!$BR$27:$BR$41,Geometri!BD$1)=3,INDEX($D$4:$AY$4,1,BD$1*3-1)+1,-100) -> 34 | BE38: =IF(INDEX(Kold!$BR$27:$BR$41,Geometri!BE$1)=3,INDEX($D$4:$AY$4,1,BE$1*3-1)+1,-100) -> 31 | BF38: =IF(INDEX(Kold!$BR$27:$BR$41,Geometri!BF$1)=3,INDEX($D$4:$AY$4,1,BF$1*3-1)+1,-100) -> -100 | BG38: =IF(INDEX(Kold!$BR$27:$BR$41,Geometri!BG$1)=3,INDEX($D$4:$AY$4,1,BG$1*3-1)+1,-100) -> -100 | BH38: =IF(INDEX(Kold!$BR$27:$BR$41,Geometri!BH$1)=3,INDEX($D$4:$AY$4,1,BH$1*3-1)+1,-100) -> -100 | BI38: =IF(INDEX(Kold!$BR$27:$BR$41,Geometri!BI$1)=3,INDEX($D$4:$AY$4,1,BI$1*3-1)+1,-100) -> -100 | BJ38: =IF(INDEX(Kold!$BR$27:$BR$41,Geometri!BJ$1)=3,INDEX($D$4:$AY$4,1,BJ$1*3-1)+1,-100) -> 16 | BK38: =IF(INDEX(Kold!$BR$27:$BR$41,Geometri!BK$1)=3,INDEX($D$4:$AY$4,1,BK$1*3-1)+1,-100) -> -100 | BL38: =IF(INDEX(Kold!$BR$27:$BR$41,Geometri!BL$1)=3,INDEX($D$4:$AY$4,1,BL$1*3-1)+1,-100) -> -100 | BM38: =IF(INDEX(Kold!$BR$27:$BR$41,Geometri!BM$1)=3,INDEX($D$4:$AY$4,1,BM$1*3-1)+1,-100) -> -100 | BN38: =IF(INDEX(Kold!$BR$27:$BR$41,Geometri!BN$1)=3,INDEX($D$4:$AY$4,1,BN$1*3-1)+1,-100) -> 4 | BO38: =IF(INDEX(Kold!$CF$27:$CF$41,Geometri!BO$1)=3,INDEX($D$4:$AY$4,1,BO$1*3-1)+1,-100) -> -100 | BP38: =IF(INDEX(Kold!$CF$27:$CF$41,Geometri!BP$1)=3,INDEX($D$4:$AY$4,1,BP$1*3-1)+1,-100) -> 43 | BQ38: =IF(INDEX(Kold!$CF$27:$CF$41,Geometri!BQ$1)=3,INDEX($D$4:$AY$4,1,BQ$1*3-1)+1,-100) -> -100 | BR38: =IF(INDEX(Kold!$CF$27:$CF$41,Geometri!BR$1)=3,INDEX($D$4:$AY$4,1,BR$1*3-1)+1,-100) -> 37 | BS38: =IF(INDEX(Kold!$CF$27:$CF$41,Geometri!BS$1)=3,INDEX($D$4:$AY$4,1,BS$1*3-1)+1,-100) -> -100 | BT38: =IF(INDEX(Kold!$CF$27:$CF$41,Geometri!BT$1)=3,INDEX($D$4:$AY$4,1,BT$1*3-1)+1,-100) -> 31 | BU38: =IF(INDEX(Kold!$CF$27:$CF$41,Geometri!BU$1)=3,INDEX($D$4:$AY$4,1,BU$1*3-1)+1,-100) -> 28 | BV38: =IF(INDEX(Kold!$CF$27:$CF$41,Geometri!BV$1)=3,INDEX($D$4:$AY$4,1,BV$1*3-1)+1,-100) -> -100 | BW38: =IF(INDEX(Kold!$CF$27:$CF$41,Geometri!BW$1)=3,INDEX($D$4:$AY$4,1,BW$1*3-1)+1,-100) -> -100 | BX38: =IF(INDEX(Kold!$CF$27:$CF$41,Geometri!BX$1)=3,INDEX($D$4:$AY$4,1,BX$1*3-1)+1,-100) -> -100 | BY38: =IF(INDEX(Kold!$CF$27:$CF$41,Geometri!BY$1)=3,INDEX($D$4:$AY$4,1,BY$1*3-1)+1,-100) -> -100 | BZ38: =IF(INDEX(Kold!$CF$27:$CF$41,Geometri!BZ$1)=3,INDEX($D$4:$AY$4,1,BZ$1*3-1)+1,-100) -> 13 | CA38: =IF(INDEX(Kold!$CF$27:$CF$41,Geometri!CA$1)=3,INDEX($D$4:$AY$4,1,CA$1*3-1)+1,-100) -> -100 | CB38: =IF(INDEX(Kold!$CF$27:$CF$41,Geometri!CB$1)=3,INDEX($D$4:$AY$4,1,CB$1*3-1)+1,-100) -> -100 | CC38: =IF(INDEX(Kold!$CF$27:$CF$41,Geometri!CC$1)=3,INDEX($D$4:$AY$4,1,CC$1*3-1)+1,-100) -> 4
B39: Labels | C39: =IF(C3<>0,MAX(C5:C36),-100) -> 45 | D39: =IF(D3<>0,MAX(D5:D36),-100) -> -100 | E39: -100 | F39: 45 | G39: 42 | H39: -100 | I39: 42 | J39: 39 | K39: -100 | L39: 39 | M39: 36 | N39: -100 | O39: 36 | P39: 33 | Q39: -100 | R39: 33 | S39: 30 | T39: -100 | U39: 30 | V39: 27 | W39: -100 | X39: 27 | Y39: 24 | Z39: -100 | AA39: 24 | AB39: 21 | AC39: -100 | AD39: 21 | AE39: 18 | AF39: -100 | AG39: 18 | AH39: 15 | AI39: -100 | AJ39: 15 | AK39: 12 | AL39: -100 | AM39: 12 | AN39: 9 | AO39: -100 | AP39: 9 | AQ39: 6 | AR39: -100 | AS39: 6 | AT39: 3 | AU39: -100 | AV39: 3 | AW39: 0 | AX39: -100 | AY39: 0

Sheet Makro
A1: Fladelast ven | B1: Linielast ven | C1: Fladelast høj | D1: Linielast høj | E1: Lastkat
A2: 4 | B2: 3 | C2: 4 | D2: 2 | E2: 8
A3: 7 | B3: 2 | C3: 2 | D3: 3 | E3: 1
A4: 6 | B4: 3 | C4: 3 | D4: 2 | E4: 2
A5: 4 | B5: 2 | C5: 3 | D5: 3 | E5: 4
A6: 6 | B6: 3 | C6: 6 | D6: 2 | E6: 4
A7: 3 | B7: 3 | C7: 4 | D7: 3 | E7: 7
A8: 7 | B8: 2 | C8: 4 | D8: 3 | E8: 4
A9: 2 | B9: 2 | C9: 6 | D9: 2 | E9: 4
A10: 7 | B10: 2 | C10: 5 | D10: 2 | E10: 8
A11: 7 | B11: 2 | C11: 8 | D11: 2
A12: 7 | B12: 3 | C12: 3 | D12: 2
A13: 6 | B13: 2 | C13: 3 | D13: 3 | E13: 1
A14: 6 | B14: 2 | C14: 4 | D14: 2 | E14: 4
A15: 5 | B15: 2 | C15: 6 | D15: 2
A16: 4 | B16: 3 | C16: 7 | D16: 3
A17: 3 | C17: 3
A20: =IF(E20=1,0,1000000) -> 0 | B20: 1 | E20: 1
